Workbook

Sheet Narrative & Detail Budget
M1: Place an "X" by the applicable response.
C2: Virginia Department of Education | M2: X | N2: Original
C3: Office of ESEA Programs
C4: P. O. Box 2120 | N4: Revision:
C5: Richmond, Virginia 23218-2120 | N5: Revision #
N6: Date:
C7: A. COVER PAGE | N7: Explain
C8: Title I, Part A, Improving Basic Programs | N8: Amendment:
C9: 2020-2021 Individual Program Application | N9: Amendment #
C10: Due by July 1, 2020 | N10: Date:
C11: Elementary and Secondary Education Act of 1965 (ESEA), as amended by | N11: Explain
C12: the Every Student Succeeds Act of 2015 (ESSA), Public Law 114-95
A13: To be Completed by School Division
A14: Applicant (Legal Name of Agency): | H14: Division Number: | J14: Title I, Part A, Coordinator:
A15: ALBEMARLE COUNTY PUBLIC SCHOOLS | I15: =IF(ISBLANK(A15)," ",VLOOKUP(A15,Prefills!A2:B147,2)) -> 2 | J15: Catrina Sims
A16: Mailing Address (Street, City or Town, Zip Code): | H16: Phone: | J16: 434-296-5820 | M16: Ext:
A17: 401 McIntire Road Charlottesville, VA 22902 | H17: Email:
H18: csims2@k12albemarle.org
A20: LOCAL EDUCATIONAL AGENCY CERTIFICATION
A21: Use of Funds: The applicant designated above applies for an allocation of federal assistance as appropriated under ESEA. Funds are available to support local education reform efforts that are consistent with statewide education reform efforts to: 1) provide funding to implement promising education reform programs and school improvement programs based on evidence-based research; 2) provide a continuing source of innovative and educational improvement; 3) meet the educational needs of all students; and 4) develop and implement education programs to improve student achievement and teacher performance. Specific uses of funds for this application are found in the "Guidelines, Instructions, and Assurances" document.
A23: Assurances: The local educational agency assures that Title I, Part A, will be administered and implemented in compliance with all applicable statutes, regulations, policies, and program plans under ESEA. Additionally, the local educational agency agrees by signing below to implement the general and program specific assurances included in the application. The assurances and signed cover page are to be retained at the division level and, for the Title I, Part A, application (individual or consolidated form), a scanned PDF of the signed cover page must be emailed to ESSA@doe.virginia.gov.
R24: Title I, Part A, Only For the sheet to print you must have activated either the 35 percent and Above Low-Income or the Below 35 percent Low-Income button.
A25: Certification: We hereby certify that, to the best of our knowledge, the information contained in this application is correct. The agency named above has authorized us as its representatives to file this application, and such action is recorded in the minutes of the School Board meeting held
A26: on | B26: 2020-05-28 | E26: .
A29: Superintendent’s Signature | H29: Board Chairperson’s Signature
A30: Matthew S. Haas | H30: Jonno Alcaro
A31: Superintendent’s Name | H31: Board Chairperson’s Name
A32: 2020-06-11 | H32: 2020-06-11
A33: Date | H33: Date
A35: Application Submission, Approval, and LEA Expenditure of Funds: Applications for Federal Funds are due by July 1, 2020. Revisions and Amendments should be submitted in a timely manner. Please note, in order for the funds to be expendable by July 1, 2020, the electronic application must be received at the Virginia Department of Education by July 1, 2020, through the file submission process of the Online Management of Education Grant Awards (OMEGA) system.
A39: Page 1
E40: School Division: | G40: =$A$15 -> ALBEMARLE COUNTY PUBLIC SCHOOLS | M40: Division Number: | P40: =$I$15 -> 2
A41: APPLICATION INFORMATION
A43: 2019-2020 Allocation | C43: 2019-2020 Consolidated Yes or No | E43: ELIGIBLE PROGRAM | N43: 2020-2021 Allocation Total
A44: =IF(ISBLANK($A$15)," ",VLOOKUP($P$40,Prefills!$Z$3:$AC$142,4)) -> 1494988.23 | C44: No | E44: Title I, Part A, Improving Basic Programs Operated by the LEAs | N44: 1494988
E45: Title II, Part A Transferability | N45: =N56 -> 0 | S45: Yes | T45: No
E46: Title IV, Part A Transferability | N46: =N59 -> 0
E47: Total Allocation | N47: =SUM(N44:P46) -> 1494988
A50: TRANSFERABILITY
A52: Section 5103(b)(2) of the Every Student Succeeds Act allows LEAs to transfer funds between certain qualifying federal programs. If funds are transferred out of the Title II, Part A, or Title IV, Part A programs, PRIOR APPROVAL IS REQUIRED, and a separate Transferability approval form must be submitted.
A53: Transfer Request Form
A55: Program from which funds will be transferred | G55: Program TO which funds will be transferred: | N55: Amount
A56: Title II, Part A | F56: TO | G56: Title I, Part A, Improving Basic Programs Operated by the LEAs
A58: Program from which funds will be transferred | G58: Program TO which funds will be transferred: | N58: Amount
A59: Title IV, Part A | F59: TO | G59: Title I, Part A, Improving Basic Programs Operated by the LEAs
A60: Page 2
E61: School Division: | G61: =$A$15 -> ALBEMARLE COUNTY PUBLIC SCHOOLS | M61: Division Number: | P61: =$I$15 -> 2
A62: REVISIONS AND AMENDMENTS
A64: Place an "X" in the first box indicating whether it is a revision or amendment. Enter the date of the revision or amendment. Indicate the tab(s) that have been changed. Provide a concise description of changes (for example, "Programmatic Changes--purchase of additional reading materials, object code 6000; Budget Changes--decreased travel budget in object code 5000 and increased materials to purchase additional reading materials in object code 6000"). When completing an amendment, changes to the program overview may be reflected as additions at the end of the narrative. NOTE: Any changes to the program budget should first be reflected in an amended application, followed by a budget transfer within 7 business days of approval of the amended application. Budget transfers will not be accepted without an approved amended application reflecting budget changes.
A65: 1. | B65: Revision | F65: Date:
B66: Amendment | F66: Date:
A68: 2. | B68: Revision | F68: Date:
B69: Amendment | F69: Date:
A71: 3. | B71: Revision | F71: Date:
B72: Amendment | F72: Date:
A74: 4. | B74: Revision | F74: Date:
B75: Amendment | F75: Date:
A77: 5. | B77: Revision | F77: Date:
B78: Amendment | F78: Date:
A80: 6. | B80: Revision | F80: Date:
B81: Amendment | F81: Date:
A83: 7. | B83: Revision | F83: Date:
B84: Amendment | F84: Date:
A86: 8. | B86: Revision | F86: Date:
B87: Amendment | F87: Date:
A89: 9. | B89: Revision | F89: Date:
B90: Amendment | F90: Date:
A91: Page 3
E92: School Division: | G92: =$A$15 -> ALBEMARLE COUNTY PUBLIC SCHOOLS | M92: Division Number: | P92: =$I$15 -> 2
A93: B. PROGRAM OVERVIEW (3 PAGES)
A94: In narrative format:
B95: Describe how the local educational agency will monitor students' progress in meeting the challenging State academic standards by:
C96: a. | D96: developing and implementing a well-rounded program of instruction to meet the academic needs of all students;
C97: b. | D97: identifying students who may be at risk for academic failure;
C98: c. | D98: providing additional educational assistance to individual students the local educational agency or school determines need help in meeting the challenging State academic standards; and
C99: d. | D99: identifying and implementing instructional and other strategies intended to strengthen academic programs and improve school conditions for student learning.
A100: 1. Describe the division's instructional program as supported by the federal grant. Explain how the instructional program or program of services supplements, not supplants, the core instructional program or services offered by the LEA to all students and/or all schools. For Title I, Part A, include delivery model (targeted assistance and/or schoolwide), subject(s) addressed, grade span(s), etc.
A101: Albemarle County Public Schools (ACPS) is a growing school division now serving 14,307 students at fifteen elementary schools, six middle schools, and four high schools. Our strategic student-centered mission remains that all students will graduate having actively mastered the lifelong learning competencies they will need to succeed as 21st century learners, workers, and citizens. In order to meet this goal and ensure schools reach their accreditation targets, ACPS focuses Title I funds on literacy and mathematics in the six elementary schools and two preschool programs we serve through the targeted assistance model. School eligibility for Title I services is determined by the schools that have a free and reduced lunch percentage that is above the County average of 32.6%. The Low-Income Factor Above 35% formula has been used to determine school allocations for the 2020-21 school year. In order to provide support and leadership to teachers and administrators at identified schools, Title I monies fund positions to ensure compliance, as well as administrative and technical support to both teachers and principals in all identified schools.
A102: During school year 2020-21, our FTE levels will remain generally consistent among the Title I schools compared with last year, in order to meet student needs throughout grades K-5. We have large numbers of students who are academically challenged in reading and/or mathematics, as measured by specific assessments detailed in the application. With the increases in numbers of at-risk students, as well as gradual increases in Title I schools' free and reduced lunch percentages in recent years, sustaining increases in staffing remains the primary goal for Title I services and funding. Our Title I preschool programs are located at Agnor-Hurt and Red Hill Elementary Schools. Each program serves up to 18 at-risk four year olds from the local community. Students who score the lowest on the locally-developed assessment and accompanying parent survey are invited to attend.
A103: The ACPS Title I team re-examines the philosophical foundation and materials used for Title I instruction annually. Accelerated student achievement is a result of the intersection of lifelong learner standards and state-established standards in reading and math. In addition, ACPS offers ongoing professional development for teachers in best practices for implementation of curriculum, assessment, and instruction in literacy, mathematics, and family engagement. Title I teachers meet regularly as an Intervention PLC to network, reflect on current practices, share new findings, and continue on a trajectory for professional, continuous growth. All ACPS Title I teachers are fully licensed; 70% have their Master's degrees, one has a doctorate degree, and just under 50% have Reading Specialist degrees, based on data for the 2019-20 school year. As has been typical in years past, Title I schools plan to offer a Summer Kindergarten Jumpstart Program for rising Kindergarten students, to provide a headstart on Kindergarten and build an early relationship with families.
A104: Page 4
E105: School Division: | G105: =$A$15 -> ALBEMARLE COUNTY PUBLIC SCHOOLS | M105: Division Number: | P105: =$I$15 -> 2
A106: B. PROGRAM OVERVIEW (CONTINUED)
A107: 2. Provide information about the needs assessment process, including a brief analysis of student achievement data and other data sources reviewed.
A108: ELEMENTARY K-5: The typical process for determining eligibility for Title I begins in the spring for all grade levels. In May of each year, school-based Title I teams, in collaboration with classroom and other intervention/resource teachers and building administrators, identify students in need of intervention in order to get ready for the next school year. These teams of teachers carefully consider the literacy and math profiles for each student and make recommendations for those in need of additional support outside of Tier 1: differentiating among those students that should continue reading and/or math intervention, new students who should receive interventions, those who should be released and placed on ‘monitor’ status, and, ultimately, to ensure that planned interventions match student needs. Title I teams track this information electronically in order to streamline the process and ease communication across Title/Intervention teams, classroom teachers, and the building level administrators. In August, the new teams of teachers cross-check the Eligibility Lists that were based on the Spring Needs Assessment, add in new students and delete those who have moved, and determine the neediest students who will receive Title I services as soon as parent permission letters are received. By starting this process in the spring, Title I teachers are able to begin Title I services in the first weeks of school. In light of COVID-19, we revised our process for determining eligibility slightly. Title I teams met with all Tier I teachers to make recommendations for those students who would benefit from having additional support outside of the regular classroom based on assessments
A109: given in January. Teachers used January data as it was the most comprehensive information they had with the early school closure.
A110: 3. Describe the evidence-based activities that will be implemented for each subject addressed, and how these activities address deficiencies noted in the needs assessment.
A111: READING: Title I reading instruction supplements the ACPS English Language Arts Curriculum Framework and is above and beyond the 90 minute daily reading block. The County curriculum offers students a balanced diet of phonemic awareness, phonics, fluency, comprehension, vocabulary, writing and word study. Title I instruction is targeted to one or more of these areas based on student needs as demonstrated by their literacy profile. (Details for the needs assessment process is outlined above). Title I teachers deliver instruction in small groups or individually as determined by student needs in push-in and/or pull-out models. MATH: Spatial-Temporal Math (ST Math) and Do the Math are remedial programs used in Title I instruction of students below grade level in math. ST Math is subscription-based and employs students’ spatial and temporal reasoning abilities to explain, understand, and solve multi-step math problems. Lessons are presented visually so language skills do not present a barrier to learning math. Do The Math was developed by Marilyn Burns and helps students develop the skills they need to compute with accuracy and efficiency, the number sense they need to reason, and the ability to apply their skills and reasoning to solve problems. Title I math instruction is an enhancement to the ACPS Mathematics Curriculum Framework which emphasizes a daily balance of conceptual understanding, computational fluency, and problem-solving experiences.
A114: Page 5
E115: School Division: | G115: =$A$15 -> ALBEMARLE COUNTY PUBLIC SCHOOLS | M115: Division Number: | P115: =$I$15 -> 2
A116: B. PROGRAM OVERVIEW (CONTINUED)
A117: 4. For Title I, Part A, explain how the division ensures that meaningful parent and family engagement activities are planned and implemented at each Title I school.
A118: The Title I Office provides coordination, technical assistance, and other support to assist Title I schools in planning and implementing effective parental involvement activities that improve student academic achievement and school performance. An agenda item at every Title I teacher meeting is sharing ways to engage parents in their child’s education. Each school annually updates their parental involvement plan with input from Title I families. The Title I Coordinator assists with the review of written plans and attendance at events as needed. Albemarle County’s Title I Parent Advisory is built upon the relationships established at fall school events. In addition, the Title I Coordinator connects with a variety of other departments, including Community Engagement and ESOL, in order to provide the best possible experiences for our families. While the Division shares best practices and ideas with school teachers and administrators, attendance demonstrates that school-based programs are the most meaningful to families. The six Title I schools hold carefully planned Family Reading/Literacy evening events each semester, with the Fall program designed to acquaint and involve parents with the Title I mission, program design and goals, as well as supportive practices at home. An academic content theme is typically part of the event design. The Spring programs follow a similar approach but with a view toward helping parents focus on summer literacy and continued academic support at home, based on use of engaging family activities. Take-home books are included with both Fall and Spring Family events. Take-home reading books and guides for interactive approaches for parents are also planned for use in stemming the loss of reading interest and skills during school breaks,
A119: both in summer and due to COVID-19 closures.
A120: C. COORDINATION OF SERVICES
A121: Describe the partnerships within the division among the programs in this application and other federal, state, and/or local programs in the delivery of services to the targeted population(s). Describe the collaboration of program staff, parents, and the community to provide services and activities that will contribute to the attainment of the measurable objectives in this application.
A122: To optimize the division's instructional program for teachers, parents, and students in preschool through grade five, a monthly meeting of federal program leadership is held and includes coordinators of Title I, Parts A and Part C, Title II, Title III, Adult ESOL and Homeless. Title I and Title III, along with Community Engagement and Adult ESOL, collaborate as follows: the ESOL coordinator helps oversee the student selection process at Title I schools through conversation with ESOL teachers. The Office of Student Learning staff share methods to increase parent involvement; impact family literacy; help families support instruction in the home; provide interpretive services to increase parent participation at school events; and arrange transportation for families from identified communities to school events. Adult ESOL provides Family Literacy classes for Title I ESOL students and their families. Tutors for identified Homeless children and partial salary for the ACPS Homeless Liaison are funded through this grant. Albemarle County hosts four preschool programs [Bright Stars, Title I, MACAA’s Head Start, and Early Childhood Special Education (ECSE)] which cooperate to serve the needs of students, families and teachers. This “Albemarle County Preschool Network” collaborates to support joint professional development for teachers, parent training and workshops at individual schools, and enrichment activities that support success for all at-risk children. The Preschool Leadership Team meets monthly to coordinate and plan for program needs, public awareness and continuous quality improvements.
A123: Preschool program community support has come from local restaurants, a Dental Grant from Sentara Martha Jefferson Hospital to provide dental services, local churches providing food and clothing for students' families, local toy drives that makes available holiday gifts, and a grant from the Charlottesville Area Community Foundation used to provide parenting classes.
A124: Page 6
E125: School Division: | G125: =$A$15 -> ALBEMARLE COUNTY PUBLIC SCHOOLS | M125: Division Number: | P125: =$I$15 -> 2
A126: D. EFFECTIVE TRANSITIONS
A127: Describe how the local educational agency will implement strategies to facilitate effective transitions for students from middle grades to high school and from high school to postsecondary education including, if applicable-
B128: a. | C128: through coordination with institutions of higher education, employers, and other local partners; and
B129: b. | C129: through increased student access to early college high school or dual or concurrent enrollment opportunities, or career counseling to identify student interests and skills.
A130: Albemarle School Division provides opportunities and builds programmatic structures that facilitate these transitions. Our four high schools host visitation events in both the spring and summer for rising 9th grade students. These are designed to help new students understand academic choices and to increase comfort with the higher demands of high school. Registration "fairs" are also held, at which time students visit booths featuring high school academy representatives, academic departments, special programs such as AVID (rigorous college prep program), and extracurricular clubs and sports. Entering high school students in Albemarle are assigned a teacher mentor, who provides guidance for the student until graduation. Freshman Seminars afford an advisory period focused on relationship building and meeting the social-emotional and career development needs of students. High schools offer internships in the community, CTE classes that include credentialing, and numerous college fairs and counselor fairs designed to give students ample opportunity to learn about career choices and postsecondary school choices and programs. High school Career Connection Centers are another source of information and guidance for students. And, dual enrollment at PVCC (Piedmont Virginia Community College) is another available opportunity for academic advancement for students.
A133: E. REDUCTION OF EXCLUSIONARY DISCIPLINE PRACTICES
A134: Describe how the local educational agency will support efforts to reduce the overuse of discipline practices that remove students from the classroom, which may include identifying and supporting schools with high rates of discipline, disaggregated by each of the subgroups of students, as defined in section 1111(c)(2).
A135: Albemarle County Schools uses multiple approaches that support efforts to reduce the overuse of practices that remove students from classrooms when discipline issues occur. All schools in the division use Responsive Classroom methods, and teachers receive professional development in this intervention program. The new Social, Emotional, & Academic Development (SEAD) program in our urban ring schools is charged with removing barriers correlated to social or cultural factors that may disrupt learning. SEAD team members are designated to provide another layer of support when discipline and/or attendance interventions are needed. Schools implemented the Short-Term Education Program (STEP). The STEP, cuts down on out-of-school suspension by keeping kids in school, with specialized emotional and academic support.This program decreases disproportionate suspension of minority students, as well as decreasing overall out of school suspension rates. Division level approval is required before suspension of any primary grade student may occur. Within middle and high schools, the STEP program is used in place of out-of-school suspension, where appropriate, by allowing students to receive instruction within the STEP program setting. On an annual basis, district level staff review school-based discipline practices and statistics, with the goal of reducing punitive measures.
A137: Page 7
E138: School Division: | G138: =$A$15 -> ALBEMARLE COUNTY PUBLIC SCHOOLS | M138: Division Number: | P138: =$I$15 -> 2
A139: F. MEASURABLE OBJECTIVES
A140: What is a Measurable Objective? A measurable objective has four components: a) Subject (Who is the target or focus?); b) Behavior (What will be changed/improved?); c) Specific criteria for assessing improvement, readiness, or achievement, and tools to be used to measure effectiveness; and d) Time period for performance or assessment.
A141: 1. | B141: State up to ten measurable objectives that will guide the development of the program to be funded with the requested ESEA federal funds.
A142: 2. | B142: Describe the evidence-based research that supports the services and activities (programs, models, instructional methods, and techniques) that will be implemented to achieve each objective and that will be supported by the requested funds.
A143: Measurable Objective 1:
A144: Measurable Objective 1: By the end of the 2020-2021 school year, 85% of Title I students in K-1 will pass the Spring PALS assessment. The Spring passing score for Kindergarten is 83 and for grade 1 is 35. The assessment will be administered three times over the course of the school year to monitor growth.
A146: Evidence-based research services and activities that will be implemented and supported by the requested funds to achieve the objective:
A147: Evidence-based research services...: Professional development to improve literacy instruction for Title I students will be offered to their classroom teachers in partnership with their Title I teachers. Targeted areas for professional development will be based on the ACPS Literacy Profile and Literacy Assessment Guidelines. In coordination with the Response to Intervention (RTI) model, teachers will receive professional development in administering and interpreting progress monitoring tools. This assessment information will inform teachers of student growth and equip them to make necessary adjustments to instruction. Teacher teams will develop Personalized Learning Plans (PLPs) for identified students on the Title I Eligibility Lists. These PLPs will include targets for growth based on the ACPS Literacy Profile, and will be shared with parents quarterly. Professional Learning Communities (PLCs) will provide the structure for grade level conversations for improving student achievement. Conversations and action plans will be individualized for each Title I student, and will be based on data in the ACPS Literacy Profile.
A149: Measurable Objective 2:
A150: Measurable Objective 2: By the end of the 2020-2021 school year, 90% of Title I students in grades 2-5 will show more than a year’s growth according to fluency benchmarks -- advancing at least one grade level on the Word Recognition in Isolation (WRI) task. This assessment will be administered three times over the course of the school year to monitor for growth.
A152: Evidence-based research services and activities that will be implemented and supported by the requested funds to achieve the objective:
A153: Evidence-based research services ... Professional development to improve literacy instruction for Title I students will be offered to their classroom teachers in partnership with their Title I teachers. Targeted areas for professional development will be based on the ACPS Literacy Profile and Literacy Assessment Guidelines. In coordination with the Response to Intervention (RTI) model, teachers will receive professional development in administering and interpreting progress monitoring tools. This assessment information will inform teachers of student growth and equip them to make necessary adjustments to instruction. Teacher teams will develop Personalized Learning Plans (PLPs) for identified students on the Title I Eligibility Lists. These PLPs will include targets for growth based on the ACPS Literacy Profile, and will be shared with parents quarterly. Professional Learning Communities (PLCs) will provide the structure for grade level conversations for improving student achievement. Conversations and action plans will be individualized for each Title I student, and will be based on data in the ACPS Literacy Profile.
A155: Page 8
E156: School Division: | G156: =$A$15 -> ALBEMARLE COUNTY PUBLIC SCHOOLS | M156: Division Number: | P156: =$I$15 -> 2
A157: F. MEASURABLE OBJECTIVES (CONTINUED)
A158: Measurable Objective 3:
A159: Measurable Objective 3: By the end of the 2020-2021 school year, all Title I schools will meet accreditation requirements in the “All” category and in the related subgroups in grades 3, 4 and 5 as verified by the 2021 Reading SOLs.
A161: Evidence-based research services and activities that will be implemented and supported by the requested funds to achieve the objective:
A162: Evidence-based research services...: Professional development to improve literacy instruction for Title I students will be offered to their classroom teachers in partnership with their Title I teachers. Targeted areas for professional development will be based on the ACPS Literacy Profile and Literacy Assessment Guidelines. In coordination with the Response to Intervention (RTI) model, teachers will receive professional development in administering and interpreting progress monitoring tools. This assessment information will inform teachers of student growth and equip them to make necessary adjustments to instruction. Teacher teams will develop Personalized Learning Plans (PLPs) for students on the Title I Eligibility Lists. These PLPs will include targets for growth based on the ACPS Literacy Profile, and will be shared with parents quarterly. Professional Learning Communities (PLCs) will provide the structure for grade level conversations for improving student achievement. Conversations and action plans will be individualized for each Title I student, and will be based on data in the ACPS Literacy Profile.
A164: Measurable Objective 4:
A165: Measurable Objective 4: By the end of the 2020-2021 school year, Title I students in Kindergarten through grade 5 will meet 65% of the levels of proficiency as defined by ST Math.
A167: Evidence-based research services and activities that will be implemented and supported by the requested funds to achieve the objective:
A168: Evidence-based research services ...: Research indicates that achieving this goal through the use of the self-paced program supports students in reaching over-all math proficiency. In order to best empower teachers to utilize the program with students, professional development will be provided for all teachers implementing ST Math at the eight Title I schools. Instructional coaches help connect teachers across schools. This collaboration and sharing encourages best practices for implementing ST Math. These formal and informal connections among coaches and teachers are supplemented by midyear (and per-request) visits from the ST Math consultant, and year-round support of the ACPS Math Coordinator upon request. Professional Learning Communities (PLCs) will provide the structure for teachers to review and analyze student ST Math reports, adjusting for student needs throughout the year. ST Math reports by student, school and district are provided by ST Math on a monthly basis to be reviewed by the PLC groups, principals and division-level support.
A169: Page 9
E170: School Division: | G170: =$A$15 -> ALBEMARLE COUNTY PUBLIC SCHOOLS | M170: Division Number: | P170: =$I$15 -> 2
A171: F. MEASURABLE OBJECTIVES (CONTINUED)
A172: Measurable Objective 5:
A173: Measurable Objective 5: By the end of the 2020-2021 school year, all Title I schools will meet accreditation requirements in the “All” category and in the related subgroups in grades 3, 4 and 5 as verified by the 2021 Math SOLs.
A175: Evidence-based research services and activities that will be implemented and supported by the requested funds to achieve the objective:
A176: Evidence-based research services...: Professional development to improve math instruction for Title I students will be offered to teachers in Title I schools. Targeted areas for professional development will be based on the ACPS Mathematics Profile, notably through the introduction of the Do the Math program. In coordination with the Response to Intervention (RTI) model, teachers will receive professional development in administering and interpreting progress monitoring tools. This assessment information will inform teachers of student growth and equip them to make necessary adjustments to instruction. Professional Learning Communities (PLCs) will provide the structure for grade level conversations for improving student achievement. Conversations and action plans will be individualized for each Title I student, and will be based on data in the ACPS Mathematics Profile.
A178: Measurable Objective 6:
A179: Measurable Objective 6: By the end of the 2020-21 school year, 100% of the students in the Title I Preschool programs at Red Hill and Agnor-Hurt Elementary Schools will score within the PALS-identified developmental ranges for the 8 preschool tasks [Name Writing, Upper-Case Alphabet Recognition, Letter Sounds, Beginning Sound Awareness, Print and Word Awareness, Rhyme Awareness, and Nursery Rhyme Awareness].
A181: Evidence-based research services and activities that will be implemented and supported by the requested funds to achieve the objective:
A182: Evidence-based research services...: Title I Preschool teachers will continue professional development with other teachers in the Albemarle County Preschool Network, working towards common curriculum, instruction, and assessment practices that align with the ACPS Framework for Quality Learning. The ACPS Preschool Curriculum HighScope vertically aligns with the ACPS English Language Arts Curriculum Framework and the ACPS Mathematics Curriculum Framework to streamline instruction between preschool and the elementary grades. Families of children selected for the Title I Preschool classrooms commit to attending regular meetings with the teacher and participating in school-based opportunities that promote supporting their child’s success in school and life. In coordination with the Response to Intervention (RTI) model, teachers will receive professional development in administering and interpreting progress monitoring tools. This assessment information will inform teachers of student growth and equip them to make necessary adjustments to instruction.
A183: Page 10
E184: School Division: | G184: =$A$15 -> ALBEMARLE COUNTY PUBLIC SCHOOLS | M184: Division Number: | P184: =$I$15 -> 2
A185: F. MEASURABLE OBJECTIVES (CONTINUED)
A186: Measurable Objective 7:
A187: By the end of the 2020-2021 school year, 50% of Title I students' families at the six Title I schools will have participated in at least one Title I parent engagement activity as measured by attendance sheets.
A189: Evidence-based research services and activities that will be implemented and supported by the requested funds to achieve the objective:
A190: Title I Parent Nights are held in the Fall and Spring and provide an opportunity for teachers to engage with parents through a variety of approaches. These include literacy activities, family-style meals, presentations on Title I programming and curriculum and performance standards, take-home books and interactive learning activities. In some instances, school bus transportation for families is provided to assist in getting them to schools for these programs.
A192: Measurable Objective 8:
A195: Evidence-based research services and activities that will be implemented and supported by the requested funds to achieve the objective:
A197: Page 11
E198: School Division: | G198: =$A$15 -> ALBEMARLE COUNTY PUBLIC SCHOOLS | M198: Division Number: | P198: =$I$15 -> 2
A199: F. MEASURABLE OBJECTIVES (CONTINUED)
A200: Measurable Objective 9:
A203: Evidence-based research services and activities that will be implemented and supported by the requested funds to achieve the objective:
A206: Measurable Objective 10:
A209: Evidence-based research services and activities that will be implemented and supported by the requested funds to achieve the objective:
A211: Page 12
E212: School Division: | G212: =$A$15 -> ALBEMARLE COUNTY PUBLIC SCHOOLS | M212: Division Number: | P212: =$I$15 -> 2
A213: G. DETAIL BUDGET BREAKDOWN
A215: Prepare a detailed breakdown of the budget categories for Object Codes 1000-6000 and 8000.
A216: The amounts by program and object code totals are to be entered on the Budget Sheet under the appropriate area.
A217: Do the totals equal the Budget Summary sheet? | I217: =IF(SUM('Budget Summary'!G43)=SUM(N250,N287,N322,N356,N392,N426,N460),"Yes","No -please review your entries.") -> Yes
A219: DETAILED BUDGET DESCRIPTION OF OBJECT CODE 1000
A220: Provide a description of the positions supported with funds from this program. Indicate if any positions are newly funded under this program. Explain the supplementary nature of any new positions. Required if staff positions are to be funded by federal funds.
A221: The majority of our Title I funding is allocated for Title I teachers at our six Title I schools. In addition, a Title I Coordinator provides administrative and technical support to both teachers and principals in all identified schools. She is also responsible for compliance as well as the oversight of the program. The Management Analyst submits the grant and monitors the amendment and reimbursement process in OMEGA. She manages the student enrollment in the local student information system and tracks the Needs Assessment process which identifies eligible students throughout the year. She also prepares and submits all required reports.
A222: The Homeless Liaison coordinates a systematic program to identify and serve all eligible Homeless students. She collaborates with the Title I staff, provides tutoring and counseling, and arranges transportation for students when needed. Homeless tutors provide services to identified Homeless students.
A223: Types of Staff Positions Administrative, Teacher, Paraprofessional, Reading Specialist, Parent and Family Engagement Liaison, Other | I223: Set Aside Category | M223: FTEs | N223: Total Cost
A224: Coordinator | I224: Division | M224: 0.8 | N224: 56895
A225: Management Analyst | I225: Division | M225: 0.5 | N225: 24196
A226: Homeless Liaison | I226: Homeless | M226: 0.6 | N226: 59017
A227: Homeless Tutors | I227: Homeless | M227: NA | N227: 10000
A228: Teachers (Agnor-Hurt) ( (Red Hill) | I228: Early Childhood | M228: 2 | N228: 106464
A229: Teaching Assistants (Agnor-Hurt) (Red Hill) | I229: Early Childhood | M229: 1.5 | N229: 31209
A230: Substitutes | I230: Early Childhood | M230: NA | N230: 850
A231: Teachers | M231: 13.5 | N231: 763305
A232: Hourly Pay for Summer Jumpstart Teachers, Interpreters | M232: NA | N232: 10000
A233: Tutors for Private School Students ($25 per hour) | I233: Private School | M233: NA | N233: 8476.33
J250: Total for Object Code: | M250: =SUM(M224:M249) -> 18.9 | N250: =SUM(N224:P249) -> 1070412.33
A251: Page 13
E252: School Division: | G252: =$A$15 -> ALBEMARLE COUNTY PUBLIC SCHOOLS | M252: Division Number: | P252: =$I$15 -> 2
A253: DETAILED BUDGET DESCRIPTION OF OBJECT CODE 2000
A254: Indicate the fixed charge categories (such as FICA, health, etc.) and specify the amount of each.
A255: Employee benefits are paid on behalf of most FTE positions and include FICA, VSRS, Group Life Insurance, Health Insurance, and Dental Insurance. Part-time life insurance and part-time annuity are paid on behalf of part-time employees. Only FICA is paid on hourly salaries, such as Homeless tutors and substitutes. Per direction from VDOE, benefits have been totaled within the respective set-aside and non-set-aside programs.
A257: Item Description | K257: Set Aside Category | N257: Total Cost
A258: Benefits for 1.3 FTE Division Staff and Part-Time Staff Benefits | K258: Division | N258: 29938
A259: Benefits for .6 FTE Coordinator and for Tutors | K259: Homeless | N259: 23280
A260: Benefits for 3.5 FTE and Substitutes | K260: Early Childhood | N260: 66980
A261: FICA for Private School Tutors | K261: Private School | N261: 648.44
A262: Benefits for Teachers, Interpreters | N262: 268187.18
K287: Total for Object Code: | N287: =SUM(N258:P286) -> 389033.62
A288: Page 14
E289: School Division: | G289: =$A$15 -> ALBEMARLE COUNTY PUBLIC SCHOOLS | M289: Division Number: | P289: =$I$15 -> 2
A290: DETAILED BUDGET DESCRIPTION OF OBJECT CODE 3000
A291: Please indicate how these funds will support any services and activities that are described in the application. Services acquired from outside sources (i.e., private vendors, public authorities, or other governmental entities).
A292: Parent Involvement: Meals and services provided by outside contractors and restaurants will be included for Title I students and their families during family engagement events, which may include family literacy nights, special programs, and family field trips. Meals for division-level Parent Advisory Meetings will be provided. ST Math student licenses and associated professional development will be provided for identified students at the six Title I schools.
A294: Item Description | K294: Set Aside Category | N294: Total Cost
... 55 more rows

Sheet Budget Summary
D1: School Division: | F1: ='Narrative & Detail Budget'!A15 -> ALBEMARLE COUNTY PUBLIC SCHOOLS | K1: Division Number: | N1: ='Narrative & Detail Budget'!I15 -> 2
A2: H. BUDGET SUMMARY
A4: (Projected dollar amount of Title I, Part A, funds required for administration and implementation of this program. Enter the budget in the unlocked cells.)
A5: OBJECT CODE | B5: EXPENDITURE | G5: AMOUNT BUDGETED Title I, Part A | L5: Does the Budget Summary Match "Narrative & Detail Budget" Tab?
A8: 1000 - Personal Services | B8: Non Set-Aside | G8: 773305
B9: Set-Aside | G9: 288631
B10: Parent and Family Engagement Set-Aside
B11: Private School Set-Aside | G11: 8476.33
B12: Total Personal Services | G12: =SUM(G8:K11) -> 1070412.33 | L12: =IF(SUM('Narrative & Detail Budget'!N250)=SUM(G12),"Yes","No - Please review your entries.") -> Yes
A13: 2000 - Employee Benefits | B13: Non Set-Aside | G13: 268187.18
B14: Set-Aside | G14: 120198
B15: Parent and Family Engagement Set-Aside
B16: Private School Set-Aside | G16: 648.44
B17: Total Employee Benefits | G17: =SUM(G13:K16) -> 389033.62 | L17: =IF(SUM('Narrative & Detail Budget'!N287)=SUM(G17),"Yes","No - Please review your entries.") -> Yes
A18: 3000 - Purchased/ Contracted Services | B18: Non Set-Aside | G18: 20000
B19: Set-Aside
B20: Parent and Family Engagement Set-Aside | G20: 7000
B21: Private School Set-Aside
B22: Total Purchased/Contracted Services | G22: =SUM(G18:K21) -> 27000 | L22: =IF(SUM('Narrative & Detail Budget'!N322)=SUM(G22),"Yes","No - Please review your entries.") -> Yes
A23: 4000 - Internal Services | B23: Non Set-Aside
B24: Set-Aside
B25: Parent and Family Engagement Set-Aside
B26: Private School Set-Aside
B27: Total Internal Services | G27: =SUM(G23:K26) -> 0 | L27: =IF(SUM('Narrative & Detail Budget'!N356)=SUM(G27),"Yes","No - Please review your entries.") -> Yes
A28: 5000 - Other Charges | B28: Non Set-Aside
B29: Set-Aside
B30: Parent and Family Engagement Set-Aside
B31: Private School Set-Aside
B32: Total Other Charges | G32: =SUM(G28:K31) -> 0 | L32: =IF(SUM('Narrative & Detail Budget'!N392)=SUM(G32),"Yes","No - Please review your entries.") -> Yes
A33: 6000 - Materials and Supplies | B33: Non Set-Aside
B34: Set-Aside | G34: 500
B35: Parent and Family Engagement Set-Aside | G35: 7949.88
B36: Private School Set-Aside | G36: 92.17
B37: Total Materials and Supplies | G37: =SUM(G33:K36) -> 8542.05 | L37: =IF(SUM('Narrative & Detail Budget'!N426)=SUM(G37),"Yes","No - Please review your entries.") -> Yes
A38: 8000 - Capital Outlay | B38: Non Set-Aside
B39: Set-Aside
B40: Parent and Family Engagement Set-Aside
B41: Private School Set-Aside
B42: Total Capital Outlay | G42: =SUM(G38:K41) -> 0 | L42: =IF(SUM('Narrative & Detail Budget'!N460)=SUM(G42),"Yes","No - Please review your entries.") -> Yes
B43: TOTAL BUDGET | G43: =SUM(G12+G17+G22+G27+G32+G37+G42) -> 1494988
B44: TOTAL PARENT AND FAMILY ENGAGEMENT SET-ASIDE | G44: =SUM(G10+G15+G20+G25+G30+G35+G40) -> 14949.88
B45: TOTAL PRIVATE SCHOOL SET-ASIDE | G45: =SUM(G11+G16+G21+G26+G31+G36+G41) -> 9216.94
B46: Does the Total Budget Match the Allocation on the "Narrative & Detail Budget" Tab? | G46: =IF(SUM(G43)=SUM('Narrative & Detail Budget'!N44),"Yes","No - please review your entries.") -> Yes
A48: Page 25

Sheet Transferability
E1: School Division: | G1: ='Narrative & Detail Budget'!A15 -> ALBEMARLE COUNTY PUBLIC SCHOOLS | N1: Division Number: | P1: ='Narrative & Detail Budget'!$I$15 -> 2
A2: I. TRANSFERABILITY
A4: Section 5103(b)(2) of ESSA allows divisions to transfer all or a portion of the funds received from Title II, Part A, or Title IV, Part A, into: Title I, Part A; Title I, Part C; Title I, Part D; Title II, Part A; Title III, Part A; Title IV, Part A; or Title V, Part B.
A7: Complete the tab below if funds will be transferred under Section 5103(b)(2). Please note that prior approval is required to transfer funds.
A8: Transfer Request Form
D10: Amount Budgeted
D11: Title I, Part A | F11: Title I, Part C | H11: Title I, Part D | J11: Title II, Part A | L11: Title III, Part A | N11: Title IV, Part A | O11: Title V, Part B
D12: Title II, Part A, Transferability Award S367A200044 Project Coe APE61481 | E12: Title IV, Part A, Transferability Award S424A200048 Project Code APE60019 | F12: Title II, Part A, Transferability | G12: Title IV, Part A, Transferability | H12: Title II, Part A, Transferability | I12: Title IV, Part A, Transferability | J12: Title IV, Part A, Transferability | L12: Title II, Part A, Transferability | M12: Title IV, Part A, Transferability | N12: Title II, Part A, Transferability | O12: Title II, Part A, Transferability | P12: Title IV, Part A, Transferability
A13: Amount Transferred to Program | D13: ='Narrative & Detail Budget'!N56 -> 0 | E13: ='Narrative & Detail Budget'!N59 -> 0
A14: OBJECT CODE - EXPENDITURE TYPE
A15: 1000 - Personal Services
A16: Non Set-Aside | D16: 0 | E16: 0
A17: Set-Aside | D17: 0 | E17: 0
A18: Parent and Family Engagement Set-Aside | D18: 0 | E18: 0
A19: Private School Set-Aside | D19: 0 | E19: 0
A20: Total Personal Services | D20: =SUM(D16:D19) -> 0 | E20: =SUM(E16:E19) -> 0
A21: 2000 - Employee Benefits
A22: Non Set-Aside | D22: 0 | E22: 0
A23: Set-Aside | D23: 0 | E23: 0
A24: Parent and Family Engagement Set-Aside | D24: 0 | E24: 0
A25: Private School Set-Aside | D25: 0 | E25: 0
A26: Total Employee Benefits | D26: =SUM(D22:D25) -> 0 | E26: =SUM(E22:E25) -> 0
A27: 3000 - Purchased/Contracted Services
A28: Non Set-Aside | D28: 0 | E28: 0
A29: Set-Aside | D29: 0 | E29: 0
A30: Parent and Family Engagement Set-Aside | D30: 0 | E30: 0
A31: Private School Set-Aside | D31: 0 | E31: 0
A32: Total Purchased/Contracted Services | D32: =SUM(D28:D31) -> 0 | E32: =SUM(E28:E31) -> 0
A33: 4000 - Internal Services
A34: Non Set-Aside | D34: 0 | E34: 0
A35: Set-Aside | D35: 0 | E35: 0
A36: Parent and Family Engagement Set-Aside | D36: 0 | E36: 0
A37: Private School Set-Aside | D37: 0 | E37: 0
A38: Total Internal Services | D38: =SUM(D34:D37) -> 0 | E38: =SUM(E34:E37) -> 0
A39: 5000 - Other Charges
A40: Non Set-Aside | D40: 0 | E40: 0
A41: Set-Aside | D41: 0 | E41: 0
A42: Parent and Family Engagement Set-Aside | D42: 0 | E42: 0
A43: Private School Set-Aside | D43: 0 | E43: 0
A44: Total Other Charges | D44: =SUM(D40:D43) -> 0 | E44: =SUM(E40:E43) -> 0
A45: 6000 - Materials and Supplies
A46: Non Set-Aside | D46: 0 | E46: 0
A47: Set-Aside | D47: 0 | E47: 0
A48: Parent and Family Engagement Set-Aside | D48: 0 | E48: 0
A49: Private School Set-Aside | D49: 0 | E49: 0
A50: Total Materials and Supplies | D50: =SUM(D46:D49) -> 0 | E50: =SUM(E46:E49) -> 0
A51: 8000 - Capital Outlay
A52: Non Set-Aside | D52: 0 | E52: 0
A53: Set-Aside | D53: 0 | E53: 0
A54: Parent and Family Engagement Set-Aside | D54: 0 | E54: 0
A55: Private School Set-Aside | D55: 0 | E55: 0
A56: Total Capital Outlay | D56: =SUM(D52:D55) -> 0 | E56: =SUM(E52:E55) -> 0
A57: Total Budget | D57: =SUM(D20+D26+D32+D38+D44+D50+D56) -> 0 | E57: =SUM(E20+E26+E32+E38+E44+E50+E56) -> 0
A58: Total Parent and Family Engagement Set-Aside | D58: =SUM(D18+D24+D30+D36+D42+D48+D54) -> 0 | E58: =SUM(E18+E24+E30+E36+E42+E48+E54) -> 0
A59: Total Private School Set-Aside | D59: =SUM(D19+D25+D31+D37+D43+D49+D55) -> 0 | E59: =SUM(E19+E25+E31+E37+E43+E49+E55) -> 0
A60: Does the Total Budget Match the Amount Transferred into Program? | D60: =IF(D57=D13,"Yes","No") -> Yes | E60: =IF(E57=E13,"Yes","No") -> Yes
A62: Page 26
E63: School Division: | G63: ='Narrative & Detail Budget'!A15 -> ALBEMARLE COUNTY PUBLIC SCHOOLS | M63: Division Number: | O63: ='Narrative & Detail Budget'!$I$15 -> 2
A64: DETAIL BUDGET BREAKDOWN
A66: Prepare a detailed breakdown of the budget categories for Object Codes 1000-6000 and 8000.
A67: The amounts by program and object code totals are to be entered on the Budget Sheet under the appropriate area.
A68: Do the totals equal the Transferability Budget Summary? | I68: =IF(SUM(D57:E57)=SUM(N105,N143,N178,N215,N254,N291,N329),"Yes","No - please review your entries.") -> Yes
A70: DETAILED BUDGET DESCRIPTION OF OBJECT CODE 1000
A71: Provide a description of the positions supported with funds from this program. Indicate if any positions are newly funded under this program. Explain the supplementary nature of any new positions. Required if staff positions are to be funded by federal funds.
A74: Types of Staff Positions Administrative, Teacher, Paraprofessional, Reading Specialist, Home School Coordinator, Other | G74: Set Aside Category | J74: Funding Source | M74: FTEs | N74: Total Cost
J105: Total for Object Code: | M105: =SUM(M75:M104) -> 0 | N105: =SUM(N75:N104) -> 0
A106: Page 27
E107: School Division: | G107: ='Narrative & Detail Budget'!A15 -> ALBEMARLE COUNTY PUBLIC SCHOOLS | M107: Division Number: | O107: ='Narrative & Detail Budget'!$I$15 -> 2
A108: DETAILED BUDGET DESCRIPTION OF OBJECT CODE 2000
A109: Indicate the fixed charge categories (such as FICA, health, etc.) and specify the amount of each.
A112: Item Description | H112: Set Aside Category | K112: Funding Source | N112: Total Cost
K143: Total for Object Code: | N143: =SUM(N113:N142) -> 0
A144: Page 28
E145: School Division: | G145: ='Narrative & Detail Budget'!A15 -> ALBEMARLE COUNTY PUBLIC SCHOOLS | M145: Division Number: | O145: ='Narrative & Detail Budget'!$I$15 -> 2
A146: DETAILED BUDGET DESCRIPTION OF OBJECT CODE 3000
A147: Please indicate how these funds will support any services and activities that are described in the application. Services acquired from outside sources (i.e., private vendors, public authorities, or other governmental entities).
A150: Item Description | H150: Set Aside Category | K150: Funding Source | N150: Total Cost
K178: Total for Object Code: | N178: =SUM(N151:N177) -> 0
A179: Page 29
E180: School Division: | G180: ='Narrative & Detail Budget'!A15 -> ALBEMARLE COUNTY PUBLIC SCHOOLS | M180: Division Number: | O180: ='Narrative & Detail Budget'!$I$15 -> 2
A181: DETAILED BUDGET DESCRIPTION OF OBJECT CODE 4000
A182: Provide a description of charges from an Internal Service Fund to other functions/activities/elements of the local government for the use of intergovernmental services. Public school choice pupil transportation for Title I, Part A, if applicable, should be included here (if your division is paying this expense from other sources, indicate this in your narrative).
A185: Item Description | H185: Set Aside Category | K185: Funding Source | N185: Total Cost
K215: Total for Object Code: | N215: =SUM(N186:N214) -> 0
A216: Page 30
E217: School Division: | G217: ='Narrative & Detail Budget'!A15 -> ALBEMARLE COUNTY PUBLIC SCHOOLS | M217: Division Number: | O217: ='Narrative & Detail Budget'!$I$15 -> 2
A218: DETAILED BUDGET DESCRIPTION FOR OBJECT CODE 5000
A219: Includes expenditures that support the program, including utilities (maintenance and operation of plant), staff/administrative/consultant travel, office phone charges, training, leases/rental, indirect cost, and other.
A222: Item Description | H222: Set Aside Category | K222: Funding Source | N222: Total Cost
K254: Total for Object Code: | N254: =SUM(N223:N253) -> 0
A255: Page 31
E256: School Division: | G256: ='Narrative & Detail Budget'!A15 -> ALBEMARLE COUNTY PUBLIC SCHOOLS | M256: Division Number: | O256: ='Narrative & Detail Budget'!$I$15 -> 2
A257: DETAILED BUDGET DESCRIPTION FOR OBJECT CODE 6000
A258: Provide a description for expenses related to object code 6000 Materials and Supplies. Include items that are consumed or materially altered when used and minor equipment that is not capitalized. Equipment under $5,000, including computer equipment, should be reported under this object code unless the LEA has set a lower capitalization threshold. Indicate the quantity for each item.
A261: Item Description | G261: Set Aside Category | J261: Funding Source | M261: Quantity | N261: Total Cost
L291: Total for Object Code: | N291: =SUM(N262:N290) -> 0
A293: Page 32
E294: School Division: | G294: ='Narrative & Detail Budget'!A15 -> ALBEMARLE COUNTY PUBLIC SCHOOLS | M294: Division Number: | O294: ='Narrative & Detail Budget'!$I$15 -> 2
A295: DETAILED BUDGET DESCRIPTION FOR OBJECT CODE 8000
A296: All capital outlay expenditures over $5,000 per unit must be approved in advance by the Virginia Department of Education. If the school division has established a threshold of a lesser amount, items equal to that amount or greater must also receive prior approval by the Virginia Department of Education. Nonconsumable items must be listed in the application. Equipment quantities must be specified.
A299: Item Description | F299: Set Aside Category | I299: Funding Source | L299: Quantity | M299: Cost Per Item | N299: Total Cost
L329: Total for Object Code: | N329: =SUM(N300:N328) -> 0
A330: Page 33

Sheet GEPA
D1: School Division: | G1: ='Narrative & Detail Budget'!A15 -> ALBEMARLE COUNTY PUBLIC SCHOOLS | M1: Division Number: | P1: ='Narrative & Detail Budget'!I15 -> 2
A2: J. GENERAL EDUCATION PROVISIONS ACT (GEPA) SECTION 427
A4: Section 427 of the General Education Provisions Act (GEPA) requires applicants for federal funds to include in their applications a description of the steps the applicant will take to ensure equitable access to, and participation in, federally-assisted programs for students, teachers, and other program beneficiaries with special needs. The provision allows applicants discretion in developing the required description. The statute highlights six types of barriers that can impede equitable access or participation: gender, race, national origin, color, disability, or age. Based on local circumstances, the applicant should determine whether these or other barriers may prevent students, teachers, etc., from such access or participation in the federally-funded project or activity. The description in the application of steps to be taken to overcome these barriers need not be lengthy; the application may provide a clear and succinct description of how the applicant plans to address those barriers that are applicable to their circumstances.
A6: Describe the steps the division will take to ensure equitable access to, and participation in, grant-funded programs for students, teachers, and other program beneficiaries with special needs as required by the General Education Provisions Act (GEPA) 427, OMB Control No. 1894-00045, Section 427.
A7: Albemarle County is committed to providing equitable access for students, teachers and families in all grant-funded programs and opportunities as required by GEPA 427: 1.Ensuring all events are held in handicapped accessible facilities in geographically convenient locations. Events are held during the day, evening, and on weekends to accommodate family school/work schedules in order to maximize participation. 2. Materials provided are accessible for literate and non-readers as well as in electronic and paper copy formats to inform families that may not have access to social media and email. This includes translation of documents into Spanish and other languages as needed. The ESOL Office annually vets, hires and trains additional interpreters and translators to ensure a high-level of quality with a personalized experience for families. Simultaneous interpretation equipment is used in large-group settings, and InterpreTalk Language Line services are used when necessary.
A8: 3.Albemarle County conducts a variety of outreach programs to address gender and/or race inequalities. Some of these include: Teacher summer reading project, Girls in STEM initiatives, Summer Immersion Excursion programs for newcomers, Camp Invention modules, CoderDojo, World Peace Game, and Saturday family engagement experiences to STEM fairs and other local attractions. 4.Efforts to involve diverse stakeholders in program planning and implementation are robust and include seventeen diverse teams. Advisory groups include Parent Council, Student Advisory, Special Education, Gifted, Title I, and Diversity and Equity. Last but certainly not least, the Title I, Title III, Migrant and Homeless Coordinators all meet monthly with the Director of Federal Programs to collaborate and ensure our students have equitable access to all division opportunities. 5. Lastly, as set forth on our Human Resources website "hiring for Albemarle County shall be accomplished without regard to race, color, religion, national origin, gender, pregnancy, childbirth or related medical conditions, age, marital status or disability unless otherwise permitted by County policy or applicable law".
A10: Page 34

Sheet Program Requirements
E1: School Division: | G1: ='Narrative & Detail Budget'!$A$15 -> ALBEMARLE COUNTY PUBLIC SCHOOLS | K1: Division Number: | M1: ='Narrative & Detail Budget'!I15 -> 2
A2: K. STUDENT ELIGIBILITY CRITERIA FOR TITLE I TARGETED ASSISTANCE SCHOOLS
A4: Describe the eligibility criteria by subject area that will be used to select students for participation in the Title I program in Targeted Assistance schools. Eligible children are children identified by the school as failing, or most at risk of failing, to meet the state’s challenging student academic achievement standards on the basis of multiple, educationally related, objective criteria established by the school divisions with input from the schools. Children from Early Childhood through grade 2 shall be selected solely on the basis of such criteria as teacher judgment, interviews with parents, and developmentally appropriate measures. [ESEA, Title I, Part A, Section 1115]
A5: The process for determining eligibility for Title I services was described in depth in the Program Overview Section B, #2. In review, the needs assessment process is designed to begin in the spring, and then student eligibility is determined when school starts again in August. Title I teachers support the selection of the neediest students on the Title I Eligibility List (E-List) within grade level PLCs. The data examined by grade level are the results of the following assessments: PALS, QRI, Six-Minute Solution, Student Numeracy Assessment Progressions (SNAP), Albemarle County’s Assessment of Math Benchmarks (ACAMB), and Standards of Learning (SOL) tests. Services begin after parent permission is received within the first weeks of the start of the school year. Further, the Reading Eligibility Lists for each school show identified students, rank-ordered by their calculated composite scores. ACPS Title I uses a scoring system that allocates points for student performance levels on PALS, QRI, WRI, Six-Minute Solution, and SOLs, dependent on the grade level of the student. This composite, rank-ordered scoring system ensures that no student is bypassed in receiving services.
A6: The Math eligibility process is based on the benchmark score for the particular grade level assessment used - SNAP, ACAMB or SOL. Students below benchmark levels are served, with emphasis on those most below the benchmark levels.
A8: L. TITLE I, PART A, NEW SCHOOLWIDE SCHOOL PROGRAMS FOR 2020-2021
A10: Plans for any new schoolwide programs must be submitted in advance of the application. Contact your Title I specialist in the Office of ESEA Programs for due date and additional information. For those schools that are already schoolwide, remember that you must do an annual review including a need assessment. Funds should be targeted in accordance with the academic needs of the students.
A11: Name of School(s) Implementing New Schoolwide Programs for 2020-2021:
A13: Name of school below 40% poverty for which the division applied for a schoolwide waiver:
A15: Was the waiver granted by the SEA? | G15: Yes | I15: No
A16: Page 35
E17: School Division: | G17: ='Narrative & Detail Budget'!$A$15 -> ALBEMARLE COUNTY PUBLIC SCHOOLS | K17: Division Number: | M17: ='Narrative & Detail Budget'!I15 -> 2
A18: M. TARGETED ASSISTANCE PROGRAMS
A20: Provide the number of full-time equivalent (FTE) staff funded through Title I, Part A, participating in targeted assistance programs by job category. For administrators and supervisors who serve both targeted assistance and schoolwide programs, report the FTE attributable to the targeted assistance duties only. See guidelines for full description of staff categories. Staffing information in this section must be identical to the information listed on the 35% and Above or Below 35% Low-Income tab (whichever is applicable), in the TITLE I, PART A, ALLOCATION TO ELIGIBLE SCHOOLS section in Columns 8-11 for Targeted Assistance Program.
B22: Please include staff FTE and percentage qualified for 2020-2021 school year.
B23: Staff Category | F23: Staff FTE 2020-2021 | H23: Percentage Qualified 2020-2021
B24: Teachers | F24: 13.5 | H24: 1
B25: Paraprofessionals
B26: Other Paraprofessionals (paraprofessionals that do not provide instructional support such as parental involvement, computer assistance)
B27: Clerical support staff | F27: 0.5 | H27: NA
B28: Administrators (nonclerical) | F28: 1.4 | H28: 1
A30: SCHOOLWIDE PROGRAMS
A32: Provide the number of FTE paraprofessionals who serve in schoolwide program schools and the percentage of these paraprofessionals who are qualified in accordance with Section 1119 (c) and (d) of ESEA. This number includes ALL paraprofessionals, not only Title I funded paraprofessionals.
F33: Paraprofessionals FTE 2020-2021 | H33: Percentage Qualified 2020-2021
B34: Paraprofessionals
A36: Describe how the local educational agency will identify and address, as required under State plans as described in section 1111(g)(1)(B), any disparities that result in low-income students and minority students being taught at higher rates than other students by ineffective, inexperienced, or out-of-field teachers.
A37: ACPS has designed an intensive instructional coaching model, which is the foundation for developing the skills and instructional capabilities of new teachers. Instructional coaches serve as instructional resources in content areas, teaching methods, classroom management and assessment. Instructional coaches assist new teachers in using data to plan and target instruction to student needs and also are available to provide support to experienced teachers, when needed. Our structured induction program includes a four-day New Teacher Academy prior to start of school, where new teachers are instructed in the school division vision, mission, priorities, and strategic practices. Ongoing, planned professional development activities occur throughout the first year, though instructional coaches work with teachers for two years, through job-embedded, real-time activities resulting in a highly collaborative approach to new teacher development. Our Human Resources Department works to ensure that provisionally licensed teachers become fully licensed and also meets with principals regarding teachers who are teaching outside their content/endorsement areas to guide them toward taking and passing appropriate Praxis tests. The IPAL report and HR reports guide identification of disparity issues among teachers and schools.
A39: Page 36
E40: School Division: | G40: ='Narrative & Detail Budget'!$A$15 -> ALBEMARLE COUNTY PUBLIC SCHOOLS | K40: Division Number: | M40: ='Narrative & Detail Budget'!I15 -> 2
A41: N. IMPROVEMENT PLAN REQUIREMENTS
B43: X | C43: The LEA understands that schools designated as comprehensive support and targeted support and improvement schools will be required to use an improvement planning tool as determined by the Office of School Quality.
A45: O. TITLE I, PART A, MAINTENANCE OF EFFORT
A47: Average Per Pupil Expenditure from Non-Federal Funds:
A48: (A) For FY Ending June 30, 2018 | E48: 14137 | H48: (B) For FY Ending June 30, 2019 | L48: 14366
A50: P. TITLE I, PART A, ELIGIBLE ATTENDANCE AREAS
A52: SOURCES OF DATA FOR DETERMINING UNDUPLICATED NUMBER OF CHILDREN, AGES 5-17,
A53: FROM LOW-INCOME FAMILIES (Indicate ALL Sources with an “X”)
J54: CEP
A55: X | B55: Free/Reduced Lunch/Household Applications | J55: Children Eligible for Medicaid
B56: Temporary Assistance for Needy Families (TANF) | J56: Most Recent U. S. Census Bureau Information
A57: ELIGIBLE ATTENDANCE AREAS (Indicate with an “X”)
A58: X | B58: Grade-Span Ranking - select the Grade Span(s) you are serving below | J58: Rank Order | L58: X | M58: Division Average
A60: First Grade Span | C60: PK - 05 | H60: Second Grade Span, if applicable
A61: PRIVATE SCHOOL MEMBERSHIP
A62: Is your school division in the Bypass for Private Schools? | J62: Yes | L62: X | M62: No
A63: If your division is in the Bypass, do not enter the private school membership numbers.
A64: If your school division is not in the bypass for private schools, does the division maintain documented efforts to obtain private school membership and the signed affirmation of consultation with private school officials?
D65: X | F65: Yes | H65: No | J65: No Private Schools
A69: Page 37
E70: School Division: | G70: ='Narrative & Detail Budget'!$A$15 -> ALBEMARLE COUNTY PUBLIC SCHOOLS | K70: Division Number: | M70: ='Narrative & Detail Budget'!I15 -> 2
A72: ELIGIBLE ATTENDANCE AREAS (Indicate requested information in columns.) After completing the ELIGIBLE ATTENDANCE AREAS section, continue to the bottom of the sheet.
F75: Total Number of Children Residing in Attendance Areas
A76: Name of Public School | D76: Grade Span of School | F76: Total School Membership | G76: Low-Income Private School Membership | H76: Low-Income Public School Membership | I76: Total Low-Income | J76: CEP School* (Yes/No) | K76: CEP Multiplier Applied* (Yes/No) | L76: Low-Income Count used to Allocate Title I Funds | M76: Percentage of Low-Income | N76: *For more information on the Community Eligibility Provision (CEP), refer to the Eligible Attendance Areas section of the Application Guidelines, Instructions, and Assurances.
A77: 1 | D77: 2 | F77: 3 | G77: 4 | H77: 5 | I77: 6 | J77: 7 | K77: 8 | L77: 9 | M77: 10
A78: Mary Carr Greer Elementary | D78: PK - 05 | F78: 509 | G78: 5 | H78: 380 | I78: =SUM(G78:H78) -> 385 | L78: =IF(O78>=F78,F78,IF(O78<F78,O78)) -> 380 | M78: =IF(K78="Yes",L78/F78,H78/F78) -> 0.7465618861 | O78: =IF(K78="Yes",H78*1.6,H78) -> 380
A79: Woodbrook Elementary | D79: PK - 05 | F79: 585 | G79: 2 | H79: 391 | I79: 393 | L79: 391 | M79: 0.6683760684 | O79: 391
A80: Jack Jouett Middle | D80: 06 - 08 | F80: 642 | H80: 372 | I80: 372 | L80: 372 | M80: 0.5794392523 | O80: 372
A81: Agnor-Hurt Elementary | D81: PK - 05 | F81: 483 | G81: 2 | H81: 270 | I81: 272 | L81: 270 | M81: 0.5590062112 | O81: 270
A82: Red Hill Elementary | D82: PK - 05 | F82: 206 | H82: 111 | I82: 111 | L82: 111 | M82: 0.5388349515 | O82: 111
A83: Scottsville Elementary | D83: PK - 05 | F83: 228 | H83: 107 | I83: 107 | L83: 107 | M83: 0.4692982456 | O83: 107
A84: Paul H. Cale Elementary | D84: PK - 05 | F84: 779 | G84: 1 | H84: 353 | I84: 354 | L84: 353 | M84: 0.4531450578 | O84: 353
A85: Jackson P. Burley Middle | D85: 06 - 08 | F85: 585 | H85: 258 | I85: 258 | L85: 258 | M85: 0.441025641 | O85: 258
A86: Leslie H. Walton Middle | D86: 06 - 08 | F86: 339 | H86: 145 | I86: 145 | L86: 145 | M86: 0.4277286136 | O86: 145
A87: Monticello High | D87: 09 - 12 | F87: 1196 | H87: 399 | I87: 399 | L87: 399 | M87: 0.3336120401 | O87: 399
A88: Albemarle High | D88: 09 - 12 | F88: 1910 | H88: 620 | I88: 620 | L88: 620 | M88: 0.3246073298 | O88: 620
A89: Stony Point Elementary | D89: KG - 05 | F89: 224 | H89: 72 | I89: 72 | L89: 72 | M89: 0.3214285714 | O89: 72
A90: Crozet Elementary | D90: KG - 05 | F90: 343 | H90: 105 | I90: 105 | L90: 105 | M90: 0.306122449 | O90: 105
A91: Stone Robinson Elementary | D91: PK - 05 | F91: 511 | G91: 1 | H91: 149 | I91: 150 | L91: 149 | M91: 0.2915851272 | O91: 149
A92: Baker-Butler Elementary | D92: PK - 05 | F92: 677 | H92: 181 | I92: 181 | L92: 181 | M92: 0.2673559823 | O92: 181
A93: Murray High | D93: 09 - 12 | F93: 81 | H93: 21 | I93: 21 | L93: 21 | M93: 0.2592592593 | O93: 21
A94: Albemarle County Community Public Charter School | D94: 06 - 08 | F94: 58 | H94: 13 | I94: 13 | L94: 13 | M94: 0.224137931 | O94: 13
A95: Mortimer Y. Sutherland Middle | D95: 06 - 08 | F95: 595 | H95: 131 | I95: 131 | L95: 131 | M95: 0.2201680672 | O95: 131
A96: Broadus Wood Elementary | D96: PK - 05 | F96: 288 | H96: 55 | I96: 55 | L96: 55 | M96: 0.1909722222 | O96: 55
A97: Hollymead Elementary | D97: PK - 05 | F97: 430 | H97: 75 | I97: 75 | L97: 75 | M97: 0.1744186047 | O97: 75
A98: Joseph T. Henley Middle | D98: 06 - 08 | F98: 913 | H98: 136 | I98: 136 | L98: 136 | M98: 0.1489594743 | O98: 136
A99: Western Albemarle High | D99: 09 - 12 | F99: 1198 | H99: 152 | I99: 152 | L99: 152 | M99: 0.1268781302 | O99: 152
A100: Brownsville Elementary | D100: PK - 05 | F100: 865 | H100: 106 | I100: 106 | L100: 106 | M100: 0.1225433526 | O100: 106
A101: Meriwether Lewis Elementary | D101: KG - 05 | F101: 400 | H101: 48 | I101: 48 | L101: 48 | M101: 0.12 | O101: 48
A102: Virginia L. Murray Elementary | D102: PK - 05 | F102: 262 | H102: 18 | I102: 18 | L102: 18 | M102: 0.06870229008 | O102: 18
I103: =SUM(G103:H103) -> 0 | L103: =IF(O103>=F103,F103,IF(O103<F103,O103)) -> 0 | M103: =IF(K103="Yes",L103/F103,H103/F103) ->  | O103: =IF(K103="Yes",H103*1.6,H103) -> 0
I104: 0 | L104: 0 | O104: 0
I105: 0 | L105: 0 | O105: 0
I106: 0 | L106: 0 | O106: 0
I107: 0 | L107: 0 | O107: 0
I108: 0 | L108: 0 | O108: 0
I109: 0 | L109: 0 | O109: 0
I110: 0 | L110: 0 | O110: 0
I111: 0 | L111: 0 | O111: 0
I112: 0 | L112: 0 | O112: 0
I113: 0 | L113: 0 | O113: 0
I114: 0 | L114: 0 | O114: 0
I115: 0 | L115: 0 | O115: 0
I116: 0 | L116: 0 | O116: 0
I117: 0 | L117: 0 | O117: 0
I118: 0 | L118: 0 | O118: 0
I119: 0 | L119: 0 | O119: 0
I120: 0 | L120: 0 | O120: 0
I121: 0 | L121: 0 | O121: 0
I122: 0 | L122: 0 | O122: 0
I123: 0 | L123: 0 | O123: 0
I124: 0 | L124: 0 | O124: 0
I125: 0 | L125: 0 | O125: 0
I126: 0 | L126: 0 | O126: 0
I127: 0 | L127: 0 | O127: 0
I128: 0 | L128: 0 | O128: 0
I129: 0 | L129: 0 | O129: 0
I130: 0 | L130: 0 | O130: 0
I131: 0 | L131: 0 | O131: 0
I132: 0 | L132: 0 | O132: 0
I133: 0 | L133: 0 | O133: 0
I134: 0 | L134: 0 | O134: 0
I135: 0 | L135: 0 | O135: 0
I136: 0 | L136: 0 | O136: 0
I137: 0 | L137: 0 | O137: 0
I138: 0 | L138: 0 | O138: 0
I139: 0 | L139: 0 | O139: 0
I140: 0 | L140: 0 | O140: 0
I141: 0 | L141: 0 | O141: =IF(K141="Yes",H141*1.6,H141) -> 0
I142: 0 | L142: =IF(O142>=F142,F142,IF(O142<F142,O142)) -> 0 | O142: 0
I143: 0 | L143: 0 | M143: =IF(K143="Yes",L143/F143,H143/F143) ->  | O143: 0
I144: 0 | L144: 0 | O144: 0
I145: 0 | L145: 0 | O145: 0
I146: 0 | L146: 0 | O146: 0
I147: 0 | L147: 0 | O147: 0
I148: 0 | L148: 0 | O148: 0
I149: 0 | L149: 0 | O149: 0
I150: 0 | L150: 0 | O150: 0
I151: 0 | L151: 0 | O151: 0
I152: 0 | L152: 0 | O152: 0
I153: =SUM(G153:H153) -> 0 | L153: 0 | O153: 0
I154: 0 | L154: 0 | O154: 0
I155: 0 | L155: 0 | O155: 0
I156: 0 | L156: 0 | O156: 0
I157: 0 | L157: 0 | O157: 0
I158: 0 | L158: 0 | O158: 0
I159: 0 | L159: 0 | O159: 0
I160: 0 | L160: 0 | O160: 0
I161: 0 | L161: 0 | O161: 0
I162: 0 | L162: 0 | O162: 0
I163: 0 | L163: 0 | O163: 0
I164: 0 | L164: 0 | O164: 0
I165: 0 | L165: 0 | O165: 0
I166: 0 | L166: 0 | O166: 0
I167: 0 | L167: 0 | O167: 0
I168: 0 | L168: 0 | O168: 0
I169: 0 | L169: 0 | O169: 0
I170: 0 | L170: 0 | O170: 0
I171: 0 | L171: 0 | O171: 0
I172: 0 | L172: 0 | O172: 0
I173: 0 | L173: 0 | O173: 0
I174: 0 | L174: 0 | O174: 0
I175: 0 | L175: 0 | O175: 0
I176: 0 | L176: 0 | O176: 0
I177: 0 | L177: 0 | O177: 0
I178: 0 | L178: 0 | O178: 0
I179: 0 | L179: 0 | O179: 0
I180: 0 | L180: 0 | O180: 0
I181: 0 | L181: 0 | O181: 0
I182: 0 | L182: 0 | O182: 0
I183: 0 | L183: 0 | O183: 0
I184: 0 | L184: 0 | O184: 0
I185: 0 | L185: 0 | O185: 0
I186: 0 | L186: 0 | O186: 0
I187: 0 | L187: 0 | O187: 0
I188: 0 | L188: 0 | O188: 0
I189: 0 | L189: 0 | O189: 0
I190: 0 | L190: 0 | O190: 0
I191: 0 | L191: 0 | O191: 0
I192: 0 | L192: 0 | O192: 0
I193: 0 | L193: 0 | O193: 0
I194: 0 | L194: 0 | O194: 0
I195: 0 | L195: 0 | O195: 0
I196: 0 | L196: 0 | O196: 0
I197: 0 | L197: 0 | O197: 0
I198: 0 | L198: 0 | O198: 0
I199: 0 | L199: 0 | O199: 0
I200: 0 | L200: 0 | O200: 0
I201: 0 | L201: 0 | O201: 0
I202: 0 | L202: 0 | O202: 0
I203: 0 | L203: 0 | O203: 0
I204: 0 | L204: 0 | O204: 0
I205: 0 | L205: 0 | O205: =IF(K205="Yes",H205*1.6,H205) -> 0
I206: 0 | L206: =IF(O206>=F206,F206,IF(O206<F206,O206)) -> 0 | O206: 0
I207: 0 | L207: 0 | M207: =IF(K207="Yes",L207/F207,H207/F207) ->  | O207: 0
I208: 0 | L208: 0 | O208: 0
I209: 0 | L209: 0 | O209: 0
I210: 0 | L210: 0 | O210: 0
I211: 0 | L211: 0 | O211: 0
I212: 0 | L212: 0 | O212: 0
I213: 0 | L213: 0 | O213: 0
I214: 0 | L214: 0 | O214: 0
I215: 0 | L215: 0 | O215: 0
I216: 0 | L216: 0 | O216: 0
I217: =SUM(G217:H217) -> 0 | L217: 0 | O217: 0
I218: 0 | L218: 0 | O218: 0
I219: 0 | L219: 0 | O219: 0
I220: 0 | L220: 0 | O220: 0
I221: 0 | L221: 0 | O221: 0
I222: 0 | L222: 0 | O222: 0
I223: 0 | L223: 0 | O223: 0
... 115 more rows

Sheet 35% and Above Low-Income
E1: School Division: | G1: ='Narrative & Detail Budget'!$A$15 -> ALBEMARLE COUNTY PUBLIC SCHOOLS | M1: Division Number: | P1: ='Narrative & Detail Budget'!$I$15 -> 2
A2: Q. REQUIRED AND ALLOWABLE SET-ASIDES FOR DIVISIONS OPERATING TITLE I, PART A, BASIC PROGRAMS
A4: DIVISION LEVEL: IMPROVEMENT ACTIVITIES (Optional for Divisions with Comprehensive Support and Improvement and Targeted Support and Improvement) | K4: A | N4: B
A5: Up to 5 percent may be set aside for divisions to provide financial incentives and rewards to teachers who serve in schools identified for comprehensive support and improvement or targeted support and improvement activities for the purposes of attracting and retaining qualified and effective teachers.
A6: Five percent of the total allocation representing the maximum allowable set-aside for Comprehensive Support and Improvement and Targeted Support and Improvement | N6: =SUM(('Narrative & Detail Budget'!N47)*0.05) -> 74749.4
A7: Indicate amount of set-aside for each category, if applicable:
C8: Set-Aside for Teacher Incentives and Rewards Comprehensive | K8: 0
C9: Set-Aside for Teacher Incentives and Rewards Targeted | K9: 0
K10: 0
C11: Total Amount Set-Aside for Comprehensive Support and Improvement and Targeted Support and Improvement | N11: =SUM(K8:M9) -> 0
A12: DIVISION LEVEL: PROGRAM ADMINISTRATION
B13: (1000) Personal Services - Nonsalary Differential | N13: 81091
B14: (1000) Personal Services - Salary Differential | N14: 0
B15: (2000) Employee Benefits (Fixed Charges) | N15: 29938
B16: (3000) Purchased/Contracted Services
B17: (4000) Internal Services | N17: 0
B18: (4000) Other Charges | N18: 0
B19: (5000) Other Charges | N19: 0
B20: (6000) Materials and Supplies | N20: 500
B21: (8000) Capital Outlay | N21: 0
A22: Initiatives
B23: Title I Early Childhood Program | N23: 205503
B24: Private School Services (as necessary; not applicable for bypass divisions) These funds are in addition to school-level allocations for private school services. | N24: =ROUND(Z53*SUM(K26),2) -> 9216.94
A25: Parent and Family Engagement (Required if allocation is $500,000 or more)
B26: Amount of school division allocation ESEA funds (from Page 2): | K26: =SUM('Narrative & Detail Budget'!N47) -> 1494988
B27: 1 percent of allocation (This amount is calculated if school division receives $500,000 or more from Title I, Part A.) | K27: =ROUND(IF(K26>499999.99,0.01*K26,0),2) -> 14949.88 | N27: =K27 -> 14949.88
B28: 90 percent of 1 percent must be used at the school level | K28: =ROUND(0.9*SUM(K27),2) -> 13454.89
B29: 10 percent of 1 percent is set aside by the school division for parent and family engagement initiatives | K29: =ROUND(0.1*SUM($K$27),2) -> 1494.99
B30: Additional Parent and Family Engagement Funds | K30: 0
B31: Has the required parent and family engagement set aside been met? | K31: =IF(SUM('Budget Summary'!G44:K44)+(Transferability!D58)+Transferability!E58>=SUM(K28),"Yes","No - please review your entries.") -> Yes
A32: Homeless (as necessary based on needs identified on homeless tab, question 2) | N32: 92297
A33: Foster Care (as necessary) | N33: 0
A34: Neglected/Delinquent (as necessary) | N34: 0
A35: School Division Set-Asides TOTAL (Feeds Box A on Allocation to Eligible Schools Page) | N35: =K30+SUM(N11:P34) -> 433495.82
A36: Page 43
D37: School Division: | G37: ='Narrative & Detail Budget'!$A$15 -> ALBEMARLE COUNTY PUBLIC SCHOOLS | M37: Division Number: | P37: ='Narrative & Detail Budget'!$I$15 -> 2
A38: TITLE I, PART A, ALLOCATION TO ELIGIBLE SCHOOLS
H39: Low-Income Factor
H40: 35 percent and Above
A41: A. | I41: B.
A42: Division’s Title I Allocation : | F42: =SUM('Narrative & Detail Budget'!N47) -> 1494988
I43: *PER PUPIL EXPENDITURE CALCULATION
A44: Minus Set-Asides (if applicable): | F44: =$N$35 -> 433495.82 | I44: Step 1:
I45: =$F$46 -> 1061492.18 | L45: ¸ | M45: =SUM(O53) -> 1612 | P45: = | Q45: =IF(ISERROR(I45/M45),0,I45/M45) -> 658.4939082
A46: Amount for Distribution to Schools: | F46: =SUM(F42)-SUM(F44) -> 1061492.18 | I46: Amount for Distribution to Schools | M46: Low-Income Pupils in Public Schools Served | Q46: Per Pupil Expenditure (PPE)
A49: Divisionwide Average From Low-Income Families | G49: ='Program Requirements'!M280 -> 0.326273852
A51: C. (1) | D51: (2) | E51: (3) | F51: (4) | G51: (5) | H51: (6) | I51: (7) | J51: (8) | K51: (9) | L51: (10) | M51: (11) | N51: (12) | O51: (13) | P51: (14) | R51: (15) | T51: (16) | V51: (17) | W51: (18) | Y51: (19)
A52: List of schools from highest poverty to lowest | D52: Is School Served? Yes or No | E52: Grade Span of School | F52: Targeted Assistance School? Yes or No | G52: Schoolwide Program School? Yes or No | H52: Comprehensive Support and improvement? Yes or No | I52: Targeted Support and Improvement? Yes or No | J52: Number of Title I, Part A FTE Teachers funded with 2020-2021 funds | K52: Number of Title I, Part A FTE Teachers funded with Prior Year funds | L52: Number of Title I, Part A FTE Para-professionals funded with 2020-2021 funds | M52: Number of Title I, Part A FTE Para-professionals funded with Prior Year funds | N52: Low-Income Private School Membership | O52: Low-Income Public School Membership | P52: Percent Low-Income | Q52: Minimum School Allocation | S52: ="Distribution Balance: "&+SUM(F46)&" from Box A" -> Distribution Balance: 1061492.18 from Box A | U52: School Reallocation Amount | W52: School Allocation Total (Cols. 12 and 13) | Y52: Adjusted PPE
A53: TOTALS FOR DIVISION | J53: =SUM(J55:J254) -> 13.5 | K53: 1.5 | L53: 0 | M53: 0 | N53: 10 | O53: 1612 | Q53: =SUM(Q55:R254) -> 1061492.18 | S53: =F46 -> 1061492.18 | U53: =SUM(U55:V254) -> 0 | W53: =SUM(W55:X254) -> 1061492.18 | Z53: =SUM(N53)/(N53+O53) -> 0.006165228113
K54: Yes | L54: No | S54: Balance to Reallocate | W54: =SUM(F46-W53) -> 0
A55: =IF(ISBLANK('Program Requirements'!A78),"",('Program Requirements'!A78)) -> Mary Carr Greer Elementary | E55: =IF(ISBLANK('Program Requirements'!D78),"",'Program Requirements'!D78) -> PK - 05 | N55: =IF(D55="Yes",('Program Requirements'!G78),"") ->  | O55: =IF(D55="Yes",('Program Requirements'!L78),"") ->  | P55: =IF(ISBLANK('Program Requirements'!M78),"",'Program Requirements'!M78) -> 0.7465618861 | Q55: =IF(D55="Yes",(O55)*$Q$45,0) -> 0 | S55: =F46-Q55 -> 1061492.18 | W55: =IF(SUM(U55)=0,SUM(Q55),IF(SUM(Q55,U55)=U55,"ERROR",SUM(Q55,U55))) -> 0 | Y55: =IF(D55="Yes",SUM(W55)/SUM(O55),"") -> 
A56: =IF(ISBLANK('Program Requirements'!A78),"",('Program Requirements'!A78)) -> Mary Carr Greer Elementary | D56: Yes | E56: =IF(ISBLANK('Program Requirements'!D78),"",'Program Requirements'!D78) -> PK - 05 | F56: Yes | H56: No | I56: No | J56: 3 | K56: 0.5 | N56: =IF(D56="Yes",('Program Requirements'!G78),"") -> 5 | O56: =IF(D56="Yes",('Program Requirements'!L78),"") -> 380 | P56: =IF(ISBLANK('Program Requirements'!M78),"",'Program Requirements'!M78) -> 0.7465618861 | Q56: =IF(D56="Yes",(O56)*$Q$45,0) -> 250227.6851 | S56: =F46-Q56 -> 811264.4949 | W56: 250227.6851 | Y56: 658.4939082
A57: =IF(ISBLANK('Program Requirements'!A79),"",('Program Requirements'!A79)) -> Woodbrook Elementary | D57: Yes | E57: =IF(ISBLANK('Program Requirements'!D79),"",'Program Requirements'!D79) -> PK - 05 | F57: Yes | H57: No | I57: No | J57: 3 | K57: 0.5 | N57: =IF(D57="Yes",('Program Requirements'!G79),"") -> 2 | O57: =IF(D57="Yes",('Program Requirements'!L79),"") -> 391 | P57: =IF(ISBLANK('Program Requirements'!M79),"",'Program Requirements'!M79) -> 0.6683760684 | Q57: =IF(D57="Yes",(O57)*$Q$45,0) -> 257471.1181 | S57: =S56-Q57 -> 553793.3768 | W57: 257471.1181 | Y57: 658.4939082
A58: =IF(ISBLANK('Program Requirements'!A80),"",('Program Requirements'!A80)) -> Jack Jouett Middle | E58: =IF(ISBLANK('Program Requirements'!D80),"",'Program Requirements'!D80) -> 06 - 08 | N58: =IF(D58="Yes",('Program Requirements'!G80),"") ->  | O58: =IF(D58="Yes",('Program Requirements'!L80),"") ->  | P58: =IF(ISBLANK('Program Requirements'!M80),"",'Program Requirements'!M80) -> 0.5794392523 | Q58: 0 | S58: =S57-Q58 -> 553793.3768 | W58: 0
A59: =IF(ISBLANK('Program Requirements'!A81),"",('Program Requirements'!A81)) -> Agnor-Hurt Elementary | D59: Yes | E59: =IF(ISBLANK('Program Requirements'!D81),"",'Program Requirements'!D81) -> PK - 05 | F59: Yes | H59: No | I59: No | J59: 2.5 | N59: =IF(D59="Yes",('Program Requirements'!G81),"") -> 2 | O59: =IF(D59="Yes",('Program Requirements'!L81),"") -> 270 | P59: =IF(ISBLANK('Program Requirements'!M81),"",'Program Requirements'!M81) -> 0.5590062112 | Q59: 177793.3552 | S59: =S58-Q59 -> 376000.0216 | W59: 177793.3552 | Y59: 658.4939082
A60: =IF(ISBLANK('Program Requirements'!A82),"",('Program Requirements'!A82)) -> Red Hill Elementary | D60: Yes | E60: =IF(ISBLANK('Program Requirements'!D82),"",'Program Requirements'!D82) -> PK - 05 | F60: Yes | H60: No | I60: No | J60: 0.75 | K60: 0.25 | N60: =IF(D60="Yes",('Program Requirements'!G82),"") -> 0 | O60: =IF(D60="Yes",('Program Requirements'!L82),"") -> 111 | P60: =IF(ISBLANK('Program Requirements'!M82),"",'Program Requirements'!M82) -> 0.5388349515 | Q60: 73092.82381 | S60: 302907.1978 | W60: 73092.82381 | Y60: 658.4939082
A61: =IF(ISBLANK('Program Requirements'!A83),"",('Program Requirements'!A83)) -> Scottsville Elementary | D61: Yes | E61: =IF(ISBLANK('Program Requirements'!D83),"",'Program Requirements'!D83) -> PK - 05 | F61: Yes | H61: No | I61: No | J61: 0.75 | K61: 0.25 | N61: =IF(D61="Yes",('Program Requirements'!G83),"") -> 0 | O61: =IF(D61="Yes",('Program Requirements'!L83),"") -> 107 | P61: =IF(ISBLANK('Program Requirements'!M83),"",'Program Requirements'!M83) -> 0.4692982456 | Q61: 70458.84818 | S61: 232448.3496 | W61: 70458.84818 | Y61: 658.4939082
A62: =IF(ISBLANK('Program Requirements'!A84),"",('Program Requirements'!A84)) -> Paul H. Cale Elementary | D62: Yes | E62: =IF(ISBLANK('Program Requirements'!D84),"",'Program Requirements'!D84) -> PK - 05 | F62: Yes | H62: No | I62: No | J62: 3.5 | N62: =IF(D62="Yes",('Program Requirements'!G84),"") -> 1 | O62: =IF(D62="Yes",('Program Requirements'!L84),"") -> 353 | P62: =IF(ISBLANK('Program Requirements'!M84),"",'Program Requirements'!M84) -> 0.4531450578 | Q62: 232448.3496 | S62: 0 | W62: 232448.3496 | Y62: 658.4939082
A63: =IF(ISBLANK('Program Requirements'!A85),"",('Program Requirements'!A85)) -> Jackson P. Burley Middle | E63: =IF(ISBLANK('Program Requirements'!D85),"",'Program Requirements'!D85) -> 06 - 08 | N63: =IF(D63="Yes",('Program Requirements'!G85),"") ->  | O63: =IF(D63="Yes",('Program Requirements'!L85),"") ->  | P63: =IF(ISBLANK('Program Requirements'!M85),"",'Program Requirements'!M85) -> 0.441025641 | Q63: 0 | S63: 0 | W63: 0
A64: =IF(ISBLANK('Program Requirements'!A86),"",('Program Requirements'!A86)) -> Leslie H. Walton Middle | E64: =IF(ISBLANK('Program Requirements'!D86),"",'Program Requirements'!D86) -> 06 - 08 | N64: =IF(D64="Yes",('Program Requirements'!G86),"") ->  | O64: =IF(D64="Yes",('Program Requirements'!L86),"") ->  | P64: =IF(ISBLANK('Program Requirements'!M86),"",'Program Requirements'!M86) -> 0.4277286136 | Q64: 0 | S64: 0 | W64: 0
A65: =IF(ISBLANK('Program Requirements'!A87),"",('Program Requirements'!A87)) -> Monticello High | E65: =IF(ISBLANK('Program Requirements'!D87),"",'Program Requirements'!D87) -> 09 - 12 | N65: =IF(D65="Yes",('Program Requirements'!G87),"") ->  | O65: =IF(D65="Yes",('Program Requirements'!L87),"") ->  | P65: =IF(ISBLANK('Program Requirements'!M87),"",'Program Requirements'!M87) -> 0.3336120401 | Q65: 0 | S65: 0 | W65: 0
A66: =IF(ISBLANK('Program Requirements'!A88),"",('Program Requirements'!A88)) -> Albemarle High | E66: =IF(ISBLANK('Program Requirements'!D88),"",'Program Requirements'!D88) -> 09 - 12 | N66: =IF(D66="Yes",('Program Requirements'!G88),"") ->  | O66: =IF(D66="Yes",('Program Requirements'!L88),"") ->  | P66: =IF(ISBLANK('Program Requirements'!M88),"",'Program Requirements'!M88) -> 0.3246073298 | Q66: 0 | S66: 0 | W66: 0
A67: =IF(ISBLANK('Program Requirements'!A89),"",('Program Requirements'!A89)) -> Stony Point Elementary | E67: =IF(ISBLANK('Program Requirements'!D89),"",'Program Requirements'!D89) -> KG - 05 | N67: =IF(D67="Yes",('Program Requirements'!G89),"") ->  | O67: =IF(D67="Yes",('Program Requirements'!L89),"") ->  | P67: =IF(ISBLANK('Program Requirements'!M89),"",'Program Requirements'!M89) -> 0.3214285714 | Q67: 0 | S67: 0 | W67: 0
A68: =IF(ISBLANK('Program Requirements'!A90),"",('Program Requirements'!A90)) -> Crozet Elementary | E68: =IF(ISBLANK('Program Requirements'!D90),"",'Program Requirements'!D90) -> KG - 05 | N68: =IF(D68="Yes",('Program Requirements'!G90),"") ->  | O68: =IF(D68="Yes",('Program Requirements'!L90),"") ->  | P68: =IF(ISBLANK('Program Requirements'!M90),"",'Program Requirements'!M90) -> 0.306122449 | Q68: 0 | S68: 0 | W68: 0
A69: =IF(ISBLANK('Program Requirements'!A91),"",('Program Requirements'!A91)) -> Stone Robinson Elementary | E69: =IF(ISBLANK('Program Requirements'!D91),"",'Program Requirements'!D91) -> PK - 05 | N69: =IF(D69="Yes",('Program Requirements'!G91),"") ->  | O69: =IF(D69="Yes",('Program Requirements'!L91),"") ->  | P69: =IF(ISBLANK('Program Requirements'!M91),"",'Program Requirements'!M91) -> 0.2915851272 | Q69: 0 | S69: 0 | W69: 0
A70: =IF(ISBLANK('Program Requirements'!A92),"",('Program Requirements'!A92)) -> Baker-Butler Elementary | E70: =IF(ISBLANK('Program Requirements'!D92),"",'Program Requirements'!D92) -> PK - 05 | N70: =IF(D70="Yes",('Program Requirements'!G92),"") ->  | O70: =IF(D70="Yes",('Program Requirements'!L92),"") ->  | P70: =IF(ISBLANK('Program Requirements'!M92),"",'Program Requirements'!M92) -> 0.2673559823 | Q70: 0 | S70: 0 | W70: 0
A71: =IF(ISBLANK('Program Requirements'!A93),"",('Program Requirements'!A93)) -> Murray High | E71: =IF(ISBLANK('Program Requirements'!D93),"",'Program Requirements'!D93) -> 09 - 12 | N71: =IF(D71="Yes",('Program Requirements'!G93),"") ->  | O71: =IF(D71="Yes",('Program Requirements'!L93),"") ->  | P71: =IF(ISBLANK('Program Requirements'!M93),"",'Program Requirements'!M93) -> 0.2592592593 | Q71: 0 | S71: 0 | W71: 0
A72: =IF(ISBLANK('Program Requirements'!A94),"",('Program Requirements'!A94)) -> Albemarle County Community Public Charter School | E72: =IF(ISBLANK('Program Requirements'!D94),"",'Program Requirements'!D94) -> 06 - 08 | N72: =IF(D72="Yes",('Program Requirements'!G94),"") ->  | O72: =IF(D72="Yes",('Program Requirements'!L94),"") ->  | P72: =IF(ISBLANK('Program Requirements'!M94),"",'Program Requirements'!M94) -> 0.224137931 | Q72: 0 | S72: 0 | W72: 0
A73: =IF(ISBLANK('Program Requirements'!A95),"",('Program Requirements'!A95)) -> Mortimer Y. Sutherland Middle | E73: =IF(ISBLANK('Program Requirements'!D95),"",'Program Requirements'!D95) -> 06 - 08 | N73: =IF(D73="Yes",('Program Requirements'!G95),"") ->  | O73: =IF(D73="Yes",('Program Requirements'!L95),"") ->  | P73: =IF(ISBLANK('Program Requirements'!M95),"",'Program Requirements'!M95) -> 0.2201680672 | Q73: 0 | S73: 0 | W73: 0
A74: =IF(ISBLANK('Program Requirements'!A96),"",('Program Requirements'!A96)) -> Broadus Wood Elementary | E74: =IF(ISBLANK('Program Requirements'!D96),"",'Program Requirements'!D96) -> PK - 05 | N74: =IF(D74="Yes",('Program Requirements'!G96),"") ->  | O74: =IF(D74="Yes",('Program Requirements'!L96),"") ->  | P74: =IF(ISBLANK('Program Requirements'!M96),"",'Program Requirements'!M96) -> 0.1909722222 | Q74: 0 | S74: 0 | W74: 0
A75: =IF(ISBLANK('Program Requirements'!A97),"",('Program Requirements'!A97)) -> Hollymead Elementary | E75: =IF(ISBLANK('Program Requirements'!D97),"",'Program Requirements'!D97) -> PK - 05 | N75: =IF(D75="Yes",('Program Requirements'!G97),"") ->  | O75: =IF(D75="Yes",('Program Requirements'!L97),"") ->  | P75: =IF(ISBLANK('Program Requirements'!M97),"",'Program Requirements'!M97) -> 0.1744186047 | Q75: 0 | S75: 0 | W75: 0
A76: =IF(ISBLANK('Program Requirements'!A98),"",('Program Requirements'!A98)) -> Joseph T. Henley Middle | E76: =IF(ISBLANK('Program Requirements'!D98),"",'Program Requirements'!D98) -> 06 - 08 | N76: =IF(D76="Yes",('Program Requirements'!G98),"") ->  | O76: =IF(D76="Yes",('Program Requirements'!L98),"") ->  | P76: =IF(ISBLANK('Program Requirements'!M98),"",'Program Requirements'!M98) -> 0.1489594743 | Q76: 0 | S76: 0 | W76: 0
A77: =IF(ISBLANK('Program Requirements'!A99),"",('Program Requirements'!A99)) -> Western Albemarle High | E77: =IF(ISBLANK('Program Requirements'!D99),"",'Program Requirements'!D99) -> 09 - 12 | N77: =IF(D77="Yes",('Program Requirements'!G99),"") ->  | O77: =IF(D77="Yes",('Program Requirements'!L99),"") ->  | P77: =IF(ISBLANK('Program Requirements'!M99),"",'Program Requirements'!M99) -> 0.1268781302 | Q77: 0 | S77: 0 | W77: 0
A78: =IF(ISBLANK('Program Requirements'!A100),"",('Program Requirements'!A100)) -> Brownsville Elementary | E78: =IF(ISBLANK('Program Requirements'!D100),"",'Program Requirements'!D100) -> PK - 05 | N78: =IF(D78="Yes",('Program Requirements'!G100),"") ->  | O78: =IF(D78="Yes",('Program Requirements'!L100),"") ->  | P78: =IF(ISBLANK('Program Requirements'!M100),"",'Program Requirements'!M100) -> 0.1225433526 | Q78: 0 | S78: 0 | W78: 0
A79: =IF(ISBLANK('Program Requirements'!A101),"",('Program Requirements'!A101)) -> Meriwether Lewis Elementary | E79: =IF(ISBLANK('Program Requirements'!D101),"",'Program Requirements'!D101) -> KG - 05 | N79: =IF(D79="Yes",('Program Requirements'!G101),"") ->  | O79: =IF(D79="Yes",('Program Requirements'!L101),"") ->  | P79: =IF(ISBLANK('Program Requirements'!M101),"",'Program Requirements'!M101) -> 0.12 | Q79: 0 | S79: 0 | W79: 0
A80: =IF(ISBLANK('Program Requirements'!A102),"",('Program Requirements'!A102)) -> Virginia L. Murray Elementary | E80: =IF(ISBLANK('Program Requirements'!D102),"",'Program Requirements'!D102) -> PK - 05 | N80: =IF(D80="Yes",('Program Requirements'!G102),"") ->  | O80: =IF(D80="Yes",('Program Requirements'!L102),"") ->  | P80: =IF(ISBLANK('Program Requirements'!M102),"",'Program Requirements'!M102) -> 0.06870229008 | Q80: 0 | S80: 0 | W80: 0
A81: =IF(ISBLANK('Program Requirements'!A103),"",('Program Requirements'!A103)) ->  | E81: =IF(ISBLANK('Program Requirements'!D103),"",'Program Requirements'!D103) ->  | N81: =IF(D81="Yes",('Program Requirements'!G103),"") ->  | O81: =IF(D81="Yes",('Program Requirements'!L103),"") ->  | P81: =IF(ISBLANK('Program Requirements'!M103),"",'Program Requirements'!M103) ->  | Q81: 0 | S81: 0 | W81: 0
A82: =IF(ISBLANK('Program Requirements'!A104),"",('Program Requirements'!A104)) ->  | E82: =IF(ISBLANK('Program Requirements'!D104),"",'Program Requirements'!D104) ->  | N82: =IF(D82="Yes",('Program Requirements'!G104),"") ->  | O82: =IF(D82="Yes",('Program Requirements'!L104),"") ->  | P82: =IF(ISBLANK('Program Requirements'!M104),"",'Program Requirements'!M104) ->  | Q82: 0 | S82: 0 | W82: 0
A83: =IF(ISBLANK('Program Requirements'!A105),"",('Program Requirements'!A105)) ->  | E83: =IF(ISBLANK('Program Requirements'!D105),"",'Program Requirements'!D105) ->  | N83: =IF(D83="Yes",('Program Requirements'!G105),"") ->  | O83: =IF(D83="Yes",('Program Requirements'!L105),"") ->  | P83: =IF(ISBLANK('Program Requirements'!M105),"",'Program Requirements'!M105) ->  | Q83: 0 | S83: 0 | W83: 0
A84: =IF(ISBLANK('Program Requirements'!A106),"",('Program Requirements'!A106)) ->  | E84: =IF(ISBLANK('Program Requirements'!D106),"",'Program Requirements'!D106) ->  | N84: =IF(D84="Yes",('Program Requirements'!G106),"") ->  | O84: =IF(D84="Yes",('Program Requirements'!L106),"") ->  | P84: =IF(ISBLANK('Program Requirements'!M106),"",'Program Requirements'!M106) ->  | Q84: 0 | S84: 0 | W84: 0
A85: =IF(ISBLANK('Program Requirements'!A107),"",('Program Requirements'!A107)) ->  | E85: =IF(ISBLANK('Program Requirements'!D107),"",'Program Requirements'!D107) ->  | N85: =IF(D85="Yes",('Program Requirements'!G107),"") ->  | O85: =IF(D85="Yes",('Program Requirements'!L107),"") ->  | P85: =IF(ISBLANK('Program Requirements'!M107),"",'Program Requirements'!M107) ->  | Q85: 0 | S85: 0 | W85: 0
A86: =IF(ISBLANK('Program Requirements'!A108),"",('Program Requirements'!A108)) ->  | E86: =IF(ISBLANK('Program Requirements'!D108),"",'Program Requirements'!D108) ->  | N86: =IF(D86="Yes",('Program Requirements'!G108),"") ->  | O86: =IF(D86="Yes",('Program Requirements'!L108),"") ->  | P86: =IF(ISBLANK('Program Requirements'!M108),"",'Program Requirements'!M108) ->  | Q86: 0 | S86: 0 | W86: 0
A87: =IF(ISBLANK('Program Requirements'!A109),"",('Program Requirements'!A109)) ->  | E87: =IF(ISBLANK('Program Requirements'!D109),"",'Program Requirements'!D109) ->  | N87: =IF(D87="Yes",('Program Requirements'!G109),"") ->  | O87: =IF(D87="Yes",('Program Requirements'!L109),"") ->  | P87: =IF(ISBLANK('Program Requirements'!M109),"",'Program Requirements'!M109) ->  | Q87: 0 | S87: 0 | W87: =IF(SUM(U87)=0,SUM(Q87),IF(SUM(Q87,U87)=U87,"ERROR",SUM(Q87,U87))) -> 0
A88: =IF(ISBLANK('Program Requirements'!A110),"",('Program Requirements'!A110)) ->  | E88: =IF(ISBLANK('Program Requirements'!D110),"",'Program Requirements'!D110) ->  | N88: =IF(D88="Yes",('Program Requirements'!G110),"") ->  | O88: =IF(D88="Yes",('Program Requirements'!L110),"") ->  | P88: =IF(ISBLANK('Program Requirements'!M110),"",'Program Requirements'!M110) ->  | Q88: 0 | S88: 0 | W88: 0
A89: =IF(ISBLANK('Program Requirements'!A111),"",('Program Requirements'!A111)) ->  | E89: =IF(ISBLANK('Program Requirements'!D111),"",'Program Requirements'!D111) ->  | N89: =IF(D89="Yes",('Program Requirements'!G111),"") ->  | O89: =IF(D89="Yes",('Program Requirements'!L111),"") ->  | P89: =IF(ISBLANK('Program Requirements'!M111),"",'Program Requirements'!M111) ->  | Q89: 0 | S89: 0 | W89: 0
A90: =IF(ISBLANK('Program Requirements'!A112),"",('Program Requirements'!A112)) ->  | E90: =IF(ISBLANK('Program Requirements'!D112),"",'Program Requirements'!D112) ->  | N90: =IF(D90="Yes",('Program Requirements'!G112),"") ->  | O90: =IF(D90="Yes",('Program Requirements'!L112),"") ->  | P90: =IF(ISBLANK('Program Requirements'!M112),"",'Program Requirements'!M112) ->  | Q90: 0 | S90: 0 | W90: 0
A91: =IF(ISBLANK('Program Requirements'!A113),"",('Program Requirements'!A113)) ->  | E91: =IF(ISBLANK('Program Requirements'!D113),"",'Program Requirements'!D113) ->  | N91: =IF(D91="Yes",('Program Requirements'!G113),"") ->  | O91: =IF(D91="Yes",('Program Requirements'!L113),"") ->  | P91: =IF(ISBLANK('Program Requirements'!M113),"",'Program Requirements'!M113) ->  | Q91: 0 | S91: 0 | W91: 0
A92: =IF(ISBLANK('Program Requirements'!A114),"",('Program Requirements'!A114)) ->  | E92: =IF(ISBLANK('Program Requirements'!D114),"",'Program Requirements'!D114) ->  | N92: =IF(D92="Yes",('Program Requirements'!G114),"") ->  | O92: =IF(D92="Yes",('Program Requirements'!L114),"") ->  | P92: =IF(ISBLANK('Program Requirements'!M114),"",'Program Requirements'!M114) ->  | Q92: 0 | S92: 0 | W92: 0
A93: =IF(ISBLANK('Program Requirements'!A115),"",('Program Requirements'!A115)) ->  | E93: =IF(ISBLANK('Program Requirements'!D115),"",'Program Requirements'!D115) ->  | N93: =IF(D93="Yes",('Program Requirements'!G115),"") ->  | O93: =IF(D93="Yes",('Program Requirements'!L115),"") ->  | P93: =IF(ISBLANK('Program Requirements'!M115),"",'Program Requirements'!M115) ->  | Q93: 0 | S93: 0 | W93: 0
A94: =IF(ISBLANK('Program Requirements'!A116),"",('Program Requirements'!A116)) ->  | E94: =IF(ISBLANK('Program Requirements'!D116),"",'Program Requirements'!D116) ->  | N94: =IF(D94="Yes",('Program Requirements'!G116),"") ->  | O94: =IF(D94="Yes",('Program Requirements'!L116),"") ->  | P94: =IF(ISBLANK('Program Requirements'!M116),"",'Program Requirements'!M116) ->  | Q94: 0 | S94: 0 | W94: 0
A95: =IF(ISBLANK('Program Requirements'!A117),"",('Program Requirements'!A117)) ->  | E95: =IF(ISBLANK('Program Requirements'!D117),"",'Program Requirements'!D117) ->  | N95: =IF(D95="Yes",('Program Requirements'!G117),"") ->  | O95: =IF(D95="Yes",('Program Requirements'!L117),"") ->  | P95: =IF(ISBLANK('Program Requirements'!M117),"",'Program Requirements'!M117) ->  | Q95: 0 | S95: 0 | W95: 0
A96: =IF(ISBLANK('Program Requirements'!A118),"",('Program Requirements'!A118)) ->  | E96: =IF(ISBLANK('Program Requirements'!D118),"",'Program Requirements'!D118) ->  | N96: =IF(D96="Yes",('Program Requirements'!G118),"") ->  | O96: =IF(D96="Yes",('Program Requirements'!L118),"") ->  | P96: =IF(ISBLANK('Program Requirements'!M118),"",'Program Requirements'!M118) ->  | Q96: 0 | S96: 0 | W96: 0
A97: =IF(ISBLANK('Program Requirements'!A119),"",('Program Requirements'!A119)) ->  | E97: =IF(ISBLANK('Program Requirements'!D119),"",'Program Requirements'!D119) ->  | N97: =IF(D97="Yes",('Program Requirements'!G119),"") ->  | O97: =IF(D97="Yes",('Program Requirements'!L119),"") ->  | P97: =IF(ISBLANK('Program Requirements'!M119),"",'Program Requirements'!M119) ->  | Q97: 0 | S97: 0 | W97: 0
A98: =IF(ISBLANK('Program Requirements'!A120),"",('Program Requirements'!A120)) ->  | E98: =IF(ISBLANK('Program Requirements'!D120),"",'Program Requirements'!D120) ->  | N98: =IF(D98="Yes",('Program Requirements'!G120),"") ->  | O98: =IF(D98="Yes",('Program Requirements'!L120),"") ->  | P98: =IF(ISBLANK('Program Requirements'!M120),"",'Program Requirements'!M120) ->  | Q98: 0 | S98: 0 | W98: 0
A99: =IF(ISBLANK('Program Requirements'!A121),"",('Program Requirements'!A121)) ->  | E99: =IF(ISBLANK('Program Requirements'!D121),"",'Program Requirements'!D121) ->  | N99: =IF(D99="Yes",('Program Requirements'!G121),"") ->  | O99: =IF(D99="Yes",('Program Requirements'!L121),"") ->  | P99: =IF(ISBLANK('Program Requirements'!M121),"",'Program Requirements'!M121) ->  | Q99: 0 | S99: 0 | W99: 0
A100: =IF(ISBLANK('Program Requirements'!A122),"",('Program Requirements'!A122)) ->  | E100: =IF(ISBLANK('Program Requirements'!D122),"",'Program Requirements'!D122) ->  | N100: =IF(D100="Yes",('Program Requirements'!G122),"") ->  | O100: =IF(D100="Yes",('Program Requirements'!L122),"") ->  | P100: =IF(ISBLANK('Program Requirements'!M122),"",'Program Requirements'!M122) ->  | Q100: 0 | S100: 0 | W100: 0
A101: =IF(ISBLANK('Program Requirements'!A123),"",('Program Requirements'!A123)) ->  | E101: =IF(ISBLANK('Program Requirements'!D123),"",'Program Requirements'!D123) ->  | N101: =IF(D101="Yes",('Program Requirements'!G123),"") ->  | O101: =IF(D101="Yes",('Program Requirements'!L123),"") ->  | P101: =IF(ISBLANK('Program Requirements'!M123),"",'Program Requirements'!M123) ->  | Q101: 0 | S101: 0 | W101: 0
A102: =IF(ISBLANK('Program Requirements'!A124),"",('Program Requirements'!A124)) ->  | E102: =IF(ISBLANK('Program Requirements'!D124),"",'Program Requirements'!D124) ->  | N102: =IF(D102="Yes",('Program Requirements'!G124),"") ->  | O102: =IF(D102="Yes",('Program Requirements'!L124),"") ->  | P102: =IF(ISBLANK('Program Requirements'!M124),"",'Program Requirements'!M124) ->  | Q102: 0 | S102: 0 | W102: 0
A103: =IF(ISBLANK('Program Requirements'!A125),"",('Program Requirements'!A125)) ->  | E103: =IF(ISBLANK('Program Requirements'!D125),"",'Program Requirements'!D125) ->  | N103: =IF(D103="Yes",('Program Requirements'!G125),"") ->  | O103: =IF(D103="Yes",('Program Requirements'!L125),"") ->  | P103: =IF(ISBLANK('Program Requirements'!M125),"",'Program Requirements'!M125) ->  | Q103: 0 | S103: 0 | W103: 0
A104: =IF(ISBLANK('Program Requirements'!A126),"",('Program Requirements'!A126)) ->  | E104: =IF(ISBLANK('Program Requirements'!D126),"",'Program Requirements'!D126) ->  | N104: =IF(D104="Yes",('Program Requirements'!G126),"") ->  | O104: =IF(D104="Yes",('Program Requirements'!L126),"") ->  | P104: =IF(ISBLANK('Program Requirements'!M126),"",'Program Requirements'!M126) ->  | Q104: 0 | S104: 0 | W104: 0
A105: =IF(ISBLANK('Program Requirements'!A127),"",('Program Requirements'!A127)) ->  | E105: =IF(ISBLANK('Program Requirements'!D127),"",'Program Requirements'!D127) ->  | N105: =IF(D105="Yes",('Program Requirements'!G127),"") ->  | O105: =IF(D105="Yes",('Program Requirements'!L127),"") ->  | P105: =IF(ISBLANK('Program Requirements'!M127),"",'Program Requirements'!M127) ->  | Q105: 0 | S105: 0 | W105: 0
A106: =IF(ISBLANK('Program Requirements'!A128),"",('Program Requirements'!A128)) ->  | E106: =IF(ISBLANK('Program Requirements'!D128),"",'Program Requirements'!D128) ->  | N106: =IF(D106="Yes",('Program Requirements'!G128),"") ->  | O106: =IF(D106="Yes",('Program Requirements'!L128),"") ->  | P106: =IF(ISBLANK('Program Requirements'!M128),"",'Program Requirements'!M128) ->  | Q106: 0 | S106: 0 | W106: 0
A107: =IF(ISBLANK('Program Requirements'!A129),"",('Program Requirements'!A129)) ->  | E107: =IF(ISBLANK('Program Requirements'!D129),"",'Program Requirements'!D129) ->  | N107: =IF(D107="Yes",('Program Requirements'!G129),"") ->  | O107: =IF(D107="Yes",('Program Requirements'!L129),"") ->  | P107: =IF(ISBLANK('Program Requirements'!M129),"",'Program Requirements'!M129) ->  | Q107: 0 | S107: 0 | W107: 0
A108: =IF(ISBLANK('Program Requirements'!A130),"",('Program Requirements'!A130)) ->  | E108: =IF(ISBLANK('Program Requirements'!D130),"",'Program Requirements'!D130) ->  | N108: =IF(D108="Yes",('Program Requirements'!G130),"") ->  | O108: =IF(D108="Yes",('Program Requirements'!L130),"") ->  | P108: =IF(ISBLANK('Program Requirements'!M130),"",'Program Requirements'!M130) ->  | Q108: 0 | S108: 0 | W108: 0
A109: =IF(ISBLANK('Program Requirements'!A131),"",('Program Requirements'!A131)) ->  | E109: =IF(ISBLANK('Program Requirements'!D131),"",'Program Requirements'!D131) ->  | N109: =IF(D109="Yes",('Program Requirements'!G131),"") ->  | O109: =IF(D109="Yes",('Program Requirements'!L131),"") ->  | P109: =IF(ISBLANK('Program Requirements'!M131),"",'Program Requirements'!M131) ->  | Q109: 0 | S109: 0 | W109: 0
A110: =IF(ISBLANK('Program Requirements'!A132),"",('Program Requirements'!A132)) ->  | E110: =IF(ISBLANK('Program Requirements'!D132),"",'Program Requirements'!D132) ->  | N110: =IF(D110="Yes",('Program Requirements'!G132),"") ->  | O110: =IF(D110="Yes",('Program Requirements'!L132),"") ->  | P110: =IF(ISBLANK('Program Requirements'!M132),"",'Program Requirements'!M132) ->  | Q110: 0 | S110: 0 | W110: 0
A111: =IF(ISBLANK('Program Requirements'!A133),"",('Program Requirements'!A133)) ->  | E111: =IF(ISBLANK('Program Requirements'!D133),"",'Program Requirements'!D133) ->  | N111: =IF(D111="Yes",('Program Requirements'!G133),"") ->  | O111: =IF(D111="Yes",('Program Requirements'!L133),"") ->  | P111: =IF(ISBLANK('Program Requirements'!M133),"",'Program Requirements'!M133) ->  | Q111: 0 | S111: 0 | W111: 0
A112: =IF(ISBLANK('Program Requirements'!A134),"",('Program Requirements'!A134)) ->  | E112: =IF(ISBLANK('Program Requirements'!D134),"",'Program Requirements'!D134) ->  | N112: =IF(D112="Yes",('Program Requirements'!G134),"") ->  | O112: =IF(D112="Yes",('Program Requirements'!L134),"") ->  | P112: =IF(ISBLANK('Program Requirements'!M134),"",'Program Requirements'!M134) ->  | Q112: 0 | S112: 0 | W112: 0
A113: =IF(ISBLANK('Program Requirements'!A135),"",('Program Requirements'!A135)) ->  | E113: =IF(ISBLANK('Program Requirements'!D135),"",'Program Requirements'!D135) ->  | N113: =IF(D113="Yes",('Program Requirements'!G135),"") ->  | O113: =IF(D113="Yes",('Program Requirements'!L135),"") ->  | P113: =IF(ISBLANK('Program Requirements'!M135),"",'Program Requirements'!M135) ->  | Q113: 0 | S113: 0 | W113: 0
A114: =IF(ISBLANK('Program Requirements'!A136),"",('Program Requirements'!A136)) ->  | E114: =IF(ISBLANK('Program Requirements'!D136),"",'Program Requirements'!D136) ->  | N114: =IF(D114="Yes",('Program Requirements'!G136),"") ->  | O114: =IF(D114="Yes",('Program Requirements'!L136),"") ->  | P114: =IF(ISBLANK('Program Requirements'!M136),"",'Program Requirements'!M136) ->  | Q114: 0 | S114: 0 | W114: 0
A115: =IF(ISBLANK('Program Requirements'!A137),"",('Program Requirements'!A137)) ->  | E115: =IF(ISBLANK('Program Requirements'!D137),"",'Program Requirements'!D137) ->  | N115: =IF(D115="Yes",('Program Requirements'!G137),"") ->  | O115: =IF(D115="Yes",('Program Requirements'!L137),"") ->  | P115: =IF(ISBLANK('Program Requirements'!M137),"",'Program Requirements'!M137) ->  | Q115: 0 | S115: 0 | W115: 0
A116: =IF(ISBLANK('Program Requirements'!A138),"",('Program Requirements'!A138)) ->  | E116: =IF(ISBLANK('Program Requirements'!D138),"",'Program Requirements'!D138) ->  | N116: =IF(D116="Yes",('Program Requirements'!G138),"") ->  | O116: =IF(D116="Yes",('Program Requirements'!L138),"") ->  | P116: =IF(ISBLANK('Program Requirements'!M138),"",'Program Requirements'!M138) ->  | Q116: 0 | S116: 0 | W116: 0
A117: =IF(ISBLANK('Program Requirements'!A139),"",('Program Requirements'!A139)) ->  | E117: =IF(ISBLANK('Program Requirements'!D139),"",'Program Requirements'!D139) ->  | N117: =IF(D117="Yes",('Program Requirements'!G139),"") ->  | O117: =IF(D117="Yes",('Program Requirements'!L139),"") ->  | P117: =IF(ISBLANK('Program Requirements'!M139),"",'Program Requirements'!M139) ->  | Q117: 0 | S117: 0 | W117: 0
A118: =IF(ISBLANK('Program Requirements'!A140),"",('Program Requirements'!A140)) ->  | E118: =IF(ISBLANK('Program Requirements'!D140),"",'Program Requirements'!D140) ->  | N118: =IF(D118="Yes",('Program Requirements'!G140),"") ->  | O118: =IF(D118="Yes",('Program Requirements'!L140),"") ->  | P118: =IF(ISBLANK('Program Requirements'!M140),"",'Program Requirements'!M140) ->  | Q118: 0 | S118: 0 | W118: 0
A119: =IF(ISBLANK('Program Requirements'!A141),"",('Program Requirements'!A141)) ->  | E119: =IF(ISBLANK('Program Requirements'!D141),"",'Program Requirements'!D141) ->  | N119: =IF(D119="Yes",('Program Requirements'!G141),"") ->  | O119: =IF(D119="Yes",('Program Requirements'!L141),"") ->  | P119: =IF(ISBLANK('Program Requirements'!M141),"",'Program Requirements'!M141) ->  | Q119: =IF(D119="Yes",(O119)*$Q$45,0) -> 0 | S119: 0 | W119: 0 | Y119: =IF(D119="Yes",SUM(W119)/SUM(O119),"") -> 
A120: =IF(ISBLANK('Program Requirements'!A142),"",('Program Requirements'!A142)) ->  | E120: =IF(ISBLANK('Program Requirements'!D142),"",'Program Requirements'!D142) ->  | N120: =IF(D120="Yes",('Program Requirements'!G142),"") ->  | O120: =IF(D120="Yes",('Program Requirements'!L142),"") ->  | P120: =IF(ISBLANK('Program Requirements'!M142),"",'Program Requirements'!M142) ->  | Q120: 0 | S120: 0 | W120: 0
A121: =IF(ISBLANK('Program Requirements'!A143),"",('Program Requirements'!A143)) ->  | E121: =IF(ISBLANK('Program Requirements'!D143),"",'Program Requirements'!D143) ->  | N121: =IF(D121="Yes",('Program Requirements'!G143),"") ->  | O121: =IF(D121="Yes",('Program Requirements'!L143),"") ->  | P121: =IF(ISBLANK('Program Requirements'!M143),"",'Program Requirements'!M143) ->  | Q121: 0 | S121: 0 | W121: 0
A122: =IF(ISBLANK('Program Requirements'!A144),"",('Program Requirements'!A144)) ->  | E122: =IF(ISBLANK('Program Requirements'!D144),"",'Program Requirements'!D144) ->  | N122: =IF(D122="Yes",('Program Requirements'!G144),"") ->  | O122: =IF(D122="Yes",('Program Requirements'!L144),"") ->  | P122: =IF(ISBLANK('Program Requirements'!M144),"",'Program Requirements'!M144) ->  | Q122: 0 | S122: =S121-Q122 -> 0 | W122: 0
A123: =IF(ISBLANK('Program Requirements'!A145),"",('Program Requirements'!A145)) ->  | E123: =IF(ISBLANK('Program Requirements'!D145),"",'Program Requirements'!D145) ->  | N123: =IF(D123="Yes",('Program Requirements'!G145),"") ->  | O123: =IF(D123="Yes",('Program Requirements'!L145),"") ->  | P123: =IF(ISBLANK('Program Requirements'!M145),"",'Program Requirements'!M145) ->  | Q123: 0 | S123: 0 | W123: 0
A124: =IF(ISBLANK('Program Requirements'!A146),"",('Program Requirements'!A146)) ->  | E124: =IF(ISBLANK('Program Requirements'!D146),"",'Program Requirements'!D146) ->  | N124: =IF(D124="Yes",('Program Requirements'!G146),"") ->  | O124: =IF(D124="Yes",('Program Requirements'!L146),"") ->  | P124: =IF(ISBLANK('Program Requirements'!M146),"",'Program Requirements'!M146) ->  | Q124: 0 | S124: 0 | W124: 0
A125: =IF(ISBLANK('Program Requirements'!A147),"",('Program Requirements'!A147)) ->  | E125: =IF(ISBLANK('Program Requirements'!D147),"",'Program Requirements'!D147) ->  | N125: =IF(D125="Yes",('Program Requirements'!G147),"") ->  | O125: =IF(D125="Yes",('Program Requirements'!L147),"") ->  | P125: =IF(ISBLANK('Program Requirements'!M147),"",'Program Requirements'!M147) ->  | Q125: 0 | S125: 0 | W125: 0
A126: =IF(ISBLANK('Program Requirements'!A148),"",('Program Requirements'!A148)) ->  | E126: =IF(ISBLANK('Program Requirements'!D148),"",'Program Requirements'!D148) ->  | N126: =IF(D126="Yes",('Program Requirements'!G148),"") ->  | O126: =IF(D126="Yes",('Program Requirements'!L148),"") ->  | P126: =IF(ISBLANK('Program Requirements'!M148),"",'Program Requirements'!M148) ->  | Q126: 0 | S126: 0 | W126: 0
A127: =IF(ISBLANK('Program Requirements'!A149),"",('Program Requirements'!A149)) ->  | E127: =IF(ISBLANK('Program Requirements'!D149),"",'Program Requirements'!D149) ->  | N127: =IF(D127="Yes",('Program Requirements'!G149),"") ->  | O127: =IF(D127="Yes",('Program Requirements'!L149),"") ->  | P127: =IF(ISBLANK('Program Requirements'!M149),"",'Program Requirements'!M149) ->  | Q127: 0 | S127: 0 | W127: 0
A128: =IF(ISBLANK('Program Requirements'!A150),"",('Program Requirements'!A150)) ->  | E128: =IF(ISBLANK('Program Requirements'!D150),"",'Program Requirements'!D150) ->  | N128: =IF(D128="Yes",('Program Requirements'!G150),"") ->  | O128: =IF(D128="Yes",('Program Requirements'!L150),"") ->  | P128: =IF(ISBLANK('Program Requirements'!M150),"",'Program Requirements'!M150) ->  | Q128: 0 | S128: 0 | W128: 0
A129: =IF(ISBLANK('Program Requirements'!A151),"",('Program Requirements'!A151)) ->  | E129: =IF(ISBLANK('Program Requirements'!D151),"",'Program Requirements'!D151) ->  | N129: =IF(D129="Yes",('Program Requirements'!G151),"") ->  | O129: =IF(D129="Yes",('Program Requirements'!L151),"") ->  | P129: =IF(ISBLANK('Program Requirements'!M151),"",'Program Requirements'!M151) ->  | Q129: 0 | S129: 0 | W129: 0
A130: =IF(ISBLANK('Program Requirements'!A152),"",('Program Requirements'!A152)) ->  | E130: =IF(ISBLANK('Program Requirements'!D152),"",'Program Requirements'!D152) ->  | N130: =IF(D130="Yes",('Program Requirements'!G152),"") ->  | O130: =IF(D130="Yes",('Program Requirements'!L152),"") ->  | P130: =IF(ISBLANK('Program Requirements'!M152),"",'Program Requirements'!M152) ->  | Q130: 0 | S130: 0 | W130: 0
A131: =IF(ISBLANK('Program Requirements'!A153),"",('Program Requirements'!A153)) ->  | E131: =IF(ISBLANK('Program Requirements'!D153),"",'Program Requirements'!D153) ->  | N131: =IF(D131="Yes",('Program Requirements'!G153),"") ->  | O131: =IF(D131="Yes",('Program Requirements'!L153),"") ->  | P131: =IF(ISBLANK('Program Requirements'!M153),"",'Program Requirements'!M153) ->  | Q131: 0 | S131: 0 | W131: 0
A132: =IF(ISBLANK('Program Requirements'!A154),"",('Program Requirements'!A154)) ->  | E132: =IF(ISBLANK('Program Requirements'!D154),"",'Program Requirements'!D154) ->  | N132: =IF(D132="Yes",('Program Requirements'!G154),"") ->  | O132: =IF(D132="Yes",('Program Requirements'!L154),"") ->  | P132: =IF(ISBLANK('Program Requirements'!M154),"",'Program Requirements'!M154) ->  | Q132: 0 | S132: 0 | W132: 0
A133: =IF(ISBLANK('Program Requirements'!A155),"",('Program Requirements'!A155)) ->  | E133: =IF(ISBLANK('Program Requirements'!D155),"",'Program Requirements'!D155) ->  | N133: =IF(D133="Yes",('Program Requirements'!G155),"") ->  | O133: =IF(D133="Yes",('Program Requirements'!L155),"") ->  | P133: =IF(ISBLANK('Program Requirements'!M155),"",'Program Requirements'!M155) ->  | Q133: 0 | S133: 0 | W133: 0
A134: =IF(ISBLANK('Program Requirements'!A156),"",('Program Requirements'!A156)) ->  | E134: =IF(ISBLANK('Program Requirements'!D156),"",'Program Requirements'!D156) ->  | N134: =IF(D134="Yes",('Program Requirements'!G156),"") ->  | O134: =IF(D134="Yes",('Program Requirements'!L156),"") ->  | P134: =IF(ISBLANK('Program Requirements'!M156),"",'Program Requirements'!M156) ->  | Q134: 0 | S134: 0 | W134: 0
A135: =IF(ISBLANK('Program Requirements'!A157),"",('Program Requirements'!A157)) ->  | E135: =IF(ISBLANK('Program Requirements'!D157),"",'Program Requirements'!D157) ->  | N135: =IF(D135="Yes",('Program Requirements'!G157),"") ->  | O135: =IF(D135="Yes",('Program Requirements'!L157),"") ->  | P135: =IF(ISBLANK('Program Requirements'!M157),"",'Program Requirements'!M157) ->  | Q135: 0 | S135: 0 | W135: 0
A136: =IF(ISBLANK('Program Requirements'!A158),"",('Program Requirements'!A158)) ->  | E136: =IF(ISBLANK('Program Requirements'!D158),"",'Program Requirements'!D158) ->  | N136: =IF(D136="Yes",('Program Requirements'!G158),"") ->  | O136: =IF(D136="Yes",('Program Requirements'!L158),"") ->  | P136: =IF(ISBLANK('Program Requirements'!M158),"",'Program Requirements'!M158) ->  | Q136: 0 | S136: 0 | W136: 0
A137: =IF(ISBLANK('Program Requirements'!A159),"",('Program Requirements'!A159)) ->  | E137: =IF(ISBLANK('Program Requirements'!D159),"",'Program Requirements'!D159) ->  | N137: =IF(D137="Yes",('Program Requirements'!G159),"") ->  | O137: =IF(D137="Yes",('Program Requirements'!L159),"") ->  | P137: =IF(ISBLANK('Program Requirements'!M159),"",'Program Requirements'!M159) ->  | Q137: 0 | S137: 0 | W137: 0
A138: =IF(ISBLANK('Program Requirements'!A160),"",('Program Requirements'!A160)) ->  | E138: =IF(ISBLANK('Program Requirements'!D160),"",'Program Requirements'!D160) ->  | N138: =IF(D138="Yes",('Program Requirements'!G160),"") ->  | O138: =IF(D138="Yes",('Program Requirements'!L160),"") ->  | P138: =IF(ISBLANK('Program Requirements'!M160),"",'Program Requirements'!M160) ->  | Q138: 0 | S138: 0 | W138: 0
A139: =IF(ISBLANK('Program Requirements'!A161),"",('Program Requirements'!A161)) ->  | E139: =IF(ISBLANK('Program Requirements'!D161),"",'Program Requirements'!D161) ->  | N139: =IF(D139="Yes",('Program Requirements'!G161),"") ->  | O139: =IF(D139="Yes",('Program Requirements'!L161),"") ->  | P139: =IF(ISBLANK('Program Requirements'!M161),"",'Program Requirements'!M161) ->  | Q139: 0 | S139: 0 | W139: 0
A140: =IF(ISBLANK('Program Requirements'!A162),"",('Program Requirements'!A162)) ->  | E140: =IF(ISBLANK('Program Requirements'!D162),"",'Program Requirements'!D162) ->  | N140: =IF(D140="Yes",('Program Requirements'!G162),"") ->  | O140: =IF(D140="Yes",('Program Requirements'!L162),"") ->  | P140: =IF(ISBLANK('Program Requirements'!M162),"",'Program Requirements'!M162) ->  | Q140: 0 | S140: 0 | W140: 0
A141: =IF(ISBLANK('Program Requirements'!A163),"",('Program Requirements'!A163)) ->  | E141: =IF(ISBLANK('Program Requirements'!D163),"",'Program Requirements'!D163) ->  | N141: =IF(D141="Yes",('Program Requirements'!G163),"") ->  | O141: =IF(D141="Yes",('Program Requirements'!L163),"") ->  | P141: =IF(ISBLANK('Program Requirements'!M163),"",'Program Requirements'!M163) ->  | Q141: 0 | S141: 0 | W141: 0
A142: =IF(ISBLANK('Program Requirements'!A164),"",('Program Requirements'!A164)) ->  | E142: =IF(ISBLANK('Program Requirements'!D164),"",'Program Requirements'!D164) ->  | N142: =IF(D142="Yes",('Program Requirements'!G164),"") ->  | O142: =IF(D142="Yes",('Program Requirements'!L164),"") ->  | P142: =IF(ISBLANK('Program Requirements'!M164),"",'Program Requirements'!M164) ->  | Q142: 0 | S142: 0 | W142: 0
A143: =IF(ISBLANK('Program Requirements'!A165),"",('Program Requirements'!A165)) ->  | E143: =IF(ISBLANK('Program Requirements'!D165),"",'Program Requirements'!D165) ->  | N143: =IF(D143="Yes",('Program Requirements'!G165),"") ->  | O143: =IF(D143="Yes",('Program Requirements'!L165),"") ->  | P143: =IF(ISBLANK('Program Requirements'!M165),"",'Program Requirements'!M165) ->  | Q143: 0 | S143: 0 | W143: 0
A144: =IF(ISBLANK('Program Requirements'!A166),"",('Program Requirements'!A166)) ->  | E144: =IF(ISBLANK('Program Requirements'!D166),"",'Program Requirements'!D166) ->  | N144: =IF(D144="Yes",('Program Requirements'!G166),"") ->  | O144: =IF(D144="Yes",('Program Requirements'!L166),"") ->  | P144: =IF(ISBLANK('Program Requirements'!M166),"",'Program Requirements'!M166) ->  | Q144: 0 | S144: 0 | W144: 0
A145: =IF(ISBLANK('Program Requirements'!A167),"",('Program Requirements'!A167)) ->  | E145: =IF(ISBLANK('Program Requirements'!D167),"",'Program Requirements'!D167) ->  | N145: =IF(D145="Yes",('Program Requirements'!G167),"") ->  | O145: =IF(D145="Yes",('Program Requirements'!L167),"") ->  | P145: =IF(ISBLANK('Program Requirements'!M167),"",'Program Requirements'!M167) ->  | Q145: 0 | S145: 0 | W145: 0
A146: =IF(ISBLANK('Program Requirements'!A168),"",('Program Requirements'!A168)) ->  | E146: =IF(ISBLANK('Program Requirements'!D168),"",'Program Requirements'!D168) ->  | N146: =IF(D146="Yes",('Program Requirements'!G168),"") ->  | O146: =IF(D146="Yes",('Program Requirements'!L168),"") ->  | P146: =IF(ISBLANK('Program Requirements'!M168),"",'Program Requirements'!M168) ->  | Q146: 0 | S146: 0 | W146: 0
A147: =IF(ISBLANK('Program Requirements'!A169),"",('Program Requirements'!A169)) ->  | E147: =IF(ISBLANK('Program Requirements'!D169),"",'Program Requirements'!D169) ->  | N147: =IF(D147="Yes",('Program Requirements'!G169),"") ->  | O147: =IF(D147="Yes",('Program Requirements'!L169),"") ->  | P147: =IF(ISBLANK('Program Requirements'!M169),"",'Program Requirements'!M169) ->  | Q147: 0 | S147: 0 | W147: 0
A148: =IF(ISBLANK('Program Requirements'!A170),"",('Program Requirements'!A170)) ->  | E148: =IF(ISBLANK('Program Requirements'!D170),"",'Program Requirements'!D170) ->  | N148: =IF(D148="Yes",('Program Requirements'!G170),"") ->  | O148: =IF(D148="Yes",('Program Requirements'!L170),"") ->  | P148: =IF(ISBLANK('Program Requirements'!M170),"",'Program Requirements'!M170) ->  | Q148: 0 | S148: 0 | W148: 0
A149: =IF(ISBLANK('Program Requirements'!A171),"",('Program Requirements'!A171)) ->  | E149: =IF(ISBLANK('Program Requirements'!D171),"",'Program Requirements'!D171) ->  | N149: =IF(D149="Yes",('Program Requirements'!G171),"") ->  | O149: =IF(D149="Yes",('Program Requirements'!L171),"") ->  | P149: =IF(ISBLANK('Program Requirements'!M171),"",'Program Requirements'!M171) ->  | Q149: 0 | S149: 0 | W149: 0
A150: =IF(ISBLANK('Program Requirements'!A172),"",('Program Requirements'!A172)) ->  | E150: =IF(ISBLANK('Program Requirements'!D172),"",'Program Requirements'!D172) ->  | N150: =IF(D150="Yes",('Program Requirements'!G172),"") ->  | O150: =IF(D150="Yes",('Program Requirements'!L172),"") ->  | P150: =IF(ISBLANK('Program Requirements'!M172),"",'Program Requirements'!M172) ->  | Q150: 0 | S150: 0 | W150: 0
A151: =IF(ISBLANK('Program Requirements'!A173),"",('Program Requirements'!A173)) ->  | E151: =IF(ISBLANK('Program Requirements'!D173),"",'Program Requirements'!D173) ->  | N151: =IF(D151="Yes",('Program Requirements'!G173),"") ->  | O151: =IF(D151="Yes",('Program Requirements'!L173),"") ->  | P151: =IF(ISBLANK('Program Requirements'!M173),"",'Program Requirements'!M173) ->  | Q151: 0 | S151: 0 | W151: =IF(SUM(U151)=0,SUM(Q151),IF(SUM(Q151,U151)=U151,"ERROR",SUM(Q151,U151))) -> 0
A152: =IF(ISBLANK('Program Requirements'!A174),"",('Program Requirements'!A174)) ->  | E152: =IF(ISBLANK('Program Requirements'!D174),"",'Program Requirements'!D174) ->  | N152: =IF(D152="Yes",('Program Requirements'!G174),"") ->  | O152: =IF(D152="Yes",('Program Requirements'!L174),"") ->  | P152: =IF(ISBLANK('Program Requirements'!M174),"",'Program Requirements'!M174) ->  | Q152: 0 | S152: 0 | W152: 0
A153: =IF(ISBLANK('Program Requirements'!A175),"",('Program Requirements'!A175)) ->  | E153: =IF(ISBLANK('Program Requirements'!D175),"",'Program Requirements'!D175) ->  | N153: =IF(D153="Yes",('Program Requirements'!G175),"") ->  | O153: =IF(D153="Yes",('Program Requirements'!L175),"") ->  | P153: =IF(ISBLANK('Program Requirements'!M175),"",'Program Requirements'!M175) ->  | Q153: 0 | S153: 0 | W153: 0
A154: =IF(ISBLANK('Program Requirements'!A176),"",('Program Requirements'!A176)) ->  | E154: =IF(ISBLANK('Program Requirements'!D176),"",'Program Requirements'!D176) ->  | N154: =IF(D154="Yes",('Program Requirements'!G176),"") ->  | O154: =IF(D154="Yes",('Program Requirements'!L176),"") ->  | P154: =IF(ISBLANK('Program Requirements'!M176),"",'Program Requirements'!M176) ->  | Q154: 0 | S154: 0 | W154: 0
A155: =IF(ISBLANK('Program Requirements'!A177),"",('Program Requirements'!A177)) ->  | E155: =IF(ISBLANK('Program Requirements'!D177),"",'Program Requirements'!D177) ->  | N155: =IF(D155="Yes",('Program Requirements'!G177),"") ->  | O155: =IF(D155="Yes",('Program Requirements'!L177),"") ->  | P155: =IF(ISBLANK('Program Requirements'!M177),"",'Program Requirements'!M177) ->  | Q155: 0 | S155: 0 | W155: 0
A156: =IF(ISBLANK('Program Requirements'!A178),"",('Program Requirements'!A178)) ->  | E156: =IF(ISBLANK('Program Requirements'!D178),"",'Program Requirements'!D178) ->  | N156: =IF(D156="Yes",('Program Requirements'!G178),"") ->  | O156: =IF(D156="Yes",('Program Requirements'!L178),"") ->  | P156: =IF(ISBLANK('Program Requirements'!M178),"",'Program Requirements'!M178) ->  | Q156: 0 | S156: 0 | W156: 0
A157: =IF(ISBLANK('Program Requirements'!A179),"",('Program Requirements'!A179)) ->  | E157: =IF(ISBLANK('Program Requirements'!D179),"",'Program Requirements'!D179) ->  | N157: =IF(D157="Yes",('Program Requirements'!G179),"") ->  | O157: =IF(D157="Yes",('Program Requirements'!L179),"") ->  | P157: =IF(ISBLANK('Program Requirements'!M179),"",'Program Requirements'!M179) ->  | Q157: 0 | S157: 0 | W157: 0
A158: =IF(ISBLANK('Program Requirements'!A180),"",('Program Requirements'!A180)) ->  | E158: =IF(ISBLANK('Program Requirements'!D180),"",'Program Requirements'!D180) ->  | N158: =IF(D158="Yes",('Program Requirements'!G180),"") ->  | O158: =IF(D158="Yes",('Program Requirements'!L180),"") ->  | P158: =IF(ISBLANK('Program Requirements'!M180),"",'Program Requirements'!M180) ->  | Q158: 0 | S158: 0 | W158: 0
A159: =IF(ISBLANK('Program Requirements'!A181),"",('Program Requirements'!A181)) ->  | E159: =IF(ISBLANK('Program Requirements'!D181),"",'Program Requirements'!D181) ->  | N159: =IF(D159="Yes",('Program Requirements'!G181),"") ->  | O159: =IF(D159="Yes",('Program Requirements'!L181),"") ->  | P159: =IF(ISBLANK('Program Requirements'!M181),"",'Program Requirements'!M181) ->  | Q159: 0 | S159: 0 | W159: 0
A160: =IF(ISBLANK('Program Requirements'!A182),"",('Program Requirements'!A182)) ->  | E160: =IF(ISBLANK('Program Requirements'!D182),"",'Program Requirements'!D182) ->  | N160: =IF(D160="Yes",('Program Requirements'!G182),"") ->  | O160: =IF(D160="Yes",('Program Requirements'!L182),"") ->  | P160: =IF(ISBLANK('Program Requirements'!M182),"",'Program Requirements'!M182) ->  | Q160: 0 | S160: 0 | W160: 0
A161: =IF(ISBLANK('Program Requirements'!A183),"",('Program Requirements'!A183)) ->  | E161: =IF(ISBLANK('Program Requirements'!D183),"",'Program Requirements'!D183) ->  | N161: =IF(D161="Yes",('Program Requirements'!G183),"") ->  | O161: =IF(D161="Yes",('Program Requirements'!L183),"") ->  | P161: =IF(ISBLANK('Program Requirements'!M183),"",'Program Requirements'!M183) ->  | Q161: 0 | S161: 0 | W161: 0
A162: =IF(ISBLANK('Program Requirements'!A184),"",('Program Requirements'!A184)) ->  | E162: =IF(ISBLANK('Program Requirements'!D184),"",'Program Requirements'!D184) ->  | N162: =IF(D162="Yes",('Program Requirements'!G184),"") ->  | O162: =IF(D162="Yes",('Program Requirements'!L184),"") ->  | P162: =IF(ISBLANK('Program Requirements'!M184),"",'Program Requirements'!M184) ->  | Q162: 0 | S162: 0 | W162: 0
A163: =IF(ISBLANK('Program Requirements'!A185),"",('Program Requirements'!A185)) ->  | E163: =IF(ISBLANK('Program Requirements'!D185),"",'Program Requirements'!D185) ->  | N163: =IF(D163="Yes",('Program Requirements'!G185),"") ->  | O163: =IF(D163="Yes",('Program Requirements'!L185),"") ->  | P163: =IF(ISBLANK('Program Requirements'!M185),"",'Program Requirements'!M185) ->  | Q163: 0 | S163: 0 | W163: 0
A164: =IF(ISBLANK('Program Requirements'!A186),"",('Program Requirements'!A186)) ->  | E164: =IF(ISBLANK('Program Requirements'!D186),"",'Program Requirements'!D186) ->  | N164: =IF(D164="Yes",('Program Requirements'!G186),"") ->  | O164: =IF(D164="Yes",('Program Requirements'!L186),"") ->  | P164: =IF(ISBLANK('Program Requirements'!M186),"",'Program Requirements'!M186) ->  | Q164: 0 | S164: 0 | W164: 0
A165: =IF(ISBLANK('Program Requirements'!A187),"",('Program Requirements'!A187)) ->  | E165: =IF(ISBLANK('Program Requirements'!D187),"",'Program Requirements'!D187) ->  | N165: =IF(D165="Yes",('Program Requirements'!G187),"") ->  | O165: =IF(D165="Yes",('Program Requirements'!L187),"") ->  | P165: =IF(ISBLANK('Program Requirements'!M187),"",'Program Requirements'!M187) ->  | Q165: 0 | S165: 0 | W165: 0
A166: =IF(ISBLANK('Program Requirements'!A188),"",('Program Requirements'!A188)) ->  | E166: =IF(ISBLANK('Program Requirements'!D188),"",'Program Requirements'!D188) ->  | N166: =IF(D166="Yes",('Program Requirements'!G188),"") ->  | O166: =IF(D166="Yes",('Program Requirements'!L188),"") ->  | P166: =IF(ISBLANK('Program Requirements'!M188),"",'Program Requirements'!M188) ->  | Q166: 0 | S166: 0 | W166: 0
A167: =IF(ISBLANK('Program Requirements'!A189),"",('Program Requirements'!A189)) ->  | E167: =IF(ISBLANK('Program Requirements'!D189),"",'Program Requirements'!D189) ->  | N167: =IF(D167="Yes",('Program Requirements'!G189),"") ->  | O167: =IF(D167="Yes",('Program Requirements'!L189),"") ->  | P167: =IF(ISBLANK('Program Requirements'!M189),"",'Program Requirements'!M189) ->  | Q167: 0 | S167: 0 | W167: 0
A168: =IF(ISBLANK('Program Requirements'!A190),"",('Program Requirements'!A190)) ->  | E168: =IF(ISBLANK('Program Requirements'!D190),"",'Program Requirements'!D190) ->  | N168: =IF(D168="Yes",('Program Requirements'!G190),"") ->  | O168: =IF(D168="Yes",('Program Requirements'!L190),"") ->  | P168: =IF(ISBLANK('Program Requirements'!M190),"",'Program Requirements'!M190) ->  | Q168: 0 | S168: 0 | W168: 0
A169: =IF(ISBLANK('Program Requirements'!A191),"",('Program Requirements'!A191)) ->  | E169: =IF(ISBLANK('Program Requirements'!D191),"",'Program Requirements'!D191) ->  | N169: =IF(D169="Yes",('Program Requirements'!G191),"") ->  | O169: =IF(D169="Yes",('Program Requirements'!L191),"") ->  | P169: =IF(ISBLANK('Program Requirements'!M191),"",'Program Requirements'!M191) ->  | Q169: 0 | S169: 0 | W169: 0
A170: =IF(ISBLANK('Program Requirements'!A192),"",('Program Requirements'!A192)) ->  | E170: =IF(ISBLANK('Program Requirements'!D192),"",'Program Requirements'!D192) ->  | N170: =IF(D170="Yes",('Program Requirements'!G192),"") ->  | O170: =IF(D170="Yes",('Program Requirements'!L192),"") ->  | P170: =IF(ISBLANK('Program Requirements'!M192),"",'Program Requirements'!M192) ->  | Q170: 0 | S170: 0 | W170: 0
A171: =IF(ISBLANK('Program Requirements'!A193),"",('Program Requirements'!A193)) ->  | E171: =IF(ISBLANK('Program Requirements'!D193),"",'Program Requirements'!D193) ->  | N171: =IF(D171="Yes",('Program Requirements'!G193),"") ->  | O171: =IF(D171="Yes",('Program Requirements'!L193),"") ->  | P171: =IF(ISBLANK('Program Requirements'!M193),"",'Program Requirements'!M193) ->  | Q171: 0 | S171: 0 | W171: 0
A172: =IF(ISBLANK('Program Requirements'!A194),"",('Program Requirements'!A194)) ->  | E172: =IF(ISBLANK('Program Requirements'!D194),"",'Program Requirements'!D194) ->  | N172: =IF(D172="Yes",('Program Requirements'!G194),"") ->  | O172: =IF(D172="Yes",('Program Requirements'!L194),"") ->  | P172: =IF(ISBLANK('Program Requirements'!M194),"",'Program Requirements'!M194) ->  | Q172: 0 | S172: 0 | W172: 0
A173: =IF(ISBLANK('Program Requirements'!A195),"",('Program Requirements'!A195)) ->  | E173: =IF(ISBLANK('Program Requirements'!D195),"",'Program Requirements'!D195) ->  | N173: =IF(D173="Yes",('Program Requirements'!G195),"") ->  | O173: =IF(D173="Yes",('Program Requirements'!L195),"") ->  | P173: =IF(ISBLANK('Program Requirements'!M195),"",'Program Requirements'!M195) ->  | Q173: 0 | S173: 0 | W173: 0
A174: =IF(ISBLANK('Program Requirements'!A196),"",('Program Requirements'!A196)) ->  | E174: =IF(ISBLANK('Program Requirements'!D196),"",'Program Requirements'!D196) ->  | N174: =IF(D174="Yes",('Program Requirements'!G196),"") ->  | O174: =IF(D174="Yes",('Program Requirements'!L196),"") ->  | P174: =IF(ISBLANK('Program Requirements'!M196),"",'Program Requirements'!M196) ->  | Q174: 0 | S174: 0 | W174: 0
A175: =IF(ISBLANK('Program Requirements'!A197),"",('Program Requirements'!A197)) ->  | E175: =IF(ISBLANK('Program Requirements'!D197),"",'Program Requirements'!D197) ->  | N175: =IF(D175="Yes",('Program Requirements'!G197),"") ->  | O175: =IF(D175="Yes",('Program Requirements'!L197),"") ->  | P175: =IF(ISBLANK('Program Requirements'!M197),"",'Program Requirements'!M197) ->  | Q175: 0 | S175: 0 | W175: 0
A176: =IF(ISBLANK('Program Requirements'!A198),"",('Program Requirements'!A198)) ->  | E176: =IF(ISBLANK('Program Requirements'!D198),"",'Program Requirements'!D198) ->  | N176: =IF(D176="Yes",('Program Requirements'!G198),"") ->  | O176: =IF(D176="Yes",('Program Requirements'!L198),"") ->  | P176: =IF(ISBLANK('Program Requirements'!M198),"",'Program Requirements'!M198) ->  | Q176: 0 | S176: 0 | W176: 0
A177: =IF(ISBLANK('Program Requirements'!A199),"",('Program Requirements'!A199)) ->  | E177: =IF(ISBLANK('Program Requirements'!D199),"",'Program Requirements'!D199) ->  | N177: =IF(D177="Yes",('Program Requirements'!G199),"") ->  | O177: =IF(D177="Yes",('Program Requirements'!L199),"") ->  | P177: =IF(ISBLANK('Program Requirements'!M199),"",'Program Requirements'!M199) ->  | Q177: 0 | S177: 0 | W177: 0
A178: =IF(ISBLANK('Program Requirements'!A200),"",('Program Requirements'!A200)) ->  | E178: =IF(ISBLANK('Program Requirements'!D200),"",'Program Requirements'!D200) ->  | N178: =IF(D178="Yes",('Program Requirements'!G200),"") ->  | O178: =IF(D178="Yes",('Program Requirements'!L200),"") ->  | P178: =IF(ISBLANK('Program Requirements'!M200),"",'Program Requirements'!M200) ->  | Q178: 0 | S178: 0 | W178: 0
A179: =IF(ISBLANK('Program Requirements'!A201),"",('Program Requirements'!A201)) ->  | E179: =IF(ISBLANK('Program Requirements'!D201),"",'Program Requirements'!D201) ->  | N179: =IF(D179="Yes",('Program Requirements'!G201),"") ->  | O179: =IF(D179="Yes",('Program Requirements'!L201),"") ->  | P179: =IF(ISBLANK('Program Requirements'!M201),"",'Program Requirements'!M201) ->  | Q179: 0 | S179: 0 | W179: 0
A180: =IF(ISBLANK('Program Requirements'!A202),"",('Program Requirements'!A202)) ->  | E180: =IF(ISBLANK('Program Requirements'!D202),"",'Program Requirements'!D202) ->  | N180: =IF(D180="Yes",('Program Requirements'!G202),"") ->  | O180: =IF(D180="Yes",('Program Requirements'!L202),"") ->  | P180: =IF(ISBLANK('Program Requirements'!M202),"",'Program Requirements'!M202) ->  | Q180: 0 | S180: 0 | W180: 0
A181: =IF(ISBLANK('Program Requirements'!A203),"",('Program Requirements'!A203)) ->  | E181: =IF(ISBLANK('Program Requirements'!D203),"",'Program Requirements'!D203) ->  | N181: =IF(D181="Yes",('Program Requirements'!G203),"") ->  | O181: =IF(D181="Yes",('Program Requirements'!L203),"") ->  | P181: =IF(ISBLANK('Program Requirements'!M203),"",'Program Requirements'!M203) ->  | Q181: 0 | S181: 0 | W181: 0
A182: =IF(ISBLANK('Program Requirements'!A204),"",('Program Requirements'!A204)) ->  | E182: =IF(ISBLANK('Program Requirements'!D204),"",'Program Requirements'!D204) ->  | N182: =IF(D182="Yes",('Program Requirements'!G204),"") ->  | O182: =IF(D182="Yes",('Program Requirements'!L204),"") ->  | P182: =IF(ISBLANK('Program Requirements'!M204),"",'Program Requirements'!M204) ->  | Q182: 0 | S182: 0 | W182: 0
A183: =IF(ISBLANK('Program Requirements'!A205),"",('Program Requirements'!A205)) ->  | E183: =IF(ISBLANK('Program Requirements'!D205),"",'Program Requirements'!D205) ->  | N183: =IF(D183="Yes",('Program Requirements'!G205),"") ->  | O183: =IF(D183="Yes",('Program Requirements'!L205),"") ->  | P183: =IF(ISBLANK('Program Requirements'!M205),"",'Program Requirements'!M205) ->  | Q183: =IF(D183="Yes",(O183)*$Q$45,0) -> 0 | S183: 0 | W183: 0 | Y183: =IF(D183="Yes",SUM(W183)/SUM(O183),"") -> 
A184: =IF(ISBLANK('Program Requirements'!A206),"",('Program Requirements'!A206)) ->  | E184: =IF(ISBLANK('Program Requirements'!D206),"",'Program Requirements'!D206) ->  | N184: =IF(D184="Yes",('Program Requirements'!G206),"") ->  | O184: =IF(D184="Yes",('Program Requirements'!L206),"") ->  | P184: =IF(ISBLANK('Program Requirements'!M206),"",'Program Requirements'!M206) ->  | Q184: 0 | S184: 0 | W184: 0
A185: =IF(ISBLANK('Program Requirements'!A207),"",('Program Requirements'!A207)) ->  | E185: =IF(ISBLANK('Program Requirements'!D207),"",'Program Requirements'!D207) ->  | N185: =IF(D185="Yes",('Program Requirements'!G207),"") ->  | O185: =IF(D185="Yes",('Program Requirements'!L207),"") ->  | P185: =IF(ISBLANK('Program Requirements'!M207),"",'Program Requirements'!M207) ->  | Q185: 0 | S185: 0 | W185: 0
A186: =IF(ISBLANK('Program Requirements'!A208),"",('Program Requirements'!A208)) ->  | E186: =IF(ISBLANK('Program Requirements'!D208),"",'Program Requirements'!D208) ->  | N186: =IF(D186="Yes",('Program Requirements'!G208),"") ->  | O186: =IF(D186="Yes",('Program Requirements'!L208),"") ->  | P186: =IF(ISBLANK('Program Requirements'!M208),"",'Program Requirements'!M208) ->  | Q186: 0 | S186: =S185-Q186 -> 0 | W186: 0
A187: =IF(ISBLANK('Program Requirements'!A209),"",('Program Requirements'!A209)) ->  | E187: =IF(ISBLANK('Program Requirements'!D209),"",'Program Requirements'!D209) ->  | N187: =IF(D187="Yes",('Program Requirements'!G209),"") ->  | O187: =IF(D187="Yes",('Program Requirements'!L209),"") ->  | P187: =IF(ISBLANK('Program Requirements'!M209),"",'Program Requirements'!M209) ->  | Q187: 0 | S187: 0 | W187: 0
A188: =IF(ISBLANK('Program Requirements'!A210),"",('Program Requirements'!A210)) ->  | E188: =IF(ISBLANK('Program Requirements'!D210),"",'Program Requirements'!D210) ->  | N188: =IF(D188="Yes",('Program Requirements'!G210),"") ->  | O188: =IF(D188="Yes",('Program Requirements'!L210),"") ->  | P188: =IF(ISBLANK('Program Requirements'!M210),"",'Program Requirements'!M210) ->  | Q188: 0 | S188: 0 | W188: 0
A189: =IF(ISBLANK('Program Requirements'!A211),"",('Program Requirements'!A211)) ->  | E189: =IF(ISBLANK('Program Requirements'!D211),"",'Program Requirements'!D211) ->  | N189: =IF(D189="Yes",('Program Requirements'!G211),"") ->  | O189: =IF(D189="Yes",('Program Requirements'!L211),"") ->  | P189: =IF(ISBLANK('Program Requirements'!M211),"",'Program Requirements'!M211) ->  | Q189: 0 | S189: 0 | W189: 0
A190: =IF(ISBLANK('Program Requirements'!A212),"",('Program Requirements'!A212)) ->  | E190: =IF(ISBLANK('Program Requirements'!D212),"",'Program Requirements'!D212) ->  | N190: =IF(D190="Yes",('Program Requirements'!G212),"") ->  | O190: =IF(D190="Yes",('Program Requirements'!L212),"") ->  | P190: =IF(ISBLANK('Program Requirements'!M212),"",'Program Requirements'!M212) ->  | Q190: 0 | S190: 0 | W190: 0
A191: =IF(ISBLANK('Program Requirements'!A213),"",('Program Requirements'!A213)) ->  | E191: =IF(ISBLANK('Program Requirements'!D213),"",'Program Requirements'!D213) ->  | N191: =IF(D191="Yes",('Program Requirements'!G213),"") ->  | O191: =IF(D191="Yes",('Program Requirements'!L213),"") ->  | P191: =IF(ISBLANK('Program Requirements'!M213),"",'Program Requirements'!M213) ->  | Q191: 0 | S191: 0 | W191: 0
A192: =IF(ISBLANK('Program Requirements'!A214),"",('Program Requirements'!A214)) ->  | E192: =IF(ISBLANK('Program Requirements'!D214),"",'Program Requirements'!D214) ->  | N192: =IF(D192="Yes",('Program Requirements'!G214),"") ->  | O192: =IF(D192="Yes",('Program Requirements'!L214),"") ->  | P192: =IF(ISBLANK('Program Requirements'!M214),"",'Program Requirements'!M214) ->  | Q192: 0 | S192: 0 | W192: 0
A193: =IF(ISBLANK('Program Requirements'!A215),"",('Program Requirements'!A215)) ->  | E193: =IF(ISBLANK('Program Requirements'!D215),"",'Program Requirements'!D215) ->  | N193: =IF(D193="Yes",('Program Requirements'!G215),"") ->  | O193: =IF(D193="Yes",('Program Requirements'!L215),"") ->  | P193: =IF(ISBLANK('Program Requirements'!M215),"",'Program Requirements'!M215) ->  | Q193: 0 | S193: 0 | W193: 0
A194: =IF(ISBLANK('Program Requirements'!A216),"",('Program Requirements'!A216)) ->  | E194: =IF(ISBLANK('Program Requirements'!D216),"",'Program Requirements'!D216) ->  | N194: =IF(D194="Yes",('Program Requirements'!G216),"") ->  | O194: =IF(D194="Yes",('Program Requirements'!L216),"") ->  | P194: =IF(ISBLANK('Program Requirements'!M216),"",'Program Requirements'!M216) ->  | Q194: 0 | S194: 0 | W194: 0
A195: =IF(ISBLANK('Program Requirements'!A217),"",('Program Requirements'!A217)) ->  | E195: =IF(ISBLANK('Program Requirements'!D217),"",'Program Requirements'!D217) ->  | N195: =IF(D195="Yes",('Program Requirements'!G217),"") ->  | O195: =IF(D195="Yes",('Program Requirements'!L217),"") ->  | P195: =IF(ISBLANK('Program Requirements'!M217),"",'Program Requirements'!M217) ->  | Q195: 0 | S195: 0 | W195: 0
A196: =IF(ISBLANK('Program Requirements'!A218),"",('Program Requirements'!A218)) ->  | E196: =IF(ISBLANK('Program Requirements'!D218),"",'Program Requirements'!D218) ->  | N196: =IF(D196="Yes",('Program Requirements'!G218),"") ->  | O196: =IF(D196="Yes",('Program Requirements'!L218),"") ->  | P196: =IF(ISBLANK('Program Requirements'!M218),"",'Program Requirements'!M218) ->  | Q196: 0 | S196: 0 | W196: 0
A197: =IF(ISBLANK('Program Requirements'!A219),"",('Program Requirements'!A219)) ->  | E197: =IF(ISBLANK('Program Requirements'!D219),"",'Program Requirements'!D219) ->  | N197: =IF(D197="Yes",('Program Requirements'!G219),"") ->  | O197: =IF(D197="Yes",('Program Requirements'!L219),"") ->  | P197: =IF(ISBLANK('Program Requirements'!M219),"",'Program Requirements'!M219) ->  | Q197: 0 | S197: 0 | W197: 0
A198: =IF(ISBLANK('Program Requirements'!A220),"",('Program Requirements'!A220)) ->  | E198: =IF(ISBLANK('Program Requirements'!D220),"",'Program Requirements'!D220) ->  | N198: =IF(D198="Yes",('Program Requirements'!G220),"") ->  | O198: =IF(D198="Yes",('Program Requirements'!L220),"") ->  | P198: =IF(ISBLANK('Program Requirements'!M220),"",'Program Requirements'!M220) ->  | Q198: 0 | S198: 0 | W198: 0
A199: =IF(ISBLANK('Program Requirements'!A221),"",('Program Requirements'!A221)) ->  | E199: =IF(ISBLANK('Program Requirements'!D221),"",'Program Requirements'!D221) ->  | N199: =IF(D199="Yes",('Program Requirements'!G221),"") ->  | O199: =IF(D199="Yes",('Program Requirements'!L221),"") ->  | P199: =IF(ISBLANK('Program Requirements'!M221),"",'Program Requirements'!M221) ->  | Q199: 0 | S199: 0 | W199: 0
A200: =IF(ISBLANK('Program Requirements'!A222),"",('Program Requirements'!A222)) ->  | E200: =IF(ISBLANK('Program Requirements'!D222),"",'Program Requirements'!D222) ->  | N200: =IF(D200="Yes",('Program Requirements'!G222),"") ->  | O200: =IF(D200="Yes",('Program Requirements'!L222),"") ->  | P200: =IF(ISBLANK('Program Requirements'!M222),"",'Program Requirements'!M222) ->  | Q200: 0 | S200: 0 | W200: 0
A201: =IF(ISBLANK('Program Requirements'!A223),"",('Program Requirements'!A223)) ->  | E201: =IF(ISBLANK('Program Requirements'!D223),"",'Program Requirements'!D223) ->  | N201: =IF(D201="Yes",('Program Requirements'!G223),"") ->  | O201: =IF(D201="Yes",('Program Requirements'!L223),"") ->  | P201: =IF(ISBLANK('Program Requirements'!M223),"",'Program Requirements'!M223) ->  | Q201: 0 | S201: 0 | W201: 0
A202: =IF(ISBLANK('Program Requirements'!A224),"",('Program Requirements'!A224)) ->  | E202: =IF(ISBLANK('Program Requirements'!D224),"",'Program Requirements'!D224) ->  | N202: =IF(D202="Yes",('Program Requirements'!G224),"") ->  | O202: =IF(D202="Yes",('Program Requirements'!L224),"") ->  | P202: =IF(ISBLANK('Program Requirements'!M224),"",'Program Requirements'!M224) ->  | Q202: 0 | S202: 0 | W202: 0
A203: =IF(ISBLANK('Program Requirements'!A225),"",('Program Requirements'!A225)) ->  | E203: =IF(ISBLANK('Program Requirements'!D225),"",'Program Requirements'!D225) ->  | N203: =IF(D203="Yes",('Program Requirements'!G225),"") ->  | O203: =IF(D203="Yes",('Program Requirements'!L225),"") ->  | P203: =IF(ISBLANK('Program Requirements'!M225),"",'Program Requirements'!M225) ->  | Q203: 0 | S203: 0 | W203: 0
A204: =IF(ISBLANK('Program Requirements'!A226),"",('Program Requirements'!A226)) ->  | E204: =IF(ISBLANK('Program Requirements'!D226),"",'Program Requirements'!D226) ->  | N204: =IF(D204="Yes",('Program Requirements'!G226),"") ->  | O204: =IF(D204="Yes",('Program Requirements'!L226),"") ->  | P204: =IF(ISBLANK('Program Requirements'!M226),"",'Program Requirements'!M226) ->  | Q204: 0 | S204: 0 | W204: 0
... 51 more rows

Sheet Below 35% Low-Income (hidden)
E1: School Division: | G1: ='Narrative & Detail Budget'!$A$15 -> ALBEMARLE COUNTY PUBLIC SCHOOLS | M1: Division Number: | P1: ='Narrative & Detail Budget'!$I$15 -> 2
A2: Q. REQUIRED AND ALLOWABLE SET-ASIDES FOR DIVISIONS OPERATING TITLE I, PART A, BASIC PROGRAMS
A4: DIVISION LEVEL: IMPROVEMENT ACTIVITIES (Optional for Divisions with Comprehensive Support and Improvement and Targeted Support and Improvement) | K4: A | N4: B
A5: Up to 5 percent may be set aside for divisions to provide financial incentives and rewards to teachers who serve in schools identified for comprehensive support and improvement or targeted support and improvement activities for the purposes of attracting and retaining qualified and effective teachers.
A6: Five percent of the total allocation representing the maximum allowable set-aside for Comprehensive Support and Improvement and Targeted Support and Improvement | N6: =SUM(('Narrative & Detail Budget'!N47)*0.05) -> 74749.4
A7: Indicate amount of set-aside for each category, if applicable:
C8: Set-Aside for Teacher Incentives and Rewards Comprehensive | K8: 0
C9: Set-Aside for Teacher Incentives and Rewards Targeted | K9: 0
K10: 0
C11: Total Amount Set-Aside for Comprehensive Support and Improvement and Targeted Support and Improvement | N11: =SUM(K8:M9) -> 0
A12: DIVISION LEVEL: PROGRAM ADMINISTRATION
B13: (1000) Personal Services - Nonsalary Differential | N13: 0
B14: (1000) Personal Services - Salary Differential | N14: 0
B15: (2000) Employee Benefits (Fixed Charges) | N15: 0
B16: (3000) Purchased/Contracted Services | N16: 0
B17: (4000) Internal Services | N17: 0
B18: (4000) Other Charges | N18: 0
B19: (5000) Other Charges | N19: 0
B20: (6000) Materials and Supplies | N20: 0
B21: (8000) Capital Outlay | N21: 0
A22: Initiatives
B23: Title I Early Childhood Program | N23: 0
B24: Private School Services (as necessary; not applicable for bypass divisions) These funds are in addition to school-level allocations for private school services. | N24: =ROUND(Z53*SUM(K26),2) -> 
A25: Parent and Family Engagement (Required if allocation is $500,000 or more)
B26: Amount of school division allocation ESEA funds (from Page 2): | K26: =SUM('Narrative & Detail Budget'!N47) -> 1494988
B27: 1 percent of allocation (This amount is calculated if school division receives $500,000 or more from Title I, Part A.) | K27: =ROUND(IF(K26>499999.99,0.01*K26,0),2) -> 14949.88 | N27: =K27 -> 14949.88
B28: 90 percent of 1 percent must be used at the school level | K28: =ROUND(0.9*SUM(K27),2) -> 13454.89
B29: 10 percent of 1 percent is set aside by the school division for parent and family engagement initiatives | K29: =ROUND(0.1*SUM($K$27),2) -> 1494.99
B30: Additional Parent and Family Engagement Funds | K30: 0
B31: Has the required parent and family engagement set aside been met? | K31: =IF(SUM('Budget Summary'!G44:K44)+(Transferability!D58+Transferability!E58)>=SUM(K28),"Yes","No - please review your entries.") -> Yes
A32: Homeless (as necessary based on needs identified on homeless tab, question 2) | N32: 0
A33: Foster Care (as necessary) | N33: 0
A34: Neglected/Delinquent (as necessary) | N34: 0
A35: School Division Set-Asides TOTAL (Feeds Box A on Allocation to Eligible Schools Page) | N35: =K30+SUM(N11:P34) -> 
A36: Page 43
D37: School Division: | G37: ='Narrative & Detail Budget'!$A$15 -> ALBEMARLE COUNTY PUBLIC SCHOOLS | M37: Division Number: | P37: ='Narrative & Detail Budget'!$I$15 -> 2
A38: TITLE I, PART A, ALLOCATION TO ELIGIBLE SCHOOLS
H39: Low-Income Factor BELOW 35 percent
H40: PPE X at least 125 percent
A41: A. | I41: B.
A42: Division’s Title I ESEA Allocation : | F42: ='Narrative & Detail Budget'!N47 -> 1494988 | I42: *PER PUPIL EXPENDITURE CALCULATION
I43: Step 1:
A44: Minus ESEA Set-Asides (if applicable): | F44: =$N$35 ->  | I44: =SUM(F42) -> 1494988 | L44: ¸ | N44: ='Program Requirements'!H278 -> 4668 | R44: = | T44: =IF(ISERROR(SUM(I44)/SUM(N44)),0,SUM(I44)/SUM(N44)) -> 320.2630677
I45: Division Total Allocation | M45: Number of Low-Income Pupils in Entire School Division | S45: Per Pupil Expenditure (PPE)
A46: Amount for Distribution to Schools: | F46: =SUM(F42-F44) ->  | I46: Step 2:
J47: =SUM(T44) -> 320.2630677 | L47: ´ | N47: 125 | R47: = | T47: =ROUND((SUM(J47)*SUM(N47))/100,2) -> 400.33
I48: PPE | M48: At least 125 percent (enter whole number) | S48: Adjusted PPE
A49: Divisionwide Average From Low-Income Families | G49: ='Program Requirements'!M280 -> 0.326273852 | M49: =IF(N47<125,"Amount must be 125 or higher","") -> 
A51: C. (1) | D51: (2) | E51: (3) | F51: (4) | G51: (5) | H51: (6) | I51: (7) | J51: (8) | K51: (9) | L51: (10) | M51: (11) | N51: (12) | O51: (13) | P51: (14) | R51: (15) | T51: (16) | V51: (17) | X51: (18) | Y51: (19)
A52: List of schools from highest poverty to lowest | D52: Eligible School? Yes or No | E52: Grade Span of School | F52: Targeted Assistance School? Yes or No | G52: Schoolwide Program School? Yes or No | H52: Comprehensive Support and improvement? Yes or No | I52: Targeted Support and Improvement? Yes or No | J52: Number of Title I, Part A FTE Teachers funded with 2020-2021 funds | K52: Number of Title I, Part A FTE Teachers funded with Prior Year funds | L52: Number of Title I, Part A FTE Para-professionals funded with 2020-2021 funds | M52: Number of Title I, Part A FTE Para-professionals funded with Prior Year funds | N52: Low-Income Private School Membership | O52: Low-Income Public School Membership | P52: Percent Low-Income | Q52: Minimum School Allocation | S52: ="Distribution Balance: "&+SUM(F46)&" from Box A" ->  | U52: School Reallocation Amount** | W52: School Allocation Total (Cols. 12 and 13) | Y52: Adjusted PPE
A53: TOTALS FOR DIVISION | J53: =SUM(J55:J254) -> 0 | K53: 0 | L53: 0 | M53: 0 | N53: 0 | O53: 0 | Q53: =SUM(Q55:R254) ->  | S53: =SUM(F46) ->  | U53: =SUM(U55:V254) -> 0 | W53: =SUM(V55:W254) ->  | Z53: =SUM(N53)/(N53+O53) -> 
K54: Yes | L54: No | P54: Balance to Reallocate | S54: =SUM(F46-W53) -> 
A55: =IF(ISBLANK('Program Requirements'!A78),"",('Program Requirements'!A78)) -> Mary Carr Greer Elementary | E55: =IF(ISBLANK('[13]Title I, Part A'!D110),"",'[13]Title I, Part A'!D110) -> 07 - 12 | N55: =IF(D55="Yes",('Program Requirements'!G78),"") ->  | O55: =IF(D55="Yes",('Program Requirements'!L78),"") ->  | P55: =IF(ISBLANK('Program Requirements'!M78),"",'Program Requirements'!M78) -> 0.7465618861 | Q55: =IF(IF(D55="Yes",IF(ISBLANK(O55),"",SUM(O55)*$T$47),0)>$F$46,SUM($F$46),IF(D55="Yes",IF(ISBLANK(O55),"",SUM(O55)*$T$47),"")) ->  | S55: =SUM(S53)-SUM(Q55)-SUM(U55) ->  | W55: =IF(SUM(U55)=0,SUM(Q55),IF(SUM(Q55,U55)=U55,"ERROR",SUM(Q55,U55))) ->  | Y55: =IF(D55="Yes",SUM(W55)/SUM(O55),"") -> 
A56: =IF(ISBLANK('Program Requirements'!A78),"",('Program Requirements'!A78)) -> Mary Carr Greer Elementary | E56: =IF(ISBLANK('Program Requirements'!D78),"",'Program Requirements'!D78) -> PK - 05 | N56: =IF(D56="Yes",('Program Requirements'!G78),"") ->  | O56: =IF(D56="Yes",('Program Requirements'!L78),"") ->  | P56: =IF(ISBLANK('Program Requirements'!M78),"",'Program Requirements'!M78) -> 0.7465618861 | S56: =SUM(S55)-SUM(Q56)-SUM(U56) -> 
A57: =IF(ISBLANK('Program Requirements'!A79),"",('Program Requirements'!A79)) -> Woodbrook Elementary | E57: =IF(ISBLANK('Program Requirements'!D79),"",'Program Requirements'!D79) -> PK - 05 | N57: =IF(D57="Yes",('Program Requirements'!G79),"") ->  | O57: =IF(D57="Yes",('Program Requirements'!L79),"") ->  | P57: =IF(ISBLANK('Program Requirements'!M79),"",'Program Requirements'!M79) -> 0.6683760684
A58: =IF(ISBLANK('Program Requirements'!A80),"",('Program Requirements'!A80)) -> Jack Jouett Middle | E58: =IF(ISBLANK('Program Requirements'!D80),"",'Program Requirements'!D80) -> 06 - 08 | N58: =IF(D58="Yes",('Program Requirements'!G80),"") ->  | O58: =IF(D58="Yes",('Program Requirements'!L80),"") ->  | P58: =IF(ISBLANK('Program Requirements'!M80),"",'Program Requirements'!M80) -> 0.5794392523
A59: =IF(ISBLANK('Program Requirements'!A81),"",('Program Requirements'!A81)) -> Agnor-Hurt Elementary | E59: =IF(ISBLANK('Program Requirements'!D81),"",'Program Requirements'!D81) -> PK - 05 | N59: =IF(D59="Yes",('Program Requirements'!G81),"") ->  | O59: =IF(D59="Yes",('Program Requirements'!L81),"") ->  | P59: =IF(ISBLANK('Program Requirements'!M81),"",'Program Requirements'!M81) -> 0.5590062112
A60: =IF(ISBLANK('Program Requirements'!A82),"",('Program Requirements'!A82)) -> Red Hill Elementary | E60: =IF(ISBLANK('Program Requirements'!D82),"",'Program Requirements'!D82) -> PK - 05 | N60: =IF(D60="Yes",('Program Requirements'!G82),"") ->  | O60: =IF(D60="Yes",('Program Requirements'!L82),"") ->  | P60: =IF(ISBLANK('Program Requirements'!M82),"",'Program Requirements'!M82) -> 0.5388349515
A61: =IF(ISBLANK('Program Requirements'!A83),"",('Program Requirements'!A83)) -> Scottsville Elementary | E61: =IF(ISBLANK('Program Requirements'!D83),"",'Program Requirements'!D83) -> PK - 05 | N61: =IF(D61="Yes",('Program Requirements'!G83),"") ->  | O61: =IF(D61="Yes",('Program Requirements'!L83),"") ->  | P61: =IF(ISBLANK('Program Requirements'!M83),"",'Program Requirements'!M83) -> 0.4692982456
A62: =IF(ISBLANK('Program Requirements'!A84),"",('Program Requirements'!A84)) -> Paul H. Cale Elementary | E62: =IF(ISBLANK('Program Requirements'!D84),"",'Program Requirements'!D84) -> PK - 05 | N62: =IF(D62="Yes",('Program Requirements'!G84),"") ->  | O62: =IF(D62="Yes",('Program Requirements'!L84),"") ->  | P62: =IF(ISBLANK('Program Requirements'!M84),"",'Program Requirements'!M84) -> 0.4531450578
A63: =IF(ISBLANK('Program Requirements'!A85),"",('Program Requirements'!A85)) -> Jackson P. Burley Middle | E63: =IF(ISBLANK('Program Requirements'!D85),"",'Program Requirements'!D85) -> 06 - 08 | N63: =IF(D63="Yes",('Program Requirements'!G85),"") ->  | O63: =IF(D63="Yes",('Program Requirements'!L85),"") ->  | P63: =IF(ISBLANK('Program Requirements'!M85),"",'Program Requirements'!M85) -> 0.441025641
A64: =IF(ISBLANK('Program Requirements'!A86),"",('Program Requirements'!A86)) -> Leslie H. Walton Middle | E64: =IF(ISBLANK('Program Requirements'!D86),"",'Program Requirements'!D86) -> 06 - 08 | N64: =IF(D64="Yes",('Program Requirements'!G86),"") ->  | O64: =IF(D64="Yes",('Program Requirements'!L86),"") ->  | P64: =IF(ISBLANK('Program Requirements'!M86),"",'Program Requirements'!M86) -> 0.4277286136
A65: =IF(ISBLANK('Program Requirements'!A87),"",('Program Requirements'!A87)) -> Monticello High | E65: =IF(ISBLANK('Program Requirements'!D87),"",'Program Requirements'!D87) -> 09 - 12 | N65: =IF(D65="Yes",('Program Requirements'!G87),"") ->  | O65: =IF(D65="Yes",('Program Requirements'!L87),"") ->  | P65: =IF(ISBLANK('Program Requirements'!M87),"",'Program Requirements'!M87) -> 0.3336120401
A66: =IF(ISBLANK('Program Requirements'!A88),"",('Program Requirements'!A88)) -> Albemarle High | E66: =IF(ISBLANK('Program Requirements'!D88),"",'Program Requirements'!D88) -> 09 - 12 | N66: =IF(D66="Yes",('Program Requirements'!G88),"") ->  | O66: =IF(D66="Yes",('Program Requirements'!L88),"") ->  | P66: =IF(ISBLANK('Program Requirements'!M88),"",'Program Requirements'!M88) -> 0.3246073298
A67: =IF(ISBLANK('Program Requirements'!A89),"",('Program Requirements'!A89)) -> Stony Point Elementary | E67: =IF(ISBLANK('Program Requirements'!D89),"",'Program Requirements'!D89) -> KG - 05 | N67: =IF(D67="Yes",('Program Requirements'!G89),"") ->  | O67: =IF(D67="Yes",('Program Requirements'!L89),"") ->  | P67: =IF(ISBLANK('Program Requirements'!M89),"",'Program Requirements'!M89) -> 0.3214285714
A68: =IF(ISBLANK('Program Requirements'!A90),"",('Program Requirements'!A90)) -> Crozet Elementary | E68: =IF(ISBLANK('Program Requirements'!D90),"",'Program Requirements'!D90) -> KG - 05 | N68: =IF(D68="Yes",('Program Requirements'!G90),"") ->  | O68: =IF(D68="Yes",('Program Requirements'!L90),"") ->  | P68: =IF(ISBLANK('Program Requirements'!M90),"",'Program Requirements'!M90) -> 0.306122449
A69: =IF(ISBLANK('Program Requirements'!A91),"",('Program Requirements'!A91)) -> Stone Robinson Elementary | E69: =IF(ISBLANK('Program Requirements'!D91),"",'Program Requirements'!D91) -> PK - 05 | N69: =IF(D69="Yes",('Program Requirements'!G91),"") ->  | O69: =IF(D69="Yes",('Program Requirements'!L91),"") ->  | P69: =IF(ISBLANK('Program Requirements'!M91),"",'Program Requirements'!M91) -> 0.2915851272
A70: =IF(ISBLANK('Program Requirements'!A92),"",('Program Requirements'!A92)) -> Baker-Butler Elementary | E70: =IF(ISBLANK('Program Requirements'!D92),"",'Program Requirements'!D92) -> PK - 05 | N70: =IF(D70="Yes",('Program Requirements'!G92),"") ->  | O70: =IF(D70="Yes",('Program Requirements'!L92),"") ->  | P70: =IF(ISBLANK('Program Requirements'!M92),"",'Program Requirements'!M92) -> 0.2673559823
A71: =IF(ISBLANK('Program Requirements'!A93),"",('Program Requirements'!A93)) -> Murray High | E71: =IF(ISBLANK('Program Requirements'!D93),"",'Program Requirements'!D93) -> 09 - 12 | N71: =IF(D71="Yes",('Program Requirements'!G93),"") ->  | O71: =IF(D71="Yes",('Program Requirements'!L93),"") ->  | P71: =IF(ISBLANK('Program Requirements'!M93),"",'Program Requirements'!M93) -> 0.2592592593
A72: =IF(ISBLANK('Program Requirements'!A94),"",('Program Requirements'!A94)) -> Albemarle County Community Public Charter School | E72: =IF(ISBLANK('Program Requirements'!D94),"",'Program Requirements'!D94) -> 06 - 08 | N72: =IF(D72="Yes",('Program Requirements'!G94),"") ->  | O72: =IF(D72="Yes",('Program Requirements'!L94),"") ->  | P72: =IF(ISBLANK('Program Requirements'!M94),"",'Program Requirements'!M94) -> 0.224137931
A73: =IF(ISBLANK('Program Requirements'!A95),"",('Program Requirements'!A95)) -> Mortimer Y. Sutherland Middle | E73: =IF(ISBLANK('Program Requirements'!D95),"",'Program Requirements'!D95) -> 06 - 08 | N73: =IF(D73="Yes",('Program Requirements'!G95),"") ->  | O73: =IF(D73="Yes",('Program Requirements'!L95),"") ->  | P73: =IF(ISBLANK('Program Requirements'!M95),"",'Program Requirements'!M95) -> 0.2201680672
A74: =IF(ISBLANK('Program Requirements'!A96),"",('Program Requirements'!A96)) -> Broadus Wood Elementary | E74: =IF(ISBLANK('Program Requirements'!D96),"",'Program Requirements'!D96) -> PK - 05 | N74: =IF(D74="Yes",('Program Requirements'!G96),"") ->  | O74: =IF(D74="Yes",('Program Requirements'!L96),"") ->  | P74: =IF(ISBLANK('Program Requirements'!M96),"",'Program Requirements'!M96) -> 0.1909722222
A75: =IF(ISBLANK('Program Requirements'!A97),"",('Program Requirements'!A97)) -> Hollymead Elementary | E75: =IF(ISBLANK('Program Requirements'!D97),"",'Program Requirements'!D97) -> PK - 05 | N75: =IF(D75="Yes",('Program Requirements'!G97),"") ->  | O75: =IF(D75="Yes",('Program Requirements'!L97),"") ->  | P75: =IF(ISBLANK('Program Requirements'!M97),"",'Program Requirements'!M97) -> 0.1744186047
A76: =IF(ISBLANK('Program Requirements'!A98),"",('Program Requirements'!A98)) -> Joseph T. Henley Middle | E76: =IF(ISBLANK('Program Requirements'!D98),"",'Program Requirements'!D98) -> 06 - 08 | N76: =IF(D76="Yes",('Program Requirements'!G98),"") ->  | O76: =IF(D76="Yes",('Program Requirements'!L98),"") ->  | P76: =IF(ISBLANK('Program Requirements'!M98),"",'Program Requirements'!M98) -> 0.1489594743
A77: =IF(ISBLANK('Program Requirements'!A99),"",('Program Requirements'!A99)) -> Western Albemarle High | E77: =IF(ISBLANK('Program Requirements'!D99),"",'Program Requirements'!D99) -> 09 - 12 | N77: =IF(D77="Yes",('Program Requirements'!G99),"") ->  | O77: =IF(D77="Yes",('Program Requirements'!L99),"") ->  | P77: =IF(ISBLANK('Program Requirements'!M99),"",'Program Requirements'!M99) -> 0.1268781302
A78: =IF(ISBLANK('Program Requirements'!A100),"",('Program Requirements'!A100)) -> Brownsville Elementary | E78: =IF(ISBLANK('Program Requirements'!D100),"",'Program Requirements'!D100) -> PK - 05 | N78: =IF(D78="Yes",('Program Requirements'!G100),"") ->  | O78: =IF(D78="Yes",('Program Requirements'!L100),"") ->  | P78: =IF(ISBLANK('Program Requirements'!M100),"",'Program Requirements'!M100) -> 0.1225433526
A79: =IF(ISBLANK('Program Requirements'!A101),"",('Program Requirements'!A101)) -> Meriwether Lewis Elementary | E79: =IF(ISBLANK('Program Requirements'!D101),"",'Program Requirements'!D101) -> KG - 05 | N79: =IF(D79="Yes",('Program Requirements'!G101),"") ->  | O79: =IF(D79="Yes",('Program Requirements'!L101),"") ->  | P79: =IF(ISBLANK('Program Requirements'!M101),"",'Program Requirements'!M101) -> 0.12
A80: =IF(ISBLANK('Program Requirements'!A102),"",('Program Requirements'!A102)) -> Virginia L. Murray Elementary | E80: =IF(ISBLANK('Program Requirements'!D102),"",'Program Requirements'!D102) -> PK - 05 | N80: =IF(D80="Yes",('Program Requirements'!G102),"") ->  | O80: =IF(D80="Yes",('Program Requirements'!L102),"") ->  | P80: =IF(ISBLANK('Program Requirements'!M102),"",'Program Requirements'!M102) -> 0.06870229008
A81: =IF(ISBLANK('Program Requirements'!A103),"",('Program Requirements'!A103)) ->  | E81: =IF(ISBLANK('Program Requirements'!D103),"",'Program Requirements'!D103) ->  | N81: =IF(D81="Yes",('Program Requirements'!G103),"") ->  | O81: =IF(D81="Yes",('Program Requirements'!L103),"") ->  | P81: =IF(ISBLANK('Program Requirements'!M103),"",'Program Requirements'!M103) -> 
A82: =IF(ISBLANK('Program Requirements'!A104),"",('Program Requirements'!A104)) ->  | E82: =IF(ISBLANK('Program Requirements'!D104),"",'Program Requirements'!D104) ->  | N82: =IF(D82="Yes",('Program Requirements'!G104),"") ->  | O82: =IF(D82="Yes",('Program Requirements'!L104),"") ->  | P82: =IF(ISBLANK('Program Requirements'!M104),"",'Program Requirements'!M104) -> 
A83: =IF(ISBLANK('Program Requirements'!A105),"",('Program Requirements'!A105)) ->  | E83: =IF(ISBLANK('Program Requirements'!D105),"",'Program Requirements'!D105) ->  | N83: =IF(D83="Yes",('Program Requirements'!G105),"") ->  | O83: =IF(D83="Yes",('Program Requirements'!L105),"") ->  | P83: =IF(ISBLANK('Program Requirements'!M105),"",'Program Requirements'!M105) -> 
A84: =IF(ISBLANK('Program Requirements'!A106),"",('Program Requirements'!A106)) ->  | E84: =IF(ISBLANK('Program Requirements'!D106),"",'Program Requirements'!D106) ->  | N84: =IF(D84="Yes",('Program Requirements'!G106),"") ->  | O84: =IF(D84="Yes",('Program Requirements'!L106),"") ->  | P84: =IF(ISBLANK('Program Requirements'!M106),"",'Program Requirements'!M106) -> 
A85: =IF(ISBLANK('Program Requirements'!A107),"",('Program Requirements'!A107)) ->  | E85: =IF(ISBLANK('Program Requirements'!D107),"",'Program Requirements'!D107) ->  | N85: =IF(D85="Yes",('Program Requirements'!G107),"") ->  | O85: =IF(D85="Yes",('Program Requirements'!L107),"") ->  | P85: =IF(ISBLANK('Program Requirements'!M107),"",'Program Requirements'!M107) -> 
A86: =IF(ISBLANK('Program Requirements'!A108),"",('Program Requirements'!A108)) ->  | E86: =IF(ISBLANK('Program Requirements'!D108),"",'Program Requirements'!D108) ->  | N86: =IF(D86="Yes",('Program Requirements'!G108),"") ->  | O86: =IF(D86="Yes",('Program Requirements'!L108),"") ->  | P86: =IF(ISBLANK('Program Requirements'!M108),"",'Program Requirements'!M108) -> 
A87: =IF(ISBLANK('Program Requirements'!A109),"",('Program Requirements'!A109)) ->  | E87: =IF(ISBLANK('Program Requirements'!D109),"",'Program Requirements'!D109) ->  | N87: =IF(D87="Yes",('Program Requirements'!G109),"") ->  | O87: =IF(D87="Yes",('Program Requirements'!L109),"") ->  | P87: =IF(ISBLANK('Program Requirements'!M109),"",'Program Requirements'!M109) ->  | Q87: =IF(IF(D87="Yes",IF(ISBLANK(O87),"",SUM(O87)*$T$47),0)>$F$46,SUM($F$46),IF(D87="Yes",IF(ISBLANK(O87),"",SUM(O87)*$T$47),"")) ->  | W87: =IF(SUM(U87)=0,SUM(Q87),IF(SUM(Q87,U87)=U87,"ERROR",SUM(Q87,U87))) -> 
A88: =IF(ISBLANK('Program Requirements'!A110),"",('Program Requirements'!A110)) ->  | E88: =IF(ISBLANK('Program Requirements'!D110),"",'Program Requirements'!D110) ->  | N88: =IF(D88="Yes",('Program Requirements'!G110),"") ->  | O88: =IF(D88="Yes",('Program Requirements'!L110),"") ->  | P88: =IF(ISBLANK('Program Requirements'!M110),"",'Program Requirements'!M110) -> 
A89: =IF(ISBLANK('Program Requirements'!A111),"",('Program Requirements'!A111)) ->  | E89: =IF(ISBLANK('Program Requirements'!D111),"",'Program Requirements'!D111) ->  | N89: =IF(D89="Yes",('Program Requirements'!G111),"") ->  | O89: =IF(D89="Yes",('Program Requirements'!L111),"") ->  | P89: =IF(ISBLANK('Program Requirements'!M111),"",'Program Requirements'!M111) -> 
A90: =IF(ISBLANK('Program Requirements'!A112),"",('Program Requirements'!A112)) ->  | E90: =IF(ISBLANK('Program Requirements'!D112),"",'Program Requirements'!D112) ->  | N90: =IF(D90="Yes",('Program Requirements'!G112),"") ->  | O90: =IF(D90="Yes",('Program Requirements'!L112),"") ->  | P90: =IF(ISBLANK('Program Requirements'!M112),"",'Program Requirements'!M112) -> 
A91: =IF(ISBLANK('Program Requirements'!A113),"",('Program Requirements'!A113)) ->  | E91: =IF(ISBLANK('Program Requirements'!D113),"",'Program Requirements'!D113) ->  | N91: =IF(D91="Yes",('Program Requirements'!G113),"") ->  | O91: =IF(D91="Yes",('Program Requirements'!L113),"") ->  | P91: =IF(ISBLANK('Program Requirements'!M113),"",'Program Requirements'!M113) -> 
A92: =IF(ISBLANK('Program Requirements'!A114),"",('Program Requirements'!A114)) ->  | E92: =IF(ISBLANK('Program Requirements'!D114),"",'Program Requirements'!D114) ->  | N92: =IF(D92="Yes",('Program Requirements'!G114),"") ->  | O92: =IF(D92="Yes",('Program Requirements'!L114),"") ->  | P92: =IF(ISBLANK('Program Requirements'!M114),"",'Program Requirements'!M114) -> 
A93: =IF(ISBLANK('Program Requirements'!A115),"",('Program Requirements'!A115)) ->  | E93: =IF(ISBLANK('Program Requirements'!D115),"",'Program Requirements'!D115) ->  | N93: =IF(D93="Yes",('Program Requirements'!G115),"") ->  | O93: =IF(D93="Yes",('Program Requirements'!L115),"") ->  | P93: =IF(ISBLANK('Program Requirements'!M115),"",'Program Requirements'!M115) -> 
A94: =IF(ISBLANK('Program Requirements'!A116),"",('Program Requirements'!A116)) ->  | E94: =IF(ISBLANK('Program Requirements'!D116),"",'Program Requirements'!D116) ->  | N94: =IF(D94="Yes",('Program Requirements'!G116),"") ->  | O94: =IF(D94="Yes",('Program Requirements'!L116),"") ->  | P94: =IF(ISBLANK('Program Requirements'!M116),"",'Program Requirements'!M116) -> 
A95: =IF(ISBLANK('Program Requirements'!A117),"",('Program Requirements'!A117)) ->  | E95: =IF(ISBLANK('Program Requirements'!D117),"",'Program Requirements'!D117) ->  | N95: =IF(D95="Yes",('Program Requirements'!G117),"") ->  | O95: =IF(D95="Yes",('Program Requirements'!L117),"") ->  | P95: =IF(ISBLANK('Program Requirements'!M117),"",'Program Requirements'!M117) -> 
A96: =IF(ISBLANK('Program Requirements'!A118),"",('Program Requirements'!A118)) ->  | E96: =IF(ISBLANK('Program Requirements'!D118),"",'Program Requirements'!D118) ->  | N96: =IF(D96="Yes",('Program Requirements'!G118),"") ->  | O96: =IF(D96="Yes",('Program Requirements'!L118),"") ->  | P96: =IF(ISBLANK('Program Requirements'!M118),"",'Program Requirements'!M118) -> 
A97: =IF(ISBLANK('Program Requirements'!A119),"",('Program Requirements'!A119)) ->  | E97: =IF(ISBLANK('Program Requirements'!D119),"",'Program Requirements'!D119) ->  | N97: =IF(D97="Yes",('Program Requirements'!G119),"") ->  | O97: =IF(D97="Yes",('Program Requirements'!L119),"") ->  | P97: =IF(ISBLANK('Program Requirements'!M119),"",'Program Requirements'!M119) -> 
A98: =IF(ISBLANK('Program Requirements'!A120),"",('Program Requirements'!A120)) ->  | E98: =IF(ISBLANK('Program Requirements'!D120),"",'Program Requirements'!D120) ->  | N98: =IF(D98="Yes",('Program Requirements'!G120),"") ->  | O98: =IF(D98="Yes",('Program Requirements'!L120),"") ->  | P98: =IF(ISBLANK('Program Requirements'!M120),"",'Program Requirements'!M120) -> 
A99: =IF(ISBLANK('Program Requirements'!A121),"",('Program Requirements'!A121)) ->  | E99: =IF(ISBLANK('Program Requirements'!D121),"",'Program Requirements'!D121) ->  | N99: =IF(D99="Yes",('Program Requirements'!G121),"") ->  | O99: =IF(D99="Yes",('Program Requirements'!L121),"") ->  | P99: =IF(ISBLANK('Program Requirements'!M121),"",'Program Requirements'!M121) -> 
A100: =IF(ISBLANK('Program Requirements'!A122),"",('Program Requirements'!A122)) ->  | E100: =IF(ISBLANK('Program Requirements'!D122),"",'Program Requirements'!D122) ->  | N100: =IF(D100="Yes",('Program Requirements'!G122),"") ->  | O100: =IF(D100="Yes",('Program Requirements'!L122),"") ->  | P100: =IF(ISBLANK('Program Requirements'!M122),"",'Program Requirements'!M122) -> 
A101: =IF(ISBLANK('Program Requirements'!A123),"",('Program Requirements'!A123)) ->  | E101: =IF(ISBLANK('Program Requirements'!D123),"",'Program Requirements'!D123) ->  | N101: =IF(D101="Yes",('Program Requirements'!G123),"") ->  | O101: =IF(D101="Yes",('Program Requirements'!L123),"") ->  | P101: =IF(ISBLANK('Program Requirements'!M123),"",'Program Requirements'!M123) -> 
A102: =IF(ISBLANK('Program Requirements'!A124),"",('Program Requirements'!A124)) ->  | E102: =IF(ISBLANK('Program Requirements'!D124),"",'Program Requirements'!D124) ->  | N102: =IF(D102="Yes",('Program Requirements'!G124),"") ->  | O102: =IF(D102="Yes",('Program Requirements'!L124),"") ->  | P102: =IF(ISBLANK('Program Requirements'!M124),"",'Program Requirements'!M124) -> 
A103: =IF(ISBLANK('Program Requirements'!A125),"",('Program Requirements'!A125)) ->  | E103: =IF(ISBLANK('Program Requirements'!D125),"",'Program Requirements'!D125) ->  | N103: =IF(D103="Yes",('Program Requirements'!G125),"") ->  | O103: =IF(D103="Yes",('Program Requirements'!L125),"") ->  | P103: =IF(ISBLANK('Program Requirements'!M125),"",'Program Requirements'!M125) -> 
A104: =IF(ISBLANK('Program Requirements'!A126),"",('Program Requirements'!A126)) ->  | E104: =IF(ISBLANK('Program Requirements'!D126),"",'Program Requirements'!D126) ->  | N104: =IF(D104="Yes",('Program Requirements'!G126),"") ->  | O104: =IF(D104="Yes",('Program Requirements'!L126),"") ->  | P104: =IF(ISBLANK('Program Requirements'!M126),"",'Program Requirements'!M126) -> 
A105: =IF(ISBLANK('Program Requirements'!A127),"",('Program Requirements'!A127)) ->  | E105: =IF(ISBLANK('Program Requirements'!D127),"",'Program Requirements'!D127) ->  | N105: =IF(D105="Yes",('Program Requirements'!G127),"") ->  | O105: =IF(D105="Yes",('Program Requirements'!L127),"") ->  | P105: =IF(ISBLANK('Program Requirements'!M127),"",'Program Requirements'!M127) -> 
A106: =IF(ISBLANK('Program Requirements'!A128),"",('Program Requirements'!A128)) ->  | E106: =IF(ISBLANK('Program Requirements'!D128),"",'Program Requirements'!D128) ->  | N106: =IF(D106="Yes",('Program Requirements'!G128),"") ->  | O106: =IF(D106="Yes",('Program Requirements'!L128),"") ->  | P106: =IF(ISBLANK('Program Requirements'!M128),"",'Program Requirements'!M128) -> 
A107: =IF(ISBLANK('Program Requirements'!A129),"",('Program Requirements'!A129)) ->  | E107: =IF(ISBLANK('Program Requirements'!D129),"",'Program Requirements'!D129) ->  | N107: =IF(D107="Yes",('Program Requirements'!G129),"") ->  | O107: =IF(D107="Yes",('Program Requirements'!L129),"") ->  | P107: =IF(ISBLANK('Program Requirements'!M129),"",'Program Requirements'!M129) -> 
A108: =IF(ISBLANK('Program Requirements'!A130),"",('Program Requirements'!A130)) ->  | E108: =IF(ISBLANK('Program Requirements'!D130),"",'Program Requirements'!D130) ->  | N108: =IF(D108="Yes",('Program Requirements'!G130),"") ->  | O108: =IF(D108="Yes",('Program Requirements'!L130),"") ->  | P108: =IF(ISBLANK('Program Requirements'!M130),"",'Program Requirements'!M130) -> 
A109: =IF(ISBLANK('Program Requirements'!A131),"",('Program Requirements'!A131)) ->  | E109: =IF(ISBLANK('Program Requirements'!D131),"",'Program Requirements'!D131) ->  | N109: =IF(D109="Yes",('Program Requirements'!G131),"") ->  | O109: =IF(D109="Yes",('Program Requirements'!L131),"") ->  | P109: =IF(ISBLANK('Program Requirements'!M131),"",'Program Requirements'!M131) -> 
A110: =IF(ISBLANK('Program Requirements'!A132),"",('Program Requirements'!A132)) ->  | E110: =IF(ISBLANK('Program Requirements'!D132),"",'Program Requirements'!D132) ->  | N110: =IF(D110="Yes",('Program Requirements'!G132),"") ->  | O110: =IF(D110="Yes",('Program Requirements'!L132),"") ->  | P110: =IF(ISBLANK('Program Requirements'!M132),"",'Program Requirements'!M132) -> 
A111: =IF(ISBLANK('Program Requirements'!A133),"",('Program Requirements'!A133)) ->  | E111: =IF(ISBLANK('Program Requirements'!D133),"",'Program Requirements'!D133) ->  | N111: =IF(D111="Yes",('Program Requirements'!G133),"") ->  | O111: =IF(D111="Yes",('Program Requirements'!L133),"") ->  | P111: =IF(ISBLANK('Program Requirements'!M133),"",'Program Requirements'!M133) -> 
A112: =IF(ISBLANK('Program Requirements'!A134),"",('Program Requirements'!A134)) ->  | E112: =IF(ISBLANK('Program Requirements'!D134),"",'Program Requirements'!D134) ->  | N112: =IF(D112="Yes",('Program Requirements'!G134),"") ->  | O112: =IF(D112="Yes",('Program Requirements'!L134),"") ->  | P112: =IF(ISBLANK('Program Requirements'!M134),"",'Program Requirements'!M134) -> 
A113: =IF(ISBLANK('Program Requirements'!A135),"",('Program Requirements'!A135)) ->  | E113: =IF(ISBLANK('Program Requirements'!D135),"",'Program Requirements'!D135) ->  | N113: =IF(D113="Yes",('Program Requirements'!G135),"") ->  | O113: =IF(D113="Yes",('Program Requirements'!L135),"") ->  | P113: =IF(ISBLANK('Program Requirements'!M135),"",'Program Requirements'!M135) -> 
A114: =IF(ISBLANK('Program Requirements'!A136),"",('Program Requirements'!A136)) ->  | E114: =IF(ISBLANK('Program Requirements'!D136),"",'Program Requirements'!D136) ->  | N114: =IF(D114="Yes",('Program Requirements'!G136),"") ->  | O114: =IF(D114="Yes",('Program Requirements'!L136),"") ->  | P114: =IF(ISBLANK('Program Requirements'!M136),"",'Program Requirements'!M136) -> 
A115: =IF(ISBLANK('Program Requirements'!A137),"",('Program Requirements'!A137)) ->  | E115: =IF(ISBLANK('Program Requirements'!D137),"",'Program Requirements'!D137) ->  | N115: =IF(D115="Yes",('Program Requirements'!G137),"") ->  | O115: =IF(D115="Yes",('Program Requirements'!L137),"") ->  | P115: =IF(ISBLANK('Program Requirements'!M137),"",'Program Requirements'!M137) -> 
A116: =IF(ISBLANK('Program Requirements'!A138),"",('Program Requirements'!A138)) ->  | E116: =IF(ISBLANK('Program Requirements'!D138),"",'Program Requirements'!D138) ->  | N116: =IF(D116="Yes",('Program Requirements'!G138),"") ->  | O116: =IF(D116="Yes",('Program Requirements'!L138),"") ->  | P116: =IF(ISBLANK('Program Requirements'!M138),"",'Program Requirements'!M138) -> 
A117: =IF(ISBLANK('Program Requirements'!A139),"",('Program Requirements'!A139)) ->  | E117: =IF(ISBLANK('Program Requirements'!D139),"",'Program Requirements'!D139) ->  | N117: =IF(D117="Yes",('Program Requirements'!G139),"") ->  | O117: =IF(D117="Yes",('Program Requirements'!L139),"") ->  | P117: =IF(ISBLANK('Program Requirements'!M139),"",'Program Requirements'!M139) -> 
A118: =IF(ISBLANK('Program Requirements'!A140),"",('Program Requirements'!A140)) ->  | E118: =IF(ISBLANK('Program Requirements'!D140),"",'Program Requirements'!D140) ->  | N118: =IF(D118="Yes",('Program Requirements'!G140),"") ->  | O118: =IF(D118="Yes",('Program Requirements'!L140),"") ->  | P118: =IF(ISBLANK('Program Requirements'!M140),"",'Program Requirements'!M140) -> 
A119: =IF(ISBLANK('Program Requirements'!A141),"",('Program Requirements'!A141)) ->  | E119: =IF(ISBLANK('Program Requirements'!D141),"",'Program Requirements'!D141) ->  | N119: =IF(D119="Yes",('Program Requirements'!G141),"") ->  | O119: =IF(D119="Yes",('Program Requirements'!L141),"") ->  | P119: =IF(ISBLANK('Program Requirements'!M141),"",'Program Requirements'!M141) ->  | Y119: =IF(D119="Yes",SUM(W119)/SUM(O119),"") -> 
A120: =IF(ISBLANK('Program Requirements'!A142),"",('Program Requirements'!A142)) ->  | E120: =IF(ISBLANK('Program Requirements'!D142),"",'Program Requirements'!D142) ->  | N120: =IF(D120="Yes",('Program Requirements'!G142),"") ->  | O120: =IF(D120="Yes",('Program Requirements'!L142),"") ->  | P120: =IF(ISBLANK('Program Requirements'!M142),"",'Program Requirements'!M142) ->  | S120: =SUM(S119)-SUM(Q120)-SUM(U120) -> 
A121: =IF(ISBLANK('Program Requirements'!A143),"",('Program Requirements'!A143)) ->  | E121: =IF(ISBLANK('Program Requirements'!D143),"",'Program Requirements'!D143) ->  | N121: =IF(D121="Yes",('Program Requirements'!G143),"") ->  | O121: =IF(D121="Yes",('Program Requirements'!L143),"") ->  | P121: =IF(ISBLANK('Program Requirements'!M143),"",'Program Requirements'!M143) -> 
A122: =IF(ISBLANK('Program Requirements'!A144),"",('Program Requirements'!A144)) ->  | E122: =IF(ISBLANK('Program Requirements'!D144),"",'Program Requirements'!D144) ->  | N122: =IF(D122="Yes",('Program Requirements'!G144),"") ->  | O122: =IF(D122="Yes",('Program Requirements'!L144),"") ->  | P122: =IF(ISBLANK('Program Requirements'!M144),"",'Program Requirements'!M144) -> 
A123: =IF(ISBLANK('Program Requirements'!A145),"",('Program Requirements'!A145)) ->  | E123: =IF(ISBLANK('Program Requirements'!D145),"",'Program Requirements'!D145) ->  | N123: =IF(D123="Yes",('Program Requirements'!G145),"") ->  | O123: =IF(D123="Yes",('Program Requirements'!L145),"") ->  | P123: =IF(ISBLANK('Program Requirements'!M145),"",'Program Requirements'!M145) -> 
A124: =IF(ISBLANK('Program Requirements'!A146),"",('Program Requirements'!A146)) ->  | E124: =IF(ISBLANK('Program Requirements'!D146),"",'Program Requirements'!D146) ->  | N124: =IF(D124="Yes",('Program Requirements'!G146),"") ->  | O124: =IF(D124="Yes",('Program Requirements'!L146),"") ->  | P124: =IF(ISBLANK('Program Requirements'!M146),"",'Program Requirements'!M146) -> 
A125: =IF(ISBLANK('Program Requirements'!A147),"",('Program Requirements'!A147)) ->  | E125: =IF(ISBLANK('Program Requirements'!D147),"",'Program Requirements'!D147) ->  | N125: =IF(D125="Yes",('Program Requirements'!G147),"") ->  | O125: =IF(D125="Yes",('Program Requirements'!L147),"") ->  | P125: =IF(ISBLANK('Program Requirements'!M147),"",'Program Requirements'!M147) -> 
A126: =IF(ISBLANK('Program Requirements'!A148),"",('Program Requirements'!A148)) ->  | E126: =IF(ISBLANK('Program Requirements'!D148),"",'Program Requirements'!D148) ->  | N126: =IF(D126="Yes",('Program Requirements'!G148),"") ->  | O126: =IF(D126="Yes",('Program Requirements'!L148),"") ->  | P126: =IF(ISBLANK('Program Requirements'!M148),"",'Program Requirements'!M148) -> 
A127: =IF(ISBLANK('Program Requirements'!A149),"",('Program Requirements'!A149)) ->  | E127: =IF(ISBLANK('Program Requirements'!D149),"",'Program Requirements'!D149) ->  | N127: =IF(D127="Yes",('Program Requirements'!G149),"") ->  | O127: =IF(D127="Yes",('Program Requirements'!L149),"") ->  | P127: =IF(ISBLANK('Program Requirements'!M149),"",'Program Requirements'!M149) -> 
A128: =IF(ISBLANK('Program Requirements'!A150),"",('Program Requirements'!A150)) ->  | E128: =IF(ISBLANK('Program Requirements'!D150),"",'Program Requirements'!D150) ->  | N128: =IF(D128="Yes",('Program Requirements'!G150),"") ->  | O128: =IF(D128="Yes",('Program Requirements'!L150),"") ->  | P128: =IF(ISBLANK('Program Requirements'!M150),"",'Program Requirements'!M150) -> 
A129: =IF(ISBLANK('Program Requirements'!A151),"",('Program Requirements'!A151)) ->  | E129: =IF(ISBLANK('Program Requirements'!D151),"",'Program Requirements'!D151) ->  | N129: =IF(D129="Yes",('Program Requirements'!G151),"") ->  | O129: =IF(D129="Yes",('Program Requirements'!L151),"") ->  | P129: =IF(ISBLANK('Program Requirements'!M151),"",'Program Requirements'!M151) -> 
A130: =IF(ISBLANK('Program Requirements'!A152),"",('Program Requirements'!A152)) ->  | E130: =IF(ISBLANK('Program Requirements'!D152),"",'Program Requirements'!D152) ->  | N130: =IF(D130="Yes",('Program Requirements'!G152),"") ->  | O130: =IF(D130="Yes",('Program Requirements'!L152),"") ->  | P130: =IF(ISBLANK('Program Requirements'!M152),"",'Program Requirements'!M152) -> 
A131: =IF(ISBLANK('Program Requirements'!A153),"",('Program Requirements'!A153)) ->  | E131: =IF(ISBLANK('Program Requirements'!D153),"",'Program Requirements'!D153) ->  | N131: =IF(D131="Yes",('Program Requirements'!G153),"") ->  | O131: =IF(D131="Yes",('Program Requirements'!L153),"") ->  | P131: =IF(ISBLANK('Program Requirements'!M153),"",'Program Requirements'!M153) -> 
A132: =IF(ISBLANK('Program Requirements'!A154),"",('Program Requirements'!A154)) ->  | E132: =IF(ISBLANK('Program Requirements'!D154),"",'Program Requirements'!D154) ->  | N132: =IF(D132="Yes",('Program Requirements'!G154),"") ->  | O132: =IF(D132="Yes",('Program Requirements'!L154),"") ->  | P132: =IF(ISBLANK('Program Requirements'!M154),"",'Program Requirements'!M154) -> 
A133: =IF(ISBLANK('Program Requirements'!A155),"",('Program Requirements'!A155)) ->  | E133: =IF(ISBLANK('Program Requirements'!D155),"",'Program Requirements'!D155) ->  | N133: =IF(D133="Yes",('Program Requirements'!G155),"") ->  | O133: =IF(D133="Yes",('Program Requirements'!L155),"") ->  | P133: =IF(ISBLANK('Program Requirements'!M155),"",'Program Requirements'!M155) -> 
A134: =IF(ISBLANK('Program Requirements'!A156),"",('Program Requirements'!A156)) ->  | E134: =IF(ISBLANK('Program Requirements'!D156),"",'Program Requirements'!D156) ->  | N134: =IF(D134="Yes",('Program Requirements'!G156),"") ->  | O134: =IF(D134="Yes",('Program Requirements'!L156),"") ->  | P134: =IF(ISBLANK('Program Requirements'!M156),"",'Program Requirements'!M156) -> 
A135: =IF(ISBLANK('Program Requirements'!A157),"",('Program Requirements'!A157)) ->  | E135: =IF(ISBLANK('Program Requirements'!D157),"",'Program Requirements'!D157) ->  | N135: =IF(D135="Yes",('Program Requirements'!G157),"") ->  | O135: =IF(D135="Yes",('Program Requirements'!L157),"") ->  | P135: =IF(ISBLANK('Program Requirements'!M157),"",'Program Requirements'!M157) -> 
A136: =IF(ISBLANK('Program Requirements'!A158),"",('Program Requirements'!A158)) ->  | E136: =IF(ISBLANK('Program Requirements'!D158),"",'Program Requirements'!D158) ->  | N136: =IF(D136="Yes",('Program Requirements'!G158),"") ->  | O136: =IF(D136="Yes",('Program Requirements'!L158),"") ->  | P136: =IF(ISBLANK('Program Requirements'!M158),"",'Program Requirements'!M158) -> 
A137: =IF(ISBLANK('Program Requirements'!A159),"",('Program Requirements'!A159)) ->  | E137: =IF(ISBLANK('Program Requirements'!D159),"",'Program Requirements'!D159) ->  | N137: =IF(D137="Yes",('Program Requirements'!G159),"") ->  | O137: =IF(D137="Yes",('Program Requirements'!L159),"") ->  | P137: =IF(ISBLANK('Program Requirements'!M159),"",'Program Requirements'!M159) -> 
A138: =IF(ISBLANK('Program Requirements'!A160),"",('Program Requirements'!A160)) ->  | E138: =IF(ISBLANK('Program Requirements'!D160),"",'Program Requirements'!D160) ->  | N138: =IF(D138="Yes",('Program Requirements'!G160),"") ->  | O138: =IF(D138="Yes",('Program Requirements'!L160),"") ->  | P138: =IF(ISBLANK('Program Requirements'!M160),"",'Program Requirements'!M160) -> 
A139: =IF(ISBLANK('Program Requirements'!A161),"",('Program Requirements'!A161)) ->  | E139: =IF(ISBLANK('Program Requirements'!D161),"",'Program Requirements'!D161) ->  | N139: =IF(D139="Yes",('Program Requirements'!G161),"") ->  | O139: =IF(D139="Yes",('Program Requirements'!L161),"") ->  | P139: =IF(ISBLANK('Program Requirements'!M161),"",'Program Requirements'!M161) -> 
A140: =IF(ISBLANK('Program Requirements'!A162),"",('Program Requirements'!A162)) ->  | E140: =IF(ISBLANK('Program Requirements'!D162),"",'Program Requirements'!D162) ->  | N140: =IF(D140="Yes",('Program Requirements'!G162),"") ->  | O140: =IF(D140="Yes",('Program Requirements'!L162),"") ->  | P140: =IF(ISBLANK('Program Requirements'!M162),"",'Program Requirements'!M162) -> 
A141: =IF(ISBLANK('Program Requirements'!A163),"",('Program Requirements'!A163)) ->  | E141: =IF(ISBLANK('Program Requirements'!D163),"",'Program Requirements'!D163) ->  | N141: =IF(D141="Yes",('Program Requirements'!G163),"") ->  | O141: =IF(D141="Yes",('Program Requirements'!L163),"") ->  | P141: =IF(ISBLANK('Program Requirements'!M163),"",'Program Requirements'!M163) -> 
A142: =IF(ISBLANK('Program Requirements'!A164),"",('Program Requirements'!A164)) ->  | E142: =IF(ISBLANK('Program Requirements'!D164),"",'Program Requirements'!D164) ->  | N142: =IF(D142="Yes",('Program Requirements'!G164),"") ->  | O142: =IF(D142="Yes",('Program Requirements'!L164),"") ->  | P142: =IF(ISBLANK('Program Requirements'!M164),"",'Program Requirements'!M164) -> 
A143: =IF(ISBLANK('Program Requirements'!A165),"",('Program Requirements'!A165)) ->  | E143: =IF(ISBLANK('Program Requirements'!D165),"",'Program Requirements'!D165) ->  | N143: =IF(D143="Yes",('Program Requirements'!G165),"") ->  | O143: =IF(D143="Yes",('Program Requirements'!L165),"") ->  | P143: =IF(ISBLANK('Program Requirements'!M165),"",'Program Requirements'!M165) -> 
A144: =IF(ISBLANK('Program Requirements'!A166),"",('Program Requirements'!A166)) ->  | E144: =IF(ISBLANK('Program Requirements'!D166),"",'Program Requirements'!D166) ->  | N144: =IF(D144="Yes",('Program Requirements'!G166),"") ->  | O144: =IF(D144="Yes",('Program Requirements'!L166),"") ->  | P144: =IF(ISBLANK('Program Requirements'!M166),"",'Program Requirements'!M166) -> 
A145: =IF(ISBLANK('Program Requirements'!A167),"",('Program Requirements'!A167)) ->  | E145: =IF(ISBLANK('Program Requirements'!D167),"",'Program Requirements'!D167) ->  | N145: =IF(D145="Yes",('Program Requirements'!G167),"") ->  | O145: =IF(D145="Yes",('Program Requirements'!L167),"") ->  | P145: =IF(ISBLANK('Program Requirements'!M167),"",'Program Requirements'!M167) -> 
A146: =IF(ISBLANK('Program Requirements'!A168),"",('Program Requirements'!A168)) ->  | E146: =IF(ISBLANK('Program Requirements'!D168),"",'Program Requirements'!D168) ->  | N146: =IF(D146="Yes",('Program Requirements'!G168),"") ->  | O146: =IF(D146="Yes",('Program Requirements'!L168),"") ->  | P146: =IF(ISBLANK('Program Requirements'!M168),"",'Program Requirements'!M168) -> 
A147: =IF(ISBLANK('Program Requirements'!A169),"",('Program Requirements'!A169)) ->  | E147: =IF(ISBLANK('Program Requirements'!D169),"",'Program Requirements'!D169) ->  | N147: =IF(D147="Yes",('Program Requirements'!G169),"") ->  | O147: =IF(D147="Yes",('Program Requirements'!L169),"") ->  | P147: =IF(ISBLANK('Program Requirements'!M169),"",'Program Requirements'!M169) -> 
A148: =IF(ISBLANK('Program Requirements'!A170),"",('Program Requirements'!A170)) ->  | E148: =IF(ISBLANK('Program Requirements'!D170),"",'Program Requirements'!D170) ->  | N148: =IF(D148="Yes",('Program Requirements'!G170),"") ->  | O148: =IF(D148="Yes",('Program Requirements'!L170),"") ->  | P148: =IF(ISBLANK('Program Requirements'!M170),"",'Program Requirements'!M170) -> 
A149: =IF(ISBLANK('Program Requirements'!A171),"",('Program Requirements'!A171)) ->  | E149: =IF(ISBLANK('Program Requirements'!D171),"",'Program Requirements'!D171) ->  | N149: =IF(D149="Yes",('Program Requirements'!G171),"") ->  | O149: =IF(D149="Yes",('Program Requirements'!L171),"") ->  | P149: =IF(ISBLANK('Program Requirements'!M171),"",'Program Requirements'!M171) -> 
A150: =IF(ISBLANK('Program Requirements'!A172),"",('Program Requirements'!A172)) ->  | E150: =IF(ISBLANK('Program Requirements'!D172),"",'Program Requirements'!D172) ->  | N150: =IF(D150="Yes",('Program Requirements'!G172),"") ->  | O150: =IF(D150="Yes",('Program Requirements'!L172),"") ->  | P150: =IF(ISBLANK('Program Requirements'!M172),"",'Program Requirements'!M172) -> 
A151: =IF(ISBLANK('Program Requirements'!A173),"",('Program Requirements'!A173)) ->  | E151: =IF(ISBLANK('Program Requirements'!D173),"",'Program Requirements'!D173) ->  | N151: =IF(D151="Yes",('Program Requirements'!G173),"") ->  | O151: =IF(D151="Yes",('Program Requirements'!L173),"") ->  | P151: =IF(ISBLANK('Program Requirements'!M173),"",'Program Requirements'!M173) ->  | Q151: =IF(IF(D151="Yes",IF(ISBLANK(O151),"",SUM(O151)*$T$47),0)>$F$46,SUM($F$46),IF(D151="Yes",IF(ISBLANK(O151),"",SUM(O151)*$T$47),"")) ->  | W151: =IF(SUM(U151)=0,SUM(Q151),IF(SUM(Q151,U151)=U151,"ERROR",SUM(Q151,U151))) -> 
A152: =IF(ISBLANK('Program Requirements'!A174),"",('Program Requirements'!A174)) ->  | E152: =IF(ISBLANK('Program Requirements'!D174),"",'Program Requirements'!D174) ->  | N152: =IF(D152="Yes",('Program Requirements'!G174),"") ->  | O152: =IF(D152="Yes",('Program Requirements'!L174),"") ->  | P152: =IF(ISBLANK('Program Requirements'!M174),"",'Program Requirements'!M174) -> 
A153: =IF(ISBLANK('Program Requirements'!A175),"",('Program Requirements'!A175)) ->  | E153: =IF(ISBLANK('Program Requirements'!D175),"",'Program Requirements'!D175) ->  | N153: =IF(D153="Yes",('Program Requirements'!G175),"") ->  | O153: =IF(D153="Yes",('Program Requirements'!L175),"") ->  | P153: =IF(ISBLANK('Program Requirements'!M175),"",'Program Requirements'!M175) -> 
A154: =IF(ISBLANK('Program Requirements'!A176),"",('Program Requirements'!A176)) ->  | E154: =IF(ISBLANK('Program Requirements'!D176),"",'Program Requirements'!D176) ->  | N154: =IF(D154="Yes",('Program Requirements'!G176),"") ->  | O154: =IF(D154="Yes",('Program Requirements'!L176),"") ->  | P154: =IF(ISBLANK('Program Requirements'!M176),"",'Program Requirements'!M176) -> 
A155: =IF(ISBLANK('Program Requirements'!A177),"",('Program Requirements'!A177)) ->  | E155: =IF(ISBLANK('Program Requirements'!D177),"",'Program Requirements'!D177) ->  | N155: =IF(D155="Yes",('Program Requirements'!G177),"") ->  | O155: =IF(D155="Yes",('Program Requirements'!L177),"") ->  | P155: =IF(ISBLANK('Program Requirements'!M177),"",'Program Requirements'!M177) -> 
A156: =IF(ISBLANK('Program Requirements'!A178),"",('Program Requirements'!A178)) ->  | E156: =IF(ISBLANK('Program Requirements'!D178),"",'Program Requirements'!D178) ->  | N156: =IF(D156="Yes",('Program Requirements'!G178),"") ->  | O156: =IF(D156="Yes",('Program Requirements'!L178),"") ->  | P156: =IF(ISBLANK('Program Requirements'!M178),"",'Program Requirements'!M178) -> 
A157: =IF(ISBLANK('Program Requirements'!A179),"",('Program Requirements'!A179)) ->  | E157: =IF(ISBLANK('Program Requirements'!D179),"",'Program Requirements'!D179) ->  | N157: =IF(D157="Yes",('Program Requirements'!G179),"") ->  | O157: =IF(D157="Yes",('Program Requirements'!L179),"") ->  | P157: =IF(ISBLANK('Program Requirements'!M179),"",'Program Requirements'!M179) -> 
A158: =IF(ISBLANK('Program Requirements'!A180),"",('Program Requirements'!A180)) ->  | E158: =IF(ISBLANK('Program Requirements'!D180),"",'Program Requirements'!D180) ->  | N158: =IF(D158="Yes",('Program Requirements'!G180),"") ->  | O158: =IF(D158="Yes",('Program Requirements'!L180),"") ->  | P158: =IF(ISBLANK('Program Requirements'!M180),"",'Program Requirements'!M180) -> 
A159: =IF(ISBLANK('Program Requirements'!A181),"",('Program Requirements'!A181)) ->  | E159: =IF(ISBLANK('Program Requirements'!D181),"",'Program Requirements'!D181) ->  | N159: =IF(D159="Yes",('Program Requirements'!G181),"") ->  | O159: =IF(D159="Yes",('Program Requirements'!L181),"") ->  | P159: =IF(ISBLANK('Program Requirements'!M181),"",'Program Requirements'!M181) -> 
A160: =IF(ISBLANK('Program Requirements'!A182),"",('Program Requirements'!A182)) ->  | E160: =IF(ISBLANK('Program Requirements'!D182),"",'Program Requirements'!D182) ->  | N160: =IF(D160="Yes",('Program Requirements'!G182),"") ->  | O160: =IF(D160="Yes",('Program Requirements'!L182),"") ->  | P160: =IF(ISBLANK('Program Requirements'!M182),"",'Program Requirements'!M182) -> 
A161: =IF(ISBLANK('Program Requirements'!A183),"",('Program Requirements'!A183)) ->  | E161: =IF(ISBLANK('Program Requirements'!D183),"",'Program Requirements'!D183) ->  | N161: =IF(D161="Yes",('Program Requirements'!G183),"") ->  | O161: =IF(D161="Yes",('Program Requirements'!L183),"") ->  | P161: =IF(ISBLANK('Program Requirements'!M183),"",'Program Requirements'!M183) -> 
A162: =IF(ISBLANK('Program Requirements'!A184),"",('Program Requirements'!A184)) ->  | E162: =IF(ISBLANK('Program Requirements'!D184),"",'Program Requirements'!D184) ->  | N162: =IF(D162="Yes",('Program Requirements'!G184),"") ->  | O162: =IF(D162="Yes",('Program Requirements'!L184),"") ->  | P162: =IF(ISBLANK('Program Requirements'!M184),"",'Program Requirements'!M184) -> 
A163: =IF(ISBLANK('Program Requirements'!A185),"",('Program Requirements'!A185)) ->  | E163: =IF(ISBLANK('Program Requirements'!D185),"",'Program Requirements'!D185) ->  | N163: =IF(D163="Yes",('Program Requirements'!G185),"") ->  | O163: =IF(D163="Yes",('Program Requirements'!L185),"") ->  | P163: =IF(ISBLANK('Program Requirements'!M185),"",'Program Requirements'!M185) -> 
A164: =IF(ISBLANK('Program Requirements'!A186),"",('Program Requirements'!A186)) ->  | E164: =IF(ISBLANK('Program Requirements'!D186),"",'Program Requirements'!D186) ->  | N164: =IF(D164="Yes",('Program Requirements'!G186),"") ->  | O164: =IF(D164="Yes",('Program Requirements'!L186),"") ->  | P164: =IF(ISBLANK('Program Requirements'!M186),"",'Program Requirements'!M186) -> 
A165: =IF(ISBLANK('Program Requirements'!A187),"",('Program Requirements'!A187)) ->  | E165: =IF(ISBLANK('Program Requirements'!D187),"",'Program Requirements'!D187) ->  | N165: =IF(D165="Yes",('Program Requirements'!G187),"") ->  | O165: =IF(D165="Yes",('Program Requirements'!L187),"") ->  | P165: =IF(ISBLANK('Program Requirements'!M187),"",'Program Requirements'!M187) -> 
A166: =IF(ISBLANK('Program Requirements'!A188),"",('Program Requirements'!A188)) ->  | E166: =IF(ISBLANK('Program Requirements'!D188),"",'Program Requirements'!D188) ->  | N166: =IF(D166="Yes",('Program Requirements'!G188),"") ->  | O166: =IF(D166="Yes",('Program Requirements'!L188),"") ->  | P166: =IF(ISBLANK('Program Requirements'!M188),"",'Program Requirements'!M188) -> 
A167: =IF(ISBLANK('Program Requirements'!A189),"",('Program Requirements'!A189)) ->  | E167: =IF(ISBLANK('Program Requirements'!D189),"",'Program Requirements'!D189) ->  | N167: =IF(D167="Yes",('Program Requirements'!G189),"") ->  | O167: =IF(D167="Yes",('Program Requirements'!L189),"") ->  | P167: =IF(ISBLANK('Program Requirements'!M189),"",'Program Requirements'!M189) -> 
A168: =IF(ISBLANK('Program Requirements'!A190),"",('Program Requirements'!A190)) ->  | E168: =IF(ISBLANK('Program Requirements'!D190),"",'Program Requirements'!D190) ->  | N168: =IF(D168="Yes",('Program Requirements'!G190),"") ->  | O168: =IF(D168="Yes",('Program Requirements'!L190),"") ->  | P168: =IF(ISBLANK('Program Requirements'!M190),"",'Program Requirements'!M190) -> 
A169: =IF(ISBLANK('Program Requirements'!A191),"",('Program Requirements'!A191)) ->  | E169: =IF(ISBLANK('Program Requirements'!D191),"",'Program Requirements'!D191) ->  | N169: =IF(D169="Yes",('Program Requirements'!G191),"") ->  | O169: =IF(D169="Yes",('Program Requirements'!L191),"") ->  | P169: =IF(ISBLANK('Program Requirements'!M191),"",'Program Requirements'!M191) -> 
A170: =IF(ISBLANK('Program Requirements'!A192),"",('Program Requirements'!A192)) ->  | E170: =IF(ISBLANK('Program Requirements'!D192),"",'Program Requirements'!D192) ->  | N170: =IF(D170="Yes",('Program Requirements'!G192),"") ->  | O170: =IF(D170="Yes",('Program Requirements'!L192),"") ->  | P170: =IF(ISBLANK('Program Requirements'!M192),"",'Program Requirements'!M192) -> 
A171: =IF(ISBLANK('Program Requirements'!A193),"",('Program Requirements'!A193)) ->  | E171: =IF(ISBLANK('Program Requirements'!D193),"",'Program Requirements'!D193) ->  | N171: =IF(D171="Yes",('Program Requirements'!G193),"") ->  | O171: =IF(D171="Yes",('Program Requirements'!L193),"") ->  | P171: =IF(ISBLANK('Program Requirements'!M193),"",'Program Requirements'!M193) -> 
A172: =IF(ISBLANK('Program Requirements'!A194),"",('Program Requirements'!A194)) ->  | E172: =IF(ISBLANK('Program Requirements'!D194),"",'Program Requirements'!D194) ->  | N172: =IF(D172="Yes",('Program Requirements'!G194),"") ->  | O172: =IF(D172="Yes",('Program Requirements'!L194),"") ->  | P172: =IF(ISBLANK('Program Requirements'!M194),"",'Program Requirements'!M194) -> 
A173: =IF(ISBLANK('Program Requirements'!A195),"",('Program Requirements'!A195)) ->  | E173: =IF(ISBLANK('Program Requirements'!D195),"",'Program Requirements'!D195) ->  | N173: =IF(D173="Yes",('Program Requirements'!G195),"") ->  | O173: =IF(D173="Yes",('Program Requirements'!L195),"") ->  | P173: =IF(ISBLANK('Program Requirements'!M195),"",'Program Requirements'!M195) -> 
A174: =IF(ISBLANK('Program Requirements'!A196),"",('Program Requirements'!A196)) ->  | E174: =IF(ISBLANK('Program Requirements'!D196),"",'Program Requirements'!D196) ->  | N174: =IF(D174="Yes",('Program Requirements'!G196),"") ->  | O174: =IF(D174="Yes",('Program Requirements'!L196),"") ->  | P174: =IF(ISBLANK('Program Requirements'!M196),"",'Program Requirements'!M196) -> 
A175: =IF(ISBLANK('Program Requirements'!A197),"",('Program Requirements'!A197)) ->  | E175: =IF(ISBLANK('Program Requirements'!D197),"",'Program Requirements'!D197) ->  | N175: =IF(D175="Yes",('Program Requirements'!G197),"") ->  | O175: =IF(D175="Yes",('Program Requirements'!L197),"") ->  | P175: =IF(ISBLANK('Program Requirements'!M197),"",'Program Requirements'!M197) -> 
A176: =IF(ISBLANK('Program Requirements'!A198),"",('Program Requirements'!A198)) ->  | E176: =IF(ISBLANK('Program Requirements'!D198),"",'Program Requirements'!D198) ->  | N176: =IF(D176="Yes",('Program Requirements'!G198),"") ->  | O176: =IF(D176="Yes",('Program Requirements'!L198),"") ->  | P176: =IF(ISBLANK('Program Requirements'!M198),"",'Program Requirements'!M198) -> 
A177: =IF(ISBLANK('Program Requirements'!A199),"",('Program Requirements'!A199)) ->  | E177: =IF(ISBLANK('Program Requirements'!D199),"",'Program Requirements'!D199) ->  | N177: =IF(D177="Yes",('Program Requirements'!G199),"") ->  | O177: =IF(D177="Yes",('Program Requirements'!L199),"") ->  | P177: =IF(ISBLANK('Program Requirements'!M199),"",'Program Requirements'!M199) -> 
A178: =IF(ISBLANK('Program Requirements'!A200),"",('Program Requirements'!A200)) ->  | E178: =IF(ISBLANK('Program Requirements'!D200),"",'Program Requirements'!D200) ->  | N178: =IF(D178="Yes",('Program Requirements'!G200),"") ->  | O178: =IF(D178="Yes",('Program Requirements'!L200),"") ->  | P178: =IF(ISBLANK('Program Requirements'!M200),"",'Program Requirements'!M200) -> 
A179: =IF(ISBLANK('Program Requirements'!A201),"",('Program Requirements'!A201)) ->  | E179: =IF(ISBLANK('Program Requirements'!D201),"",'Program Requirements'!D201) ->  | N179: =IF(D179="Yes",('Program Requirements'!G201),"") ->  | O179: =IF(D179="Yes",('Program Requirements'!L201),"") ->  | P179: =IF(ISBLANK('Program Requirements'!M201),"",'Program Requirements'!M201) -> 
A180: =IF(ISBLANK('Program Requirements'!A202),"",('Program Requirements'!A202)) ->  | E180: =IF(ISBLANK('Program Requirements'!D202),"",'Program Requirements'!D202) ->  | N180: =IF(D180="Yes",('Program Requirements'!G202),"") ->  | O180: =IF(D180="Yes",('Program Requirements'!L202),"") ->  | P180: =IF(ISBLANK('Program Requirements'!M202),"",'Program Requirements'!M202) -> 
A181: =IF(ISBLANK('Program Requirements'!A203),"",('Program Requirements'!A203)) ->  | E181: =IF(ISBLANK('Program Requirements'!D203),"",'Program Requirements'!D203) ->  | N181: =IF(D181="Yes",('Program Requirements'!G203),"") ->  | O181: =IF(D181="Yes",('Program Requirements'!L203),"") ->  | P181: =IF(ISBLANK('Program Requirements'!M203),"",'Program Requirements'!M203) -> 
A182: =IF(ISBLANK('Program Requirements'!A204),"",('Program Requirements'!A204)) ->  | E182: =IF(ISBLANK('Program Requirements'!D204),"",'Program Requirements'!D204) ->  | N182: =IF(D182="Yes",('Program Requirements'!G204),"") ->  | O182: =IF(D182="Yes",('Program Requirements'!L204),"") ->  | P182: =IF(ISBLANK('Program Requirements'!M204),"",'Program Requirements'!M204) -> 
A183: =IF(ISBLANK('Program Requirements'!A205),"",('Program Requirements'!A205)) ->  | E183: =IF(ISBLANK('Program Requirements'!D205),"",'Program Requirements'!D205) ->  | N183: =IF(D183="Yes",('Program Requirements'!G205),"") ->  | O183: =IF(D183="Yes",('Program Requirements'!L205),"") ->  | P183: =IF(ISBLANK('Program Requirements'!M205),"",'Program Requirements'!M205) ->  | Y183: =IF(D183="Yes",SUM(W183)/SUM(O183),"") -> 
A184: =IF(ISBLANK('Program Requirements'!A206),"",('Program Requirements'!A206)) ->  | E184: =IF(ISBLANK('Program Requirements'!D206),"",'Program Requirements'!D206) ->  | N184: =IF(D184="Yes",('Program Requirements'!G206),"") ->  | O184: =IF(D184="Yes",('Program Requirements'!L206),"") ->  | P184: =IF(ISBLANK('Program Requirements'!M206),"",'Program Requirements'!M206) ->  | S184: =SUM(S183)-SUM(Q184)-SUM(U184) -> 
A185: =IF(ISBLANK('Program Requirements'!A207),"",('Program Requirements'!A207)) ->  | E185: =IF(ISBLANK('Program Requirements'!D207),"",'Program Requirements'!D207) ->  | N185: =IF(D185="Yes",('Program Requirements'!G207),"") ->  | O185: =IF(D185="Yes",('Program Requirements'!L207),"") ->  | P185: =IF(ISBLANK('Program Requirements'!M207),"",'Program Requirements'!M207) -> 
A186: =IF(ISBLANK('Program Requirements'!A208),"",('Program Requirements'!A208)) ->  | E186: =IF(ISBLANK('Program Requirements'!D208),"",'Program Requirements'!D208) ->  | N186: =IF(D186="Yes",('Program Requirements'!G208),"") ->  | O186: =IF(D186="Yes",('Program Requirements'!L208),"") ->  | P186: =IF(ISBLANK('Program Requirements'!M208),"",'Program Requirements'!M208) -> 
A187: =IF(ISBLANK('Program Requirements'!A209),"",('Program Requirements'!A209)) ->  | E187: =IF(ISBLANK('Program Requirements'!D209),"",'Program Requirements'!D209) ->  | N187: =IF(D187="Yes",('Program Requirements'!G209),"") ->  | O187: =IF(D187="Yes",('Program Requirements'!L209),"") ->  | P187: =IF(ISBLANK('Program Requirements'!M209),"",'Program Requirements'!M209) -> 
A188: =IF(ISBLANK('Program Requirements'!A210),"",('Program Requirements'!A210)) ->  | E188: =IF(ISBLANK('Program Requirements'!D210),"",'Program Requirements'!D210) ->  | N188: =IF(D188="Yes",('Program Requirements'!G210),"") ->  | O188: =IF(D188="Yes",('Program Requirements'!L210),"") ->  | P188: =IF(ISBLANK('Program Requirements'!M210),"",'Program Requirements'!M210) -> 
A189: =IF(ISBLANK('Program Requirements'!A211),"",('Program Requirements'!A211)) ->  | E189: =IF(ISBLANK('Program Requirements'!D211),"",'Program Requirements'!D211) ->  | N189: =IF(D189="Yes",('Program Requirements'!G211),"") ->  | O189: =IF(D189="Yes",('Program Requirements'!L211),"") ->  | P189: =IF(ISBLANK('Program Requirements'!M211),"",'Program Requirements'!M211) -> 
A190: =IF(ISBLANK('Program Requirements'!A212),"",('Program Requirements'!A212)) ->  | E190: =IF(ISBLANK('Program Requirements'!D212),"",'Program Requirements'!D212) ->  | N190: =IF(D190="Yes",('Program Requirements'!G212),"") ->  | O190: =IF(D190="Yes",('Program Requirements'!L212),"") ->  | P190: =IF(ISBLANK('Program Requirements'!M212),"",'Program Requirements'!M212) -> 
A191: =IF(ISBLANK('Program Requirements'!A213),"",('Program Requirements'!A213)) ->  | E191: =IF(ISBLANK('Program Requirements'!D213),"",'Program Requirements'!D213) ->  | N191: =IF(D191="Yes",('Program Requirements'!G213),"") ->  | O191: =IF(D191="Yes",('Program Requirements'!L213),"") ->  | P191: =IF(ISBLANK('Program Requirements'!M213),"",'Program Requirements'!M213) -> 
A192: =IF(ISBLANK('Program Requirements'!A214),"",('Program Requirements'!A214)) ->  | E192: =IF(ISBLANK('Program Requirements'!D214),"",'Program Requirements'!D214) ->  | N192: =IF(D192="Yes",('Program Requirements'!G214),"") ->  | O192: =IF(D192="Yes",('Program Requirements'!L214),"") ->  | P192: =IF(ISBLANK('Program Requirements'!M214),"",'Program Requirements'!M214) -> 
A193: =IF(ISBLANK('Program Requirements'!A215),"",('Program Requirements'!A215)) ->  | E193: =IF(ISBLANK('Program Requirements'!D215),"",'Program Requirements'!D215) ->  | N193: =IF(D193="Yes",('Program Requirements'!G215),"") ->  | O193: =IF(D193="Yes",('Program Requirements'!L215),"") ->  | P193: =IF(ISBLANK('Program Requirements'!M215),"",'Program Requirements'!M215) -> 
A194: =IF(ISBLANK('Program Requirements'!A216),"",('Program Requirements'!A216)) ->  | E194: =IF(ISBLANK('Program Requirements'!D216),"",'Program Requirements'!D216) ->  | N194: =IF(D194="Yes",('Program Requirements'!G216),"") ->  | O194: =IF(D194="Yes",('Program Requirements'!L216),"") ->  | P194: =IF(ISBLANK('Program Requirements'!M216),"",'Program Requirements'!M216) -> 
A195: =IF(ISBLANK('Program Requirements'!A217),"",('Program Requirements'!A217)) ->  | E195: =IF(ISBLANK('Program Requirements'!D217),"",'Program Requirements'!D217) ->  | N195: =IF(D195="Yes",('Program Requirements'!G217),"") ->  | O195: =IF(D195="Yes",('Program Requirements'!L217),"") ->  | P195: =IF(ISBLANK('Program Requirements'!M217),"",'Program Requirements'!M217) -> 
A196: =IF(ISBLANK('Program Requirements'!A218),"",('Program Requirements'!A218)) ->  | E196: =IF(ISBLANK('Program Requirements'!D218),"",'Program Requirements'!D218) ->  | N196: =IF(D196="Yes",('Program Requirements'!G218),"") ->  | O196: =IF(D196="Yes",('Program Requirements'!L218),"") ->  | P196: =IF(ISBLANK('Program Requirements'!M218),"",'Program Requirements'!M218) -> 
A197: =IF(ISBLANK('Program Requirements'!A219),"",('Program Requirements'!A219)) ->  | E197: =IF(ISBLANK('Program Requirements'!D219),"",'Program Requirements'!D219) ->  | N197: =IF(D197="Yes",('Program Requirements'!G219),"") ->  | O197: =IF(D197="Yes",('Program Requirements'!L219),"") ->  | P197: =IF(ISBLANK('Program Requirements'!M219),"",'Program Requirements'!M219) -> 
A198: =IF(ISBLANK('Program Requirements'!A220),"",('Program Requirements'!A220)) ->  | E198: =IF(ISBLANK('Program Requirements'!D220),"",'Program Requirements'!D220) ->  | N198: =IF(D198="Yes",('Program Requirements'!G220),"") ->  | O198: =IF(D198="Yes",('Program Requirements'!L220),"") ->  | P198: =IF(ISBLANK('Program Requirements'!M220),"",'Program Requirements'!M220) -> 
A199: =IF(ISBLANK('Program Requirements'!A221),"",('Program Requirements'!A221)) ->  | E199: =IF(ISBLANK('Program Requirements'!D221),"",'Program Requirements'!D221) ->  | N199: =IF(D199="Yes",('Program Requirements'!G221),"") ->  | O199: =IF(D199="Yes",('Program Requirements'!L221),"") ->  | P199: =IF(ISBLANK('Program Requirements'!M221),"",'Program Requirements'!M221) -> 
A200: =IF(ISBLANK('Program Requirements'!A222),"",('Program Requirements'!A222)) ->  | E200: =IF(ISBLANK('Program Requirements'!D222),"",'Program Requirements'!D222) ->  | N200: =IF(D200="Yes",('Program Requirements'!G222),"") ->  | O200: =IF(D200="Yes",('Program Requirements'!L222),"") ->  | P200: =IF(ISBLANK('Program Requirements'!M222),"",'Program Requirements'!M222) -> 
A201: =IF(ISBLANK('Program Requirements'!A223),"",('Program Requirements'!A223)) ->  | E201: =IF(ISBLANK('Program Requirements'!D223),"",'Program Requirements'!D223) ->  | N201: =IF(D201="Yes",('Program Requirements'!G223),"") ->  | O201: =IF(D201="Yes",('Program Requirements'!L223),"") ->  | P201: =IF(ISBLANK('Program Requirements'!M223),"",'Program Requirements'!M223) -> 
A202: =IF(ISBLANK('Program Requirements'!A224),"",('Program Requirements'!A224)) ->  | E202: =IF(ISBLANK('Program Requirements'!D224),"",'Program Requirements'!D224) ->  | N202: =IF(D202="Yes",('Program Requirements'!G224),"") ->  | O202: =IF(D202="Yes",('Program Requirements'!L224),"") ->  | P202: =IF(ISBLANK('Program Requirements'!M224),"",'Program Requirements'!M224) -> 
... 53 more rows

Sheet Private School
E1: School Division: | G1: ='Narrative & Detail Budget'!$A$15 -> ALBEMARLE COUNTY PUBLIC SCHOOLS | O1: Division Number: | U1: ='Narrative & Detail Budget'!$I$15 -> 2
A2: R. PRIVATE SCHOOL PARTICIPATION
A4: Each year, the school division must contact all eligible private (nonprofit) schools and engage in meaningful consultation on the availability of equitable services funded by Title I, Part A. (ESEA Section 1117(a) and Title VIII Uniform Provisions, Part F, Subpart 1).
A5: 1. Are there private nonprofit schools which students residing within the Title I attendance zone attend?
B6: X | C6: Yes (If yes, complete the remainder of this page.) | K6: No (If no, it is not necessary to complete the rest of this page.)
K8: No (If division participated in the bypass)
A10: 2. Place an "X" in the appropriate block(s) to indicate how private schools were notified of the availability of equitable services funded by Title I, Part A. (Copies of the notification must be kept on file for monitoring purposes.)
C12: Regular Mail | J12: X | K12: Certified Mail
C14: Telephone Calls | J14: X | K14: Meetings
C16: Visits to the Private School | J16: X | K16: Other (Please specify) | N16: Email, Zoom Meetings
A18: 3. Number of Public School Low-Income Children in Title I Schools | K18: =IF('Below 35% Low-Income'!O53>0,'Below 35% Low-Income'!O53,'35% and Above Low-Income'!O53) -> 1612
A19: 4. Number of Private School Low-Income Children Residing in Title I Attendance Zones | K19: =IF('35% and Above Low-Income'!N53>0,'35% and Above Low-Income'!N53,'Below 35% Low-Income'!N53) -> 10
A20: 5. Percentage used to determine proportionate share for equitable services. | K20: =K19/(K19+K18) -> 0.006165228113
A22: 6. Determining Set-Asides (These fields will calculate automatically once enrollment figures have been entered.)
B24: a. Total Title I, Part A Allocation | L24: ='Narrative & Detail Budget'!N44 -> 1494988
B25: b1. Proportionate share of Title I funds available to provide equitable services - 35% and Above Low-Income | L25: =L24*'35% and Above Low-Income'!Z53 -> 9216.942047
B26: b2. Proportionate share of Title I funds available to provide equitable services - Below 35% Low-Income | L26: =L24*'Below 35% Low-Income'!Z53 -> 
B27: c1. Amount of funds for 1% for parent and family engagement (If LEA’s Title I allocation exceeds $500,000) - 35% and Above Low-Income | L27: =(L24*0.01)*'35% and Above Low-Income'!Z53 -> 92.16942047
B28: c2. Amount of funds for 1% for parent and family engagement (If LEA’s Title I allocation exceeds $500,000) - Below 35% Low-Income | L28: =(L24*0.01)*'Below 35% Low-Income'!Z53 -> 
B29: d. School Division Admin set-aside (Optional)
B30: e1. Total Private School Set-Aside for Non-Administration - 35% and Above Low-Income | L30: =IF(L25>0,L25-L29,0) -> 9216.942047
B31: e2. Total Private School Set-Aside for Non-Administration - Below 35% Low-Income | L31: =IF(L26>0,L26-L29,0) -> 
B32: Has the required private school set-aside been met? - 35% and Above Low-Income | L32: =IF(SUM('Budget Summary'!G45:K45)>=SUM(L25),"Yes","No - please review your entries.") -> No - please review your entries.
B33: Has the required private school set-aside been met? - Below 35% Low-Income | L33: =IF(SUM('Budget Summary'!G45:K45)>=SUM(L26),"Yes","No - please review your entries.") -> 
A35: 7. Determining additional set-asides as a result of Transferability. These fields will calculate automatically once budget and enrollment figures have been entered.
B37: a. Total Title I, Part A Transferability | L37: =SUM(Transferability!D13+Transferability!E13) -> 0
B38: b1. Proportionate share of Title I funds available to provide equitable services - 35% and Above Low-Income | L38: =L37*'35% and Above Low-Income'!Z53 -> 0
B39: b2. Proportionate share of Title I funds available to provide equitable services - Below 35% Low-Income | L39: =L37*'Below 35% Low-Income'!Z53 -> 
B40: c1. Amount of funds for 1% for parent and family engagement (If LEA’s Title I allocation exceeds $500,000) - 35% and Above Low-Income | L40: =(L37*0.01)*'35% and Above Low-Income'!Z53 -> 0
B41: c2. Amount of funds for 1% for parent and family engagement (If LEA’s Title I allocation exceeds $500,000) - Below 35% Low-Income | L41: =(L37*0.01)*'Below 35% Low-Income'!Z53 -> 
B42: d. School Division Admin set-aside (Optional)
B43: e1. Total Private School Set-Aside for Non-Administration - 35% and Above Low-Income | L43: =IF(L38>0,L38-L42,0) -> 0
B44: e2. Total Private School Set-Aside for Non-Administration - Below 35% Low-Income | L44: =IF(L39>0,L39-L42,0) -> 
B45: Has the required private school set-aside been met? - 35% and Above Low-Income | L45: =IF(SUM(Transferability!D59:E59)>=SUM(L38),"Yes","No - please review your entries.") -> Yes
B46: Has the required private school set-aside been met? - Below 35% Low-Income | L46: =IF(SUM(Transferability!D59:E59)>=SUM(L39),"Yes","No - please review your entries.") -> 
A48: Page 49
E49: School Division: | G49: ='Narrative & Detail Budget'!$A$15 -> ALBEMARLE COUNTY PUBLIC SCHOOLS | O49: Division Number: | U49: ='Narrative & Detail Budget'!$I$15 -> 2
A51: 8. Complete the chart below: • In Column A, list all private schools which students residing within the Title I attendance zone attend. • In Column C, enter the number of students in private schools participating in services for the 2020-2021 award year. • In Column D, enter the description of services provided for participating children. • In Column E, enter the amount of funds obligated to support eligible students.
B53: A | G53: B | I53: C | L53: D
B54: Private Schools | G54: Participation Status for 2020-2021 Award Year? (Yes/No) | I54: Number of Participating Children | L54: Description of Services
B55: Charlottesville Catholic School | G55: No
B56: Charlottesville Waldorf School | G56: No
B57: Community Christian Academy | G57: Yes | I57: 3 | L57: Tutoring (reading), Professional Development
B58: The Covenant School | G58: No
B59: Free Union Country School | G59: No
B60: Little Keswick School | G60: No
B61: Miller School of Albemarle | G61: No
B62: Tandem Friends School | G62: No
B63: University Montessori School | G63: No
B64: Mountaintop Montessori School | G64: No
B65: Peabody School | G65: No
B66: Field School of Charlottesville | G66: No
B67: St. Anne's Belfield School | G67: No
B76: Total Identified Students | I76: =SUM(I55:J75) -> 3
A78: 9. Enter the private school services set-aside in the detailed budget description and Budget Summary.
A79: Page 50

Sheet School Improvement
D1: School Division: | G1: ='Narrative & Detail Budget'!A15 -> ALBEMARLE COUNTY PUBLIC SCHOOLS | M1: Division Number: | P1: ='Narrative & Detail Budget'!I15 -> 2
A2: S. NARRATIVE: SCHOOL IMPROVEMENT
A4: This section should only be completed if the school division has schools identified for Comprehensive Support and Improvement or Targeted Support and Improvement.
A6: Comprehensive Support and Improvement
A8: Describe how the local educational agency will carry out its responsibilities under Section 1111(d)(1).
A9: NA
A12: Targeted or Additional Targeted Support and Improvement
A14: Describe how the local educational agency will carry out its responsibilities under Section 1111(d)(2).
A15: NA
A17: Page 51

Sheet Skipped School Provision
E1: School Division: | G1: ='Narrative & Detail Budget'!$A$15 -> ALBEMARLE COUNTY PUBLIC SCHOOLS | M1: Division Number: | P1: ='Narrative & Detail Budget'!$I$15 -> 2
A2: T. SKIPPED SCHOOL PROVISION
A4: If on the Allocation to Eligible Schools a school was "skipped" that was eligible for Title I under the Eligible Attendance area you selected, provide the name(s) of the school in the box below.
A5: NA
A6: The criteria for the skipped school provision can be found in the guidelines, instructions, and assurances document on page 13.
A8: Did the school(s) meet the criteria for skipped schools provision and the division allocates to the skipped schools the amount of funding the schools would have received were they served under Title I, Part A?
A10: Place an "X" in the appropriate yes or no box.
C12: Yes | F12: No
A13: If yes, explain how the provision was met in the section below. If no, explain why the school was skipped in the section below.
A16: Page 52

Sheet Neglected
E1: School Division: | G1: ='Narrative & Detail Budget'!$A$15 -> ALBEMARLE COUNTY PUBLIC SCHOOLS | M1: Division Number: | P1: ='Narrative & Detail Budget'!$I$15 -> 2
A2: U. TITLE I, PART A, NEGLECTED CHILDREN AND YOUTH
A4: All school divisions must complete this page.
A6: Title I, Part D Coordinator | F6: Sharon Root
A8: =VLOOKUP($P$1,Prefills!$BK$3:$BL$138,2) -> 0 | B8: Total number of children and youth who are identified as neglected (year-to-date) for 2019-2020 based on the definition in Title I, Part D Section 1432(4)(A). (automatically populates)
A9: School divisions that have facilities that report one or more neglected students in the most recently submitted Title I, Part D, October Count under the neglected column must complete this tab. Please refer to the Guidelines, Instructions, and Assurances for more information.
B10: Check here if the local neglected facility has declined services. If this box is checked, the remaining items in this tab should be left blank.
A11: A local educational agency shall reserve such funds as are necessary under this part to provide services comparable to those provided to children in schools funded under Title I, Part A, to serve (ii) children in local institutions for neglected children; and (iii) if appropriate, children in local institutions for delinquent children, and neglected or delinquent children in community day school programs. Section 1007(3)(A) The funds set aside from a LEA’s Title I, Part A allocation may be used: (1) to improve educational services for children and youth in local and state institutions for neglected or delinquent children and youth so that such children and youth have the opportunity to meet the same challenging state academic content standards and challenging State student academic achievement standards that all children in the state are expected to meet; (2) to provide such children and youth with the services needed to make a successful transition from institutionalization to further schooling or employment; and (3) to prevent at-risk youth from dropping out of school, and to provide dropouts, and children and youth returning from correctional facilities or institutions for neglected or delinquent children and youth, with a support system to ensure their continued education. Section 1401 (3)(A)
A12: Provide the name of the participating local neglecged facilities and the location of the educational services provided to the students.
A13: Neglected Facility Name | I13: Location of Educational Services
A16: Page 53
E17: School Division: | G17: ='Narrative & Detail Budget'!$A$15 -> ALBEMARLE COUNTY PUBLIC SCHOOLS | M17: Division Number: | P17: ='Narrative & Detail Budget'!$I$15 -> 2
A19: 1. Describe the needs of the neglected students served identified during the needs assessment process. Include a brief summary of the needs assessment process and how services are coordinated with the neglected facilities or programs.
A22: 2. Describe the activities that will be implemented to address the identified need(s). Include the following information for each activity listed: a. Describe the facility and/or population that will be served. b. Describe each specific activity that will be implemented based on data analysis of neglected/delinquent children in local institutions or at-risk programs. c. Describe how the funds will be distributed to benefit neglected children being served.
A24: 3. Describe how Title I, Part A, set-aside neglected funds are coordinated with the Title I, Part D, Subpart 2, subgrants, if the division also receives those funds, as well as coordination with other federal, state, and local programs serving at-risk children and youth.
A26: Page 54
E27: School Division: | G27: ='Narrative & Detail Budget'!$A$15 -> ALBEMARLE COUNTY PUBLIC SCHOOLS | M27: Division Number: | P27: ='Narrative & Detail Budget'!$I$15 -> 2
A29: 4. Describe the process the LEA will use to evaluate the effectiveness of the activities implemented to address the described needs.
A32: Guidance related to services for neglected and delinquent students can be found on Virginia’s Title I, Part D, website at http://www.doe.virginia.gov/federal_programs/esea/title1/part_d/index.shtml or by contacting Tiffany Frierson, Virginia’s Title I, Part D Coordinator at Tiffany.Frierson@doe.virginia.gov or 804-371-2682.
A35: Page 55

Sheet Homeless
E1: School Division: | G1: ='Narrative & Detail Budget'!$A$15 -> ALBEMARLE COUNTY PUBLIC SCHOOLS | M1: Division Number: | P1: ='Narrative & Detail Budget'!$I$15 -> 2
A2: V. TITLE I, PART A, HOMELESS CHILDREN AND YOUTH
A4: Any LEA receiving Title I, Part A funds must include in its local plan a description of how the plan is coordinated with the McKinney-Vento Act. The local plan must describe services provided to any homeless child. (ESEA sections 1112(a)(1)(B) and (b)(6)). Content for this page and the homeless reservation should be completed in conjunction with the local homeless education liaison. (See US Department of Education 2017 Education for Homeless Children and Youths Program Non-Regulatory Guidance Section M on pages 39-43 for further detail.)
A6: Local Homeless Education Liaison: | F6: Sharon Root
A8: 250 | B8: Total number of children and youth identified as homeless in the school division (year-to-date) for 2019-2020 based on the definition in Title IX, Part A, Section 725. (*Place mouse curser over comment in cell A8 for definition.)
A10: 1. Describe the process used to identify students experiencing homelessness and how the needs of homeless children and youths are determined.
A11: Each student and their family are dealt with on an individual basis and an enrollment form is completed for each family, which includes a checklist and space for specific needs to be identified on the first page. All notes of conversations with the family and collaborating personnel are kept on file with the form. All services provided are documented in the file, and all information is input into the local homeless database. The required data is entered into our local SIS system for state reporting. Close collaboration is established with school staff, social workers, and other agency personnel involved with the family to identify needs and coordinate services. Confidentiality is kept, and trust established so that the family feels safe in sharing information in order to have necessary services provided.
A13: 2. Describe the method used for determining the amount reserved to serve students experiencing homelessness. a. List staff (names and positions) consulted to determine the reservation. b. What needs were identified? c. What costs are associated with those needs? d. What other school division funds are budgeted specifically to meet the needs of students experiencing homeless? e. How did the school division determine the Title I, Part A set-aside is sufficient to meet the needs of students experiencing homelessness? f. What process will the school division use to reassess how it meets the needs of these students throughout the year? g. How much of last year’s homeless set-aside was used to serve students experiencing homelessness?
A14: A. Many staff members were consulted to determine the Homeless reservation: Debora Collins, Deputy Superintendent; Catrina Sims, Title I Coordinator; Michele Castner, Director of Elementary Education; Renee DeVall, Routing and Planning Transportation Manager; Laura Brown, Migrant and Homeless Specialist, Lynn Horwitz, Homeless Specialist; Anne Hindman, Management Analyst. B. Tutoring, addressing social-emotional needs, counseling, coordination, transportation, fund-raising, writing grants, and
A15: collaboration were identified as high needs. C. A portion of the Homeless Liaison's salary with benefits and one-to-one tutoring funding are needed. D. Special transportation and gas cards ($30,000), a portion of the Homeless Liaison's salary with benefits, supervision and Human Resources support for staff, computers and IT support, office space, county cars when needed, travel expenses, mileage, and administrative and instructional materials and supplies are all provided by the school division. E. The set aside is based on data, past history, costs, and perceived needs especially due to the recent Pandemic. The Albemarle Title I Program has always adequately supported the Homeless Program to ensure high performance. F. Ongoing evaluations will be conducted and data reviewed, including grades, dropout rates, performance, transportation, attendance, and graduation rates. G. The amount used is $86,697. Not all tutoring funding was spent due to the COVID 19 Pandemic. Some of the tutoring continued online, but not all of it could be arranged that way.
A16: Page 56
A17: 3. Describe the services provided to students experiencing homelessness by the Title I, Part A program to support their enrollment, attendance, and success. Include a description of the services provided with funds reserved under Title I, Part A, Section 1113(c)(3)(A)-(C). Place curser over this comment for the legislative text.
A18: Title I Part A supports the Albemarle Homeless Program "Families in Crisis" with partial support of the Homeless Liaison's salary and funds for hourly tutors. The Homeless Liaison collaborates with Title I staff to assure the quick and appropriate delivery of educational supports for all homeless children and their families. She writes the supplementary grants and procures donations to enable the program to meet the varied individualized needs of Homeless students and their families. Services provided include counseling, resource coordination, and coordination and provision of education support services, emphasizing individual tutoring and addressing social-emotional student needs. Services provided but not funded by Title I include transportation, immediate free lunch, housing money, food, gas, immediate enrollment, counseling, clothes, school supplies, and rental deposits. Individualized tutoring is offered to all students in need of academic support on a one-to-one basis in collaboration with their regular classroom teachers.
A21: *If an LEA has not identified any students experiencing homelessness during the last three school years, no set aside is required if the following McKinney-Vento Education of Homeless Children and Youth Program (Title IX, Part A) requirements have been fulfilled: a. The LEA can document outreach and coordination activities with other entities and agencies to identify homeless children and youths [Section 722(g)(6)(i)] b. Public notice of the educational rights of homeless children and youths is disseminated in locations frequented by parents or guardians of such children and youths, and unaccompanied youths, including schools, shelters, public libraries, and soup kitchens in a manner and form understandable to the parents and guardians of homeless children and youths, and unaccompanied youths [Section 722(g)(6)(iv)] c. The LEA can document that school personnel receive professional development and support to assist in the identification and support of homeless children and youths [Section 722(g)(6)(ix)]
A23: Guidance related to the local homeless education liaison, the definition of homelessness for educational purposes, identification strategies, professional development, and other services that can be provided through Title I, Part A, funding can be found on the Project HOPE-VA website: www.wm.edu/hope or by contacting Project HOPE-VA, Virginia’s Education for Homeless Children and Youth Program: phone: 757-221-4002 or email: homlss@wm.edu.
A24: Page 57

Sheet Early Childhood
E1: School Division: | G1: ='Narrative & Detail Budget'!A15 -> ALBEMARLE COUNTY PUBLIC SCHOOLS | M1: Division Number: | P1: ='Narrative & Detail Budget'!I15 -> 2
A2: W. TITLE I, PART A, EARLY CHILDHOOD PROGRAM (if applicable)
A4: Number of Participating Students: | H4: 33
A5: Number of Eligible Students on Waiting List: | H5: 0
A6: Number of Participating Schools or Centers: | H6: 2
A7: Number of Title I funded Teachers: | H7: 2
A8: Number of Title I funded Paraprofessionals: | H8: 1.5
A9: Average Number of Pupils Per Class/Average Class Size: | H9: 16
A10: Number of Classrooms: | H10: 2
A11: Title I Early Childhood Budget (Personnel and Program): | H11: 205503
A12: School Year Title I, Part A, Early Childhood First Established: | G12: FY | H12: Red Hill 2005-2006 Agnor Hurt 2016-2017
A13: Length of the Program Day (type X to left of selection): | I13: Half Day | L13: X | M13: Full Day
A14: Curriculum:
A15: Primary Curriculum | H15: HighScope Curriculum
A16: Secondary Curriculum ( if applicable)
A17: Test/Evaluation Design:
A18: Primary Test | H18: Pre-K PALS
A19: Secondary Test ( if applicable)
A20: Other Early Childhood Programs with which Title I is collaborating: | H20: X | I20: Virginia Preschool Initiative | L20: X | M20: Head Start
H21: X | I21: Early Childhood Special Education
I22: Others (specify)
A23: Students Must Be: | H23: 4 | K23: 2020-09-30
H24: Age | J24: by | K24: Date
A26: Describe how the local educational agency will support, coordinate, and integrate services provided under this part with early childhood education programs at the local educational agency or individual school level, including plans for the transition of participants in such programs to local elementary school programs.
A27: ACPS initiated a Preschool Leadership Team which meets monthly to coordinate and collaborate regarding program needs, public awareness and continuous quality improvements; it includes coordinators and directors from Albemarle County Public Schools and Social Services, and Head Start. There are three preschool programs in Albemarle County, in addition to Title I: Bright Stars, MACAA's Head Start, and Early Childhood Special Education (ECSE). The four programs form the Albemarle County Preschool Network, which works to ensure that students receive equitable and excellent instruction across the programs. Collaboration includes support of professional development for teachers, parent training and workshops at individual schools, and enrichment activities that support success for all at-risk children
A28: Page 58
E29: School Division: | G29: ='Narrative & Detail Budget'!A15 -> ALBEMARLE COUNTY PUBLIC SCHOOLS | M29: Division Number: | P29: ='Narrative & Detail Budget'!I15 -> 2
C30: TITLE I, PART A, EARLY CHILDHOOD PROGRAM (if applicable) (continued)
A32: Provide a list of all schools and/or centers in your school division that house Title I, Part A, Early Childhood programs. Indicate the eligible Title I school zone(s) served by the school or center. In addition, include the total number of all Title I, Part A, Early Childhood teachers who are housed in each of the schools.
A33: List Schools and Early Childhood Centers with Title I, Part A, Early Childhood Programs
A34: School or Early Childhood Center Name | D34: Principal Name and Address | H34: Eligible Title I School Zone(s) Served | L34: Number of Title I Funded Teachers | N34: Number of Title I Funded Paraprofessionals
A63: Page 59

Sheet General Assurances
D1: School Division: | G1: ='Narrative & Detail Budget'!$A$15 -> ALBEMARLE COUNTY PUBLIC SCHOOLS | M1: Division Number: | P1: ='Narrative & Detail Budget'!$I$15 -> 2
A2: GENERAL ASSURANCES
A4: Title I, Part A | E4: Improving Basic Programs Operated by Local Educational Agencies
A5: Title I, Part C | E5: Education of Migratory Children
A6: Title I, Part D, Subpart 2 | E6: Prevention and Intervention Programs for Children and Youth Who Are Neglected, Delinquent, or At-Risk
A7: Title II, Part A | E7: Supporting Effective Instruction
A8: Title III, Part A | E8: Language Instruction for English Learners and Immigrant Students
A9: Title IV, Part A | E9: Student Support and Academic Enrichments Grants
A10: Title V, Part B, Subpart 2 | E10: Rural and Low-Income School Program
A12: The school division/grantee assures:
A13: I. | B13: Each program will be administered in accordance with all applicable statutes, regulations, program plans, and applications;
A14: II. | B14: The control of funds provided under each program and title to property acquired with program funds will be in a public agency, a nonprofit private agency, institution, organization, or an Indian tribe, if the law authorizing the program provides for assistance to those entities;
A15: III. | B15: The public agency, nonprofit private agency, institution, organization, or Indian tribe, will administer the funds and property to the extent required by the authorizing statutes;
A16: IV. | B16: It will adopt and use proper methods of administering each program, including -
B17: A. | C17: The enforcement of any obligations imposed by law on agencies, institutions, organizations, and other recipients responsible for carrying out each program;
B18: B. | C18: The correction of deficiencies in program operations that are identified through audits, monitoring, or evaluation and that:
C19: 1. | D19: It will maintain fiscal effort in support of free public education;
C20: 2. | D20: It will provide services with state and local funds that are at least comparable to services provided in schools and areas not receiving special federal funds;
C21: 3. | D21: The majority of the resources in the school division are derived from nonfederal funds;
C22: 4. | D22: It is in compliance with the requirements in Title VIII, Section 8524 and has no policy that prevents, or otherwise denies participation in, constitutionally protected prayer in public elementary and secondary schools;
C23: 5. | D23: It will comply with the audit requirements for each program;
C24: 6. | D24: The federal funds are used to supplement, not supplant regular nonfederal funds;
C25: 7. | D25: It will cooperate in carrying out any evaluation of each program conducted by or for the state educational agency, the Secretary, or other federal officials;
C26: 8. | D26: It will use such fiscal control and fund accounting procedures as will ensure proper disbursement of, and accounting for, federal funds paid to the applicant under each program;
C27: 9. | D27: It will submit such reports to the state educational agency (which shall make the reports available to the Governor) and the Secretary of Education as the state educational agency and Secretary may require to enable the state educational agency and the Secretary to perform their duties under each program;
C28: 10. | D28: It will maintain such records for five years, provide such information, and afford such access to the records as the state educational agency (after consultation with the Governor) or the Secretary may reasonably require to carry out the state educational agency’s or the Secretary’s duties;
A29: Page 60
D30: School Division: | G30: ='Narrative & Detail Budget'!$A$15 -> ALBEMARLE COUNTY PUBLIC SCHOOLS | M30: Division Number: | P30: ='Narrative & Detail Budget'!$I$15 -> 2
A31: GENERAL ASSURANCES (CONTINUED)
C32: 11. | D32: It consulted with teachers, school administrators, parents, members of the community, nonprofit organizations and other interested parties in the development of this plan;
C33: 12. | D33: It afforded a reasonable opportunity for public comment on the plan or application and considered such comment before the application was submitted;
C34: 13. | D34: It will provide information in an understandable and uniform format and, to the extent practicable, be provided in a language that the parents can understand;
C35: 14. | D35: It is in compliance with the requirement regarding equal access to public school facilities as specified in Title VIII, Section 8525;
C36: 15. | D36: It is in compliance with the requirement regarding the prohibition on aiding and abetting sexual abuse as specified in Title VIII, Section 8546;
C37: 16. | D37: It will comply with the other application requirements outlined in
E38: Section 8501. Private School Children;
E39: Section 8502. Bypass; and
E40: Section 8521. Maintenance of Effort under Title VIII –Other Provisions;
C41: 17. | D41: It will ensure that funds are expended in accordance with the school division’s approved application or amended application. In the event the local division needs to expend funds in any manner other than stipulated in the approved application, the plan must be amended using the amendment process provided by the Department of Education. The application must be amended before funds can be expended for activities not approved in the original application;
B42: C. | C42: It will collect and disseminate information collected under Section 1111 in a manner that protects the privacy of individuals;
B43: D. | C43: It will adhere to the provisions of the Federal Funding Transparency and Accountability Act (FFATA), and will obtain a valid DUNS number prior to applying for funds.
A44: V. | B44: It will comply with Section 22.1-277.07, of the Code of Virginia that requires the expulsion for one year of any student determined to have brought a firearm to school. A description of each incident, the name of the school concerned, the number of students expelled from each school, and the type of firearm used in each instance of expulsion will be reported to the Virginia Department of Education in compliance with provisions under Section 8561 (Gun-Free Schools Act). This agency has a policy that requires referral to the criminal justice or the juvenile delinquency system of any student who brings a firearm or weapon to school; and
A45: VI. | B45: It will participate, if selected, in the state National Assessment of Educational Progress in 4th and 8th grade reading and mathematics carried out under Section 303 of the National Assessment of Educational Progress Act.
A47: Page 61

Sheet Program Specific Assurances
D1: School Division: | G1: ='Narrative & Detail Budget'!$A$15 -> ALBEMARLE COUNTY PUBLIC SCHOOLS | M1: Division Number: | P1: ='Narrative & Detail Budget'!$I$15 -> 2
A2: PROGRAM SPECIFIC ASSURANCES
A3: The school division/grantee will:
A4: I. | B4: Ensure that migratory children and formerly migratory children who are eligible to receive services under this part are selected to receive such services on the same basis as other children who are selected to receive services under this part;
A5: II. | B5: Provide services to eligible children attending private elementary schools and secondary schools in accordance with Section 1117, and timely and meaningful consultation with private school officials regarding such services;
A6: III. | B6: Participate, if selected, in the National Assessment of Educational Progress in reading and mathematics in grades 4 and 8 carried out under section 303(b)(3) of the National Assessment of Educational Progress Authorization Act (20 U.S.C.9622(b)(3));
A7: IV. | B7: Coordinate and integrate services provided under this part with other educational services at the local educational agency or individual school level, such as services for English learners, children with disabilities, migratory children, American Indian, Alaska Native, and Native Hawaiian children, and homeless children and youths, in order to increase program effectiveness, eliminate duplication, and reduce fragmentation of the instructional program;
A8: V. | B8: Collaborate with the State or local child welfare agency to—
B9: A. | C9: Designate a point of contact if the corresponding child welfare agency notifies the local educational agency, in writing, that the agency has designated an employee to serve as a point of contact for the local educational agency; and
B10: B. | C10: Develop and implement clear written procedures governing how transportation to maintain children in foster care in their school of origin when in their best interest will be provided, arranged, and funded for the duration of the time in foster care, which procedures shall—
C11: 1. | D11: Ensure that children in foster care needing transportation to the school of origin will promptly receive transportation in a cost-effective manner and in accordance with Section 475(4)(A) of the Social Security Act (42 U.S.C. 675(4)(A)); and
C12: 2. | D12: Ensure that, if there are additional costs incurred in providing transportation to maintain children in foster care in their schools of origin, the local educational agency will provide transportation to the school of origin if—
D13: a. | E13: The local child welfare agency agrees to reimburse the local educational agency for the cost of such transportation;
D14: b. | E14: The local educational agency agrees to pay for the cost of such transportation; or
D15: c. | E15: The local educational agency and the local child welfare agency agree to share the cost of such transportation;
A16: VI. | B16: Ensure that all teachers and paraprofessionals working in a program supported with funds under this part meet applicable State certification and licensure requirements, including any requirements for certification obtained through alternative routes to certification;
A17: VII. | B17: In the case of a local educational agency that chooses to use funds under this part to provide early childhood education services to low-income children below the age of compulsory school attendance, ensure that such services comply with the performance standards established under Section 641A(a) of the Head Start Act (42 U.S.C. 9836a(a));
A18: VIII. | B18: Develop agreements and carry out the following coordination activities with Head Start and, if feasible, other early childhood programs;
B19: A. | C19: developing and implementing a systematic procedure for receiving records regarding such children, transferred with parental consent from a Head Start program or, where applicable,
B20: B. | C20: another early childhood education program; establishing channels of communication between school staff and their counterparts (including teachers, social workers, and health staff) in such Head Start agencies or other entities carrying out early childhood education programs, as appropriate, to facilitate coordination of programs;
A21: Page 62
D22: School Division: | G22: ='Narrative & Detail Budget'!$A$15 -> ALBEMARLE COUNTY PUBLIC SCHOOLS | M22: Division Number: | P22: ='Narrative & Detail Budget'!$I$15 -> 2
A23: PROGRAM SPECIFIC ASSURANCES (CONTINUED)
B25: C. | C25: conducting meetings involving parents, kindergarten or elementary school teachers, and Head Start teachers or, if appropriate, teachers from other early childhood education programs, to discuss the developmental and other needs of individual children;
B26: D. | C26: organizing and participating in joint transition-related training of school staff, Head Start program staff, and, where appropriate, other early childhood education program staff; and
B27: E. | C27: linking the educational services provided by such local educational agency with the services provided by local Head Start agencies.
A28: IX. | B28: For each local educational agency that uses funds under Title I, Part A, or Title III, Part A, identify all English learners within 30 days of enrollment, and, not later than 30 days after the beginning of the school year (or, for those children who have not been identified as English learners prior to the beginning of the school year but are identified as English learners during the school year, within the first two weeks of the child being placed in a language instruction educational program), the local educational agency shall notify the children’s parents of an English learner identified for participation or participating in such a program, of—
B29: A. | C29: The reasons for the identification of their child as an English learner and in need of placement in a language instruction educational program;
B30: B. | C30: The child’s level of English proficiency, how such level was assessed, and the status of the child’s academic achievement;
B31: C. | C31: The methods of instruction used in the program in which their child is, or will be, participating and the methods of instruction used in other available programs, including how such programs differ in content, instructional goals, and the use of English and a native language in instruction;
B32: D. | C32: How the program in which their child is, or will be, participating will meet the educational strengths and needs of their child;
B33: E. | C33: How such program will specifically help their child learn English and meet age-appropriate academic achievement standards for grade promotion and graduation;
B34: F. | C34: The specific exit requirements for the program, including the expected rate of transition from such program into classrooms that are not tailored for English learners, and the expected rate of graduation from high school (including four-year adjusted cohort graduation rates and extended-year adjusted cohort graduation rates for such program) if funds under this part are used for children in high schools;
B35: G. | C35: In the case of a child with a disability, how such program meets the objectives of the individualized education program of the child, as described in Section 614(d) of the Individuals with Disabilities Education Act (20 U.S.C. 1414(d));
B36: H. | C36: Information pertaining to parental rights that includes written guidance—
C37: 1. | D37: Detailing the right that parents have to have their child immediately removed from such program upon their request;
C38: 2. | D38: Detailing the options that parents have to decline to enroll their child in such program or to choose another program or method of instruction, if available; and
C39: 3. | D39: Assisting parents in selecting among various programs and methods of instruction, if more than 1 program or method is offered by the eligible entity;
A40: X. | B40: Use Virginia’s Foundation Blocks for Early Learning to align preschool and K-12 curriculum; and
A41: XI. | B41: Use PALS Pre-K (if there is a Title I preschool program) and report data to the PALS office at the University of Virginia using the student’s State Testing Identifier (STI).
A43: Page 63

Sheet Sheet1 (hidden)
C1: CSI/TSI | E1: ACCOMACK COUNTY PUBLIC SCHOOLS | G1: Yes
A2: Title II, Part A, Transferability | C2: Division | E2: ALBEMARLE COUNTY PUBLIC SCHOOLS | G2: No
A3: Title IV, Part A, Transferability | C3: Early Childhood | E3: ALEXANDRIA CITY PUBLIC SCHOOLS
C4: Foster Care | E4: ALLEGHANY COUNTY PUBLIC SCHOOLS
C5: Homeless | E5: AMELIA COUNTY PUBLIC SCHOOLS
C6: Neglected/Delinquent | E6: AMHERST COUNTY PUBLIC SCHOOLS
C7: PFE (Division) | E7: APPOMATTOX COUNTY PUBLIC SCHOOLS
C8: PFE (School Level) | E8: ARLINGTON COUNTY PUBLIC SCHOOLS
C9: Private School | E9: AUGUSTA COUNTY PUBLIC SCHOOLS
E10: BATH COUNTY PUBLIC SCHOOLS
E11: BEDFORD CITY PUBLIC SCHOOLS
E12: BEDFORD COUNTY PUBLIC SCHOOLS
E13: BLAND COUNTY PUBLIC SCHOOLS
E14: BOTETOURT COUNTY PUBLIC SCHOOLS
E15: BRISTOL CITY PUBLIC SCHOOLS
E16: BRUNSWICK COUNTY PUBLIC SCHOOLS
E17: BUCHANAN COUNTY PUBLIC SCHOOLS
E18: BUCKINGHAM COUNTY PUBLIC SCHOOLS
E19: BUENA VISTA CITY PUBLIC SCHOOLS
E20: CAMPBELL COUNTY PUBLIC SCHOOLS
E21: CAROLINE COUNTY PUBLIC SCHOOLS
E22: CARROLL COUNTY PUBLIC SCHOOLS
E23: CHARLES CITY COUNTY PUBLIC SCHOOLS
E24: CHARLOTTE COUNTY PUBLIC SCHOOLS
E25: CHARLOTTESVILLE CITY PUBLIC SCHOOLS
E26: CHESAPEAKE CITY PUBLIC SCHOOLS
E27: CHESTERFIELD COUNTY PUBLIC SCHOOLS
E28: CLARKE COUNTY PUBLIC SCHOOLS
E29: CLIFTON FORGE CITY
E30: COLONIAL BEACH TOWN PUBLIC SCHOOLS
E31: COLONIAL HEIGHTS CITY PUBLIC SCHOOLS
E32: COVINGTON CITY PUBLIC SCHOOLS
E33: CRAIG COUNTY PUBLIC SCHOOLS
E34: CULPEPER COUNTY PUBLIC SCHOOLS
E35: CUMBERLAND COUNTY PUBLIC SCHOOLS
E36: DANVILLE CITY PUBLIC SCHOOLS
E37: DICKENSON COUNTY PUBLIC SCHOOLS
E38: DINWIDDIE COUNTY PUBLIC SCHOOLS
E39: EMPORIA CITY PUBLIC SCHOOLS
E40: ESSEX COUNTY PUBLIC SCHOOLS
E41: FAIRFAX CITY PUBLIC SCHOOLS
E42: FAIRFAX COUNTY PUBLIC SCHOOLS
E43: FALLS CHURCH CITY PUBLIC SCHOOLS
E44: FAUQUIER COUNTY PUBLIC SCHOOLS
E45: FLOYD COUNTY PUBLIC SCHOOLS
E46: FLUVANNA COUNTY PUBLIC SCHOOLS
E47: FRANKLIN CITY PUBLIC SCHOOLS
E48: FRANKLIN COUNTY PUBLIC SCHOOLS
E49: FREDERICK COUNTY PUBLIC SCHOOLS
E50: FREDERICKSBURG CITY PUBLIC SCHOOLS
E51: GALAX CITY PUBLIC SCHOOLS
E52: GILES COUNTY PUBLIC SCHOOLS
E53: GLOUCESTER COUNTY PUBLIC SCHOOLS
E54: GOOCHLAND COUNTY PUBLIC SCHOOLS
E55: GRAYSON COUNTY PUBLIC SCHOOLS
E56: GREENE COUNTY PUBLIC SCHOOLS
E57: GREENSVILLE COUNTY PUBLIC SCHOOLS
E58: HALIFAX COUNTY PUBLIC SCHOOLS
E59: HAMPTON CITY PUBLIC SCHOOLS
E60: HANOVER COUNTY PUBLIC SCHOOLS
E61: HARRISONBURG CITY PUBLIC SCHOOLS
E62: HENRICO COUNTY PUBLIC SCHOOLS
E63: HENRY COUNTY PUBLIC SCHOOLS
E64: HIGHLAND COUNTY PUBLIC SCHOOLS
E65: HOPEWELL CITY PUBLIC SCHOOLS
E66: ISLE OF WIGHT COUNTY PUBLIC SCHOOLS
E67: JAMES CITY COUNTY PUBLIC SCHOOLS
E68: JAMES MADISON UNIVERSITY
E69: KING AND QUEEN COUNTY PUBLIC SCHOOLS
E70: KING GEORGE COUNTY PUBLIC SCHOOLS
E71: KING WILLIAM COUNTY PUBLIC SCHOOLS
E72: LANCASTER COUNTY PUBLIC SCHOOLS
E73: LEE COUNTY PUBLIC SCHOOLS
E74: LEXINGTON CITY PUBLIC SCHOOLS
E75: LOUDOUN COUNTY PUBLIC SCHOOLS
E76: LOUISA COUNTY PUBLIC SCHOOLS
E77: LUNENBURG COUNTY PUBLIC SCHOOLS
E78: LYNCHBURG CITY PUBLIC SCHOOLS
E79: MADISON COUNTY PUBLIC SCHOOLS
E80: MANASSAS CITY PUBLIC SCHOOLS
E81: MANASSAS PARK CITY PUBLIC SCHOOLS
E82: MARTINSVILLE CITY PUBLIC SCHOOLS
E83: MATHEWS COUNTY PUBLIC SCHOOLS
E84: MCVH AUTHORITY
E85: MECKLENBURG COUNTY PUBLIC SCHOOLS
E86: MIDDLESEX COUNTY PUBLIC SCHOOLS
E87: MONTGOMERY COUNTY PUBLIC SCHOOLS
E88: NELSON COUNTY PUBLIC SCHOOLS
E89: NEW KENT COUNTY PUBLIC SCHOOLS
E90: NEWPORT NEWS CITY PUBLIC SCHOOLS
E91: NORFOLK CITY PUBLIC SCHOOLS
E92: NORTHAMPTON COUNTY PUBLIC SCHOOLS
E93: NORTHUMBERLAND COUNTY PUBLIC SCHOOLS
E94: NORTON CITY PUBLIC SCHOOLS
E95: NOTTOWAY COUNTY PUBLIC SCHOOLS
E96: OLD DOMINION UNIVERSITY
E97: ORANGE COUNTY PUBLIC SCHOOLS
E98: PAGE COUNTY PUBLIC SCHOOLS
E99: PATRICK COUNTY PUBLIC SCHOOLS
E100: PETERSBURG CITY PUBLIC SCHOOLS
E101: PITTSYLVANIA COUNTY PUBLIC SCHOOLS
E102: POQUOSON CITY PUBLIC SCHOOLS
E103: PORTSMOUTH CITY PUBLIC SCHOOLS
E104: POWHATAN COUNTY PUBLIC SCHOOLS
E105: PRINCE EDWARD COUNTY PUBLIC SCHOOLS
E106: PRINCE GEORGE COUNTY PUBLIC SCHOOLS
E107: PRINCE WILLIAM COUNTY PUBLIC SCHOOLS
E108: PULASKI COUNTY PUBLIC SCHOOLS
E109: RADFORD CITY PUBLIC SCHOOLS
E110: RAPPAHANNOCK COUNTY PUBLIC SCHOOLS
E111: RICHMOND CITY PUBLIC SCHOOLS
E112: RICHMOND COUNTY PUBLIC SCHOOLS
E113: ROANOKE CITY PUBLIC SCHOOLS
E114: ROANOKE COUNTY PUBLIC SCHOOLS
E115: ROCKBRIDGE COUNTY PUBLIC SCHOOLS
E116: ROCKINGHAM COUNTY PUBLIC SCHOOLS
E117: RUSSELL COUNTY PUBLIC SCHOOLS
E118: SALEM CITY PUBLIC SCHOOLS
E119: SCOTT COUNTY PUBLIC SCHOOLS
E120: SHENANDOAH COUNTY PUBLIC SCHOOLS
E121: SMYTH COUNTY PUBLIC SCHOOLS
E122: SOUTHAMPTON COUNTY PUBLIC SCHOOLS
E123: SOUTHWESTERN VA TRAINING CENTER
E124: SPOTSYLVANIA COUNTY PUBLIC SCHOOLS
E125: STAFFORD COUNTY PUBLIC SCHOOLS
E126: STAUNTON CITY PUBLIC SCHOOLS
E127: SUFFOLK CITY PUBLIC SCHOOLS
E128: SURRY COUNTY PUBLIC SCHOOLS
E129: SUSSEX COUNTY PUBLIC SCHOOLS
E130: TAZEWELL COUNTY PUBLIC SCHOOLS
E131: VA BEACH CITY PUBLIC SCHOOLS
E132: VA DEPT OF CORRECTIONAL EDUCATION
E133: VIRGINIA COMMONWEALTH UNIVERSITY
E134: VSDB HAMPTON
E135: VSDB STAUNTON
E136: WARREN COUNTY PUBLIC SCHOOLS
E137: WASHINGTON COUNTY PUBLIC SCHOOLS
E138: WAYNESBORO CITY PUBLIC SCHOOLS
E139: WEST POINT TOWN PUBLIC SCHOOLS
E140: WESTMORELAND COUNTY PUBLIC SCHOOLS
E141: WILLIAMSBURG CITY PUBLIC SCHOOLS
E142: WINCHESTER CITY PUBLIC SCHOOLS
E143: WISE COUNTY PUBLIC SCHOOLS
E144: WOODROW WILSON REHABILITATION CTR
E145: WYTHE COUNTY PUBLIC SCHOOLS
E146: YORK COUNTY PUBLIC SCHOOLS

Sheet DIVISION SCHOOLS (hidden)
A1: ed | B1: School Name | C1: s
A2: 1 | B2: Accawmacke Elementary | C2: PK - 05
A3: 1 | B3: Arcadia High | C3: 09 - 12
A4: 1 | B4: Arcadia Middle | C4: 06 - 08
A5: 1 | B5: Chincoteague Elementary | C5: PK - 05
A6: 1 | B6: Chincoteague High | C6: 06 - 12
A7: 1 | B7: Kegotank Elementary | C7: PK - 05
A8: 1 | B8: Metompkin Elementary | C8: PK - 05
A9: 1 | B9: Nandua High | C9: 09 - 12
A10: 1 | B10: Nandua Middle | C10: 06 - 08
A11: 1 | B11: Pungoteague Elementary | C11: PK - 05
A12: 1 | B12: Tangier Combined | C12: KG - 12
A13: 2 | B13: Agnor-Hurt Elementary | C13: PK - 05
A14: 2 | B14: Albemarle County Community Public Charter School | C14: 06 - 08
A15: 2 | B15: Albemarle High | C15: 09 - 12
A16: 2 | B16: Baker-Butler Elementary | C16: PK - 05
A17: 2 | B17: Broadus Wood Elementary | C17: PK - 05
A18: 2 | B18: Brownsville Elementary | C18: PK - 05
A19: 2 | B19: Crozet Elementary | C19: KG - 05
A20: 2 | B20: Hollymead Elementary | C20: PK - 05
A21: 2 | B21: Jack Jouett Middle | C21: 06 - 08
A22: 2 | B22: Jackson P. Burley Middle | C22: 06 - 08
A23: 2 | B23: Joseph T. Henley Middle | C23: 06 - 08
A24: 2 | B24: Leslie H. Walton Middle | C24: 06 - 08
A25: 2 | B25: Mary Carr Greer Elementary | C25: PK - 05
A26: 2 | B26: Meriwether Lewis Elementary | C26: KG - 05
A27: 2 | B27: Monticello High | C27: 09 - 12
A28: 2 | B28: Mortimer Y. Sutherland Middle | C28: 06 - 08
A29: 2 | B29: Murray High | C29: 09 - 12
A30: 2 | B30: Paul H. Cale Elementary | C30: PK - 05
A31: 2 | B31: Red Hill Elementary | C31: PK - 05
A32: 2 | B32: Scottsville Elementary | C32: PK - 05
A33: 2 | B33: Stone Robinson Elementary | C33: PK - 05
A34: 2 | B34: Stony Point Elementary | C34: KG - 05
A35: 2 | B35: Virginia L. Murray Elementary | C35: PK - 05
A36: 2 | B36: Western Albemarle High | C36: 09 - 12
A37: 2 | B37: Woodbrook Elementary | C37: PK - 05
A38: 3 | B38: Alleghany High | C38: 09 - 12
A39: 3 | B39: Callaghan Elementary | C39: KG - 05
A40: 3 | B40: Clifton Middle | C40: 06 - 08
A41: 3 | B41: Mountain View Elementary | C41: KG - 05
A42: 3 | B42: Sharon Elementary | C42: KG - 05
A43: 4 | B43: Amelia County Elementary | C43: PK - 04
A44: 4 | B44: Amelia County High | C44: 09 - 12
A45: 4 | B45: Amelia County Middle | C45: 05 - 08
A46: 5 | B46: Amelon Elementary | C46: PK - 05
A47: 5 | B47: Amherst County High | C47: 09 - 12
A48: 5 | B48: Amherst Elementary | C48: PK - 05
A49: 5 | B49: Amherst Middle | C49: 06 - 08
A50: 5 | B50: Central Elementary | C50: PK - 05
A51: 5 | B51: Elon Elementary | C51: PK - 05
A52: 5 | B52: Madison Heights Elementary | C52: PK - 05
A53: 5 | B53: Monelison Middle | C53: 06 - 08
A54: 5 | B54: Temperance Elementary | C54: PK - 05
A55: 6 | B55: Appomattox County High | C55: 09 - 12
A56: 6 | B56: Appomattox Elementary | C56: 03 - 05
A57: 6 | B57: Appomattox Middle | C57: 06 - 08
A58: 6 | B58: Appomattox Primary | C58: PK - 02
A59: 7 | B59: Abingdon Elementary | C59: PK - 05
A60: 7 | B60: Arlington Community High | C60: 09 - 12
A61: 7 | B61: Arlington Science Focus School | C61: PK - 05
A62: 7 | B62: Arlington Traditional | C62: PK - 05
A63: 7 | B63: Ashlawn Elementary | C63: PK - 05
A64: 7 | B64: Barcroft Elementary | C64: PK - 05
A65: 7 | B65: Barrett Elementary | C65: PK - 05
A66: 7 | B66: Campbell Elementary | C66: PK - 05
A67: 7 | B67: Carlin Springs Elementary | C67: PK - 05
A68: 7 | B68: Claremont Immersion | C68: PK - 05
A69: 7 | B69: Discovery Elementary | C69: PK - 05
A70: 7 | B70: Drew Model Elementary | C70: PK - 05
A71: 7 | B71: Francis Scott Key Elementary | C71: PK - 05
A72: 7 | B72: Glebe Elementary | C72: PK - 05
A73: 7 | B73: Gunston Middle | C73: 06 - 08
A74: 7 | B74: Henry Elementary | C74: PK - 05
A75: 7 | B75: Hoffman-Boston Elementary | C75: PK - 05
A76: 7 | B76: Jamestown Elementary | C76: PK - 05
A77: 7 | B77: Jefferson Middle | C77: 06 - 08
A78: 7 | B78: Kenmore Middle | C78: 06 - 08
A79: 7 | B79: Long Branch Elementary | C79: PK - 05
A80: 7 | B80: McKinley Elementary | C80: PK - 05
A81: 7 | B81: Nottingham Elementary | C81: KG - 05
A82: 7 | B82: Oakridge Elementary | C82: PK - 05
A83: 7 | B83: Randolph Elementary | C83: PK - 05
A84: 7 | B84: Swanson Middle | C84: 06 - 08
A85: 7 | B85: Taylor Elementary | C85: PK - 05
A86: 7 | B86: Tuckahoe Elementary | C86: PK - 05
A87: 7 | B87: Wakefield High | C87: 09 - 12
A88: 7 | B88: Washington-Lee High | C88: 09 - 12
A89: 7 | B89: Williamsburg Middle | C89: 06 - 08
A90: 7 | B90: Yorktown High | C90: 09 - 12
A91: 8 | B91: Beverley Manor Middle | C91: 06 - 08
A92: 8 | B92: Buffalo Gap High | C92: 09 - 12
A93: 8 | B93: Cassell Elementary | C93: PK - 05
A94: 8 | B94: Churchville Elementary | C94: PK - 05
A95: 8 | B95: Craigsville Elementary | C95: PK - 05
A96: 8 | B96: Edward G. Clymore Elementary | C96: PK - 05
A97: 8 | B97: Fort Defiance High | C97: 09 - 12
A98: 8 | B98: Guy K. Stump Elementary | C98: PK - 05
A99: 8 | B99: North River Elementary | C99: PK - 05
A100: 8 | B100: Riverheads Elementary | C100: PK - 05
A101: 8 | B101: Riverheads High | C101: 09 - 12
A102: 8 | B102: S. Gordon Stewart Middle | C102: 06 - 08
A103: 8 | B103: Stuarts Draft Elementary | C103: PK - 05
A104: 8 | B104: Stuarts Draft High | C104: 09 - 12
A105: 8 | B105: Stuarts Draft Middle | C105: 06 - 08
A106: 8 | B106: Wilson Elementary | C106: PK - 05
A107: 8 | B107: Wilson Memorial High | C107: 09 - 12
A108: 8 | B108: Wilson Middle | C108: 06 - 08
A109: 9 | B109: Bath County High | C109: 08 - 12
A110: 9 | B110: Millboro Elementary | C110: PK - 07
A111: 9 | B111: Valley Elementary | C111: PK - 07
A112: 10 | B112: Bedford Elementary | C112: 02 - 05
A113: 10 | B113: Bedford Primary | C113: PK - 01
A114: 10 | B114: Big Island Elementary | C114: PK - 05
A115: 10 | B115: Boonsboro Elementary | C115: KG - 05
A116: 10 | B116: Forest Elementary | C116: KG - 05
A117: 10 | B117: Forest Middle | C117: 06 - 08
A118: 10 | B118: Goodview Elementary | C118: PK - 05
A119: 10 | B119: Huddleston Elementary | C119: PK - 05
A120: 10 | B120: Jefferson Forest High | C120: 09 - 12
A121: 10 | B121: Liberty High | C121: 09 - 12
A122: 10 | B122: Liberty Middle | C122: 06 - 08
A123: 10 | B123: Moneta Elementary | C123: PK - 05
A124: 10 | B124: Montvale Elementary | C124: PK - 05
A125: 10 | B125: New London Academy Elementary | C125: PK - 05
A126: 10 | B126: Otter River Elementary | C126: PK - 05
A127: 10 | B127: Staunton River High | C127: 09 - 12
A128: 10 | B128: Staunton River Middle | C128: 06 - 08
A129: 10 | B129: Stewartsville Elementary | C129: PK - 05
A130: 10 | B130: Thomas Jefferson Elementary | C130: PK - 05
A131: 11 | B131: Bland County Elementary | C131: PK - 06
A132: 11 | B132: Bland County High | C132: 07 - 12
A133: 12 | B133: Breckinridge Elementary | C133: PK - 05
A134: 12 | B134: Buchanan Elementary | C134: PK - 05
A135: 12 | B135: Central Academy Middle | C135: 06 - 08
A136: 12 | B136: Cloverdale Elementary | C136: KG - 05
A137: 12 | B137: Colonial Elementary | C137: PK - 05
A138: 12 | B138: Eagle Rock Elementary | C138: PK - 05
A139: 12 | B139: Greenfield Elementary | C139: PK - 05
A140: 12 | B140: James River High | C140: 09 - 12
A141: 12 | B141: Lord Botetourt High | C141: 09 - 12
A142: 12 | B142: Read Mountain Middle | C142: 06 - 08
A143: 12 | B143: Troutville Elementary | C143: PK - 05
A144: 13 | B144: Brunswick High | C144: 09 - 12
A145: 13 | B145: James S. Russell Middle | C145: 06 - 08
A146: 13 | B146: Meherrin Powellton Elementary | C146: PK - 05
A147: 13 | B147: Red Oak-Sturgeon Elementary | C147: PK - 05
A148: 13 | B148: Totaro Elementary | C148: PK - 05
A149: 14 | B149: Council Elementary/Middle | C149: PK - 07
A150: 14 | B150: Council High | C150: 08 - 12
A151: 14 | B151: Grundy High | C151: 09 - 12
A152: 14 | B152: Hurley Elementary/Middle | C152: PK - 07
A153: 14 | B153: Hurley High | C153: 08 - 12
A154: 14 | B154: Riverview Elementary/Middle | C154: PK - 08
A155: 14 | B155: Twin Valley Elementary/Middle | C155: PK - 07
A156: 14 | B156: Twin Valley High | C156: 08 - 12
A157: 15 | B157: Buckingham County Elementary | C157: 03 - 05
A158: 15 | B158: Buckingham County High | C158: 09 - 12
A159: 15 | B159: Buckingham County Middle | C159: 06 - 08
A160: 15 | B160: Buckingham County Prekindergarten Center | C160: PK - PK
A161: 15 | B161: Buckingham County Primary | C161: KG - 02
A162: 16 | B162: Altavista Elementary | C162: PK - 05
A163: 16 | B163: Altavista High | C163: 06 - 12
A164: 16 | B164: Brookneal Elementary | C164: PK - 05
A165: 16 | B165: Brookville High | C165: 09 - 12
A166: 16 | B166: Brookville Middle | C166: 06 - 08
A167: 16 | B167: Concord Elementary | C167: PK - 05
A168: 16 | B168: Leesville Road Elementary | C168: PK - 05
A169: 16 | B169: Rustburg Elementary | C169: PK - 05
A170: 16 | B170: Rustburg High | C170: 09 - 12
A171: 16 | B171: Rustburg Middle | C171: 06 - 08
A172: 16 | B172: Tomahawk Elementary | C172: PK - 05
A173: 16 | B173: William Campbell High | C173: 06 - 12
A174: 16 | B174: Yellow Branch Elementary | C174: PK - 05
A175: 17 | B175: Bowling Green Elementary | C175: PK - 05
A176: 17 | B176: Caroline High | C176: 09 - 12
A177: 17 | B177: Caroline Middle | C177: 06 - 08
A178: 17 | B178: Lewis & Clark Elementary | C178: PK - 05
A179: 17 | B179: Madison Elementary | C179: PK - 05
A180: 18 | B180: Carroll County High | C180: 09 - 12
A181: 18 | B181: Carroll County Middle School | C181: 06 - 08
A182: 18 | B182: Fancy Gap Elementary | C182: PK - 05
A183: 18 | B183: Gladesboro Elementary School | C183: PK - 05
A184: 18 | B184: Gladeville Elementary School | C184: PK - 05
A185: 18 | B185: Hillsville Elementary School | C185: PK - 05
A186: 18 | B186: Laurel Elementary School | C186: PK - 05
A187: 18 | B187: Oakland Elementary | C187: PK - 05
A188: 18 | B188: St. Paul | C188: PK - 07
A189: 19 | B189: Charles City County Elementary | C189: PK - 06
A190: 19 | B190: Charles City County High | C190: 07 - 12
A191: 20 | B191: Bacon District Elementary | C191: PK - 05
A192: 20 | B192: Central Middle | C192: 06 - 08
A193: 20 | B193: Eureka Elementary | C193: PK - 05
A194: 20 | B194: Phenix Elementary | C194: PK - 05
A195: 20 | B195: Randolph Henry High | C195: 09 - 12
A196: 21 | B196: A.M. Davis Elementary | C196: PK - 05
A197: 21 | B197: Alberta Smith Elementary | C197: PK - 05
A198: 21 | B198: Bailey Bridge Middle | C198: 06 - 08
A199: 21 | B199: Bellwood Elementary | C199: PK - 05
A200: 21 | B200: Bensley Elementary | C200: PK - 05
... 1655 more rows

Sheet Prefills (hidden)
B1: Code | I1: INNOVATIVE ASSISTANCE PROGRAM AREAS | U1: Yes | W1: Yes | Z1: Title I A | AD1: Title I C | AH1: Title ID | AL1: Title IIA | AP1: Title IID | AT1: Title III | AX1: Title IV | BB1: Title V | BF1: Title VI
A2: ACCOMACK COUNTY PUBLIC SCHOOLS | B2: 1 | U2: No | W2: No | Z2: Payee | AA2: ProjectGroupID | AB2: CONoSOLIDATED_APP_FLAG | AC2: Allocation | AD2: Payee | AE2: ProjectGroupID | AF2: CONoSOLIDATED_APP_FLAG | AG2: Allocation | AH2: Payee | AI2: ProjectGroupID | AJ2: CONoSOLIDATED_APP_FLAG | AK2: Allocation | AL2: Payee | AM2: ProjectGroupID | AN2: CONoSOLIDATED_APP_FLAG | AO2: Allocation | AP2: Payee | AQ2: ProjectGroupID | AR2: CONoSOLIDATED_APP_FLAG | AS2: Allocation | AT2: Payee | AU2: ProjectGroupID | AV2: CONoSOLIDATED_APP_FLAG | AW2: Allocation | AX2: Payee | AY2: ProjectGroupID | AZ2: CONoSOLIDATED_APP_FLAG | BA2: Allocation | BB2: Payee | BC2: ProjectGroupID | BD2: CONoSOLIDATED_APP_FLAG | BE2: Allocation | BF2: Payee | BG2: ProjectGroupID | BH2: CONoSOLIDATED_APP_FLAG | BI2: Allocation | BK2: Payee | BL2: Neglected Count
A3: ALBEMARLE COUNTY PUBLIC SCHOOLS | B3: 2 | W3: Shared Services Only | Z3: 1 | AA3: 1 | AB3: Yes | AC3: 2020310.89 | AD3: 1 | AE3: 2 | AF3: Yes | AG3: 274686.67 | AH3: 1 | AI3: 3 | AJ3: Yes | AL3: 1 | AM3: 4 | AN3: Yes | AO3: 291765.79 | AT3: 1 | AU3: 6 | AV3: Yes | AW3: 97040.22 | AX3: 1 | AY3: 97 | BF3: 1 | BG3: 9 | BH3: Yes | BI3: 94384.84 | BK3: 1
A4: ALEXANDRIA CITY PUBLIC SCHOOLS | B4: 101 | H4: 1. | I4: 1. Recruiting, training, and hiring highly qualified teachers to reduce class size | Z4: 2 | AA4: 1 | AB4: No | AC4: 1494988.23 | AD4: 2 | AE4: 2 | AF4: No | AG4: 84026.79 | AH4: 2 | AI4: 3 | AJ4: No | AL4: 2 | AM4: 4 | AN4: No | AO4: 316179.34 | AT4: 2 | AU4: 6 | AV4: No | AW4: 103428.7 | AX4: 2 | AY4: 97 | BF4: 2 | BG4: 9 | BH4: No | BK4: 2
A5: ALLEGHANY COUNTY PUBLIC SCHOOLS | B5: 3 | H5: 2. | I5: 2. Technology activities, including professional development | Z5: 3 | AA5: 1 | AB5: Yes | AC5: 597714.32 | AD5: 3 | AE5: 2 | AF5: Yes | AH5: 3 | AI5: 3 | AJ5: Yes | AL5: 3 | AM5: 4 | AN5: Yes | AO5: 108836.84 | AT5: 3 | AU5: 6 | AV5: Yes | AW5: 2476.63 | AX5: 3 | AY5: 97 | BF5: 3 | BG5: 9 | BH5: Yes | BK5: 3 | BL5: 53
A6: AMELIA COUNTY PUBLIC SCHOOLS | B6: 4 | H6: 3a. | I6: 3a. Development or acquisition and use of: computer software and hardware | W6: Yes | Z6: 4 | AA6: 1 | AB6: Yes | AC6: 340478.7 | AD6: 4 | AE6: 2 | AF6: Yes | AH6: 4 | AI6: 3 | AJ6: Yes | AL6: 4 | AM6: 4 | AN6: Yes | AO6: 66723.36 | AT6: 4 | AU6: 6 | AV6: Yes | AW6: 4599.45 | AX6: 4 | AY6: 97 | BF6: 4 | BG6: 9 | BH6: Yes | BK6: 4
A7: AMHERST COUNTY PUBLIC SCHOOLS | B7: 5 | H7: 3b. | I7: 3b. Development or acquisition and use of: instructional/reference materials and academic assessments | W7: No | Z7: 5 | AA7: 1 | AB7: No | AC7: 968506.87 | AD7: 5 | AE7: 2 | AF7: No | AH7: 5 | AI7: 3 | AJ7: No | AL7: 5 | AM7: 4 | AN7: No | AO7: 162116.93 | AT7: 5 | AU7: 6 | AV7: No | AW7: 943.48 | AX7: 5 | AY7: 97 | BF7: 5 | BG7: 9 | BH7: No | BK7: 5
A8: APPOMATTOX COUNTY PUBLIC SCHOOLS | B8: 6 | H8: 3c. | I8: 3c. Development or acquisition and use of: library/media services and materials | Z8: 6 | AA8: 1 | AB8: No | AC8: 530822.75 | AD8: 6 | AE8: 2 | AF8: No | AH8: 6 | AI8: 3 | AJ8: No | AL8: 6 | AM8: 4 | AN8: No | AO8: 90073.64 | AT8: 6 | AU8: 6 | AV8: No | AW8: 353.8 | AX8: 6 | AY8: 97 | BF8: 6 | BG8: 9 | BH8: No | BI8: 42396.28 | BK8: 6
A9: ARLINGTON COUNTY PUBLIC SCHOOLS | B9: 7 | H9: 4. | I9: 4. Educational reform projects, including magnet schools | Z9: 7 | AA9: 1 | AB9: Yes | AC9: 2434753.26 | AD9: 7 | AE9: 2 | AF9: Yes | AH9: 7 | AI9: 3 | AJ9: Yes | AL9: 7 | AM9: 4 | AN9: Yes | AO9: 578776.99 | AT9: 7 | AU9: 6 | AV9: Yes | AW9: 588170.92 | AX9: 7 | AY9: 97 | BF9: 7 | BG9: 9 | BH9: Yes | BK9: 7
A10: AUGUSTA COUNTY PUBLIC SCHOOLS | B10: 8 | H10: 5. | I10: 5. Programs to improve the academic achievement of educationally disadvantaged elementary and secondary students, including dropout prevention | Z10: 8 | AA10: 1 | AB10: No | AC10: 1320589.38 | AD10: 8 | AE10: 2 | AF10: No | AH10: 8 | AI10: 3 | AJ10: No | AL10: 8 | AM10: 4 | AN10: No | AO10: 273200.47 | AT10: 8 | AU10: 6 | AV10: No | AW10: 20756.5 | AX10: 8 | AY10: 97 | BF10: 8 | BG10: 9 | BH10: No | BK10: 8
A11: BATH COUNTY PUBLIC SCHOOLS | B11: 9 | H11: 6. | I11: 6. Programs to improve the literacy skills of adults, including adult education and family literacy programs | Z11: 9 | AA11: 1 | AB11: No | AC11: 87120.37 | AD11: 9 | AE11: 2 | AF11: No | AH11: 9 | AI11: 3 | AJ11: No | AL11: 9 | AM11: 4 | AN11: No | AO11: 23069.45 | AT11: 9 | AU11: 6 | AV11: No | AW11: 1297.28 | AX11: 9 | AY11: 97 | BF11: 9 | BG11: 9 | BH11: No | BK11: 9
A12: BEDFORD CITY PUBLIC SCHOOLS | B12: 140 | H12: 7. | I12: 7. Programs for gifted and talented children | Z12: 10 | AA12: 1 | AB12: No | AC12: 1519458.18 | AD12: 10 | AE12: 2 | AF12: No | AH12: 10 | AI12: 3 | AJ12: No | AL12: 10 | AM12: 4 | AN12: No | AO12: 289537.68 | AT12: 10 | AU12: 6 | AV12: No | AW12: 14623.9 | AX12: 10 | AY12: 97 | BF12: 10 | BG12: 9 | BH12: No | BK12: 10
A13: BEDFORD COUNTY PUBLIC SCHOOLS | B13: 10 | H13: 8. | I13: 8. Planning, design, and initial implementation of charter schools under Title V, Part B | Z13: 11 | AA13: 1 | AB13: Yes | AC13: 139864.63 | AD13: 11 | AE13: 2 | AF13: Yes | AH13: 11 | AI13: 3 | AJ13: Yes | AL13: 11 | AM13: 4 | AN13: Yes | AO13: 29073.03 | AT13: 11 | AU13: 6 | AV13: Yes | AW13: 0 | AX13: 11 | AY13: 97 | BF13: 11 | BG13: 9 | BH13: Yes | BK13: 11
A14: BLAND COUNTY PUBLIC SCHOOLS | B14: 11 | H14: 9. | I14: 9. School improvement programs or activities under Sections 1116 and 1117 of Title I, Part A | Z14: 12 | AA14: 1 | AB14: No | AC14: 390451.3 | AD14: 12 | AE14: 2 | AF14: No | AH14: 12 | AI14: 3 | AJ14: No | AL14: 12 | AM14: 4 | AN14: No | AO14: 102008.92 | AT14: 12 | AU14: 6 | AV14: No | AW14: 5795.58 | AX14: 12 | AY14: 97 | BF14: 12 | BG14: 9 | BH14: No | BK14: 12
A15: BOTETOURT COUNTY PUBLIC SCHOOLS | B15: 12 | H15: 10. | I15: 10. Community service programs | Z15: 13 | AA15: 1 | AB15: Yes | AC15: 782994.19 | AD15: 13 | AE15: 2 | AF15: Yes | AH15: 13 | AI15: 3 | AJ15: Yes | AL15: 13 | AM15: 4 | AN15: Yes | AO15: 141614.94 | AT15: 13 | AU15: 6 | AV15: Yes | AW15: 3773.91 | AX15: 13 | AY15: 97 | BF15: 13 | BG15: 9 | BH15: Yes | BI15: 35353.84 | BK15: 13
A16: BRISTOL CITY PUBLIC SCHOOLS | B16: 102 | H16: 11. | I16: 11. Consumer, economic, and personal finance education | Z16: 14 | AA16: 1 | AB16: Yes | AC16: 1426430.57 | AD16: 14 | AE16: 2 | AF16: Yes | AH16: 14 | AI16: 3 | AJ16: Yes | AL16: 14 | AM16: 4 | AN16: Yes | AO16: 288212.45 | AT16: 14 | AU16: 6 | AV16: Yes | AW16: 117.93 | AX16: 14 | AY16: 97 | BF16: 14 | BG16: 9 | BH16: Yes | BI16: 59901.19 | BK16: 14
A17: BRUNSWICK COUNTY PUBLIC SCHOOLS | B17: 13 | H17: 12. | I17: 12. Public school choice | W17: 1000 | Z17: 15 | AA17: 1 | AB17: Yes | AC17: 683921.31 | AD17: 15 | AE17: 2 | AF17: Yes | AH17: 15 | AI17: 3 | AJ17: Yes | AL17: 15 | AM17: 4 | AN17: Yes | AO17: 117055.64 | AT17: 15 | AU17: 6 | AV17: Yes | AW17: 117.93 | AX17: 15 | AY17: 97 | BF17: 15 | BG17: 9 | BH17: Yes | BI17: 38227.48 | BK17: 15
A18: BUCHANAN COUNTY PUBLIC SCHOOLS | B18: 14 | H18: 13. | I18: 13. Programs to hire and support school nurses | W18: 2000 | Z18: 16 | AA18: 1 | AB18: No | AC18: 1556355.76 | AD18: 16 | AE18: 2 | AF18: No | AH18: 16 | AI18: 3 | AJ18: No | AL18: 16 | AM18: 4 | AN18: No | AO18: 286448.53 | AT18: 16 | AU18: 6 | AV18: No | AW18: 15921.18 | AX18: 16 | AY18: 97 | BF18: 16 | BG18: 9 | BH18: No | BK18: 16 | BL18: 2
A19: BUCKINGHAM COUNTY PUBLIC SCHOOLS | B19: 15 | H19: 14. | I19: 14. School-based mental health services | W19: 3000 | Z19: 17 | AA19: 1 | AB19: Yes | AC19: 885508.1 | AD19: 17 | AE19: 2 | AF19: Yes | AH19: 17 | AI19: 3 | AJ19: Yes | AL19: 17 | AM19: 4 | AN19: Yes | AO19: 148001.87 | AT19: 17 | AU19: 6 | AV19: Yes | AW19: 6722.28 | AX19: 17 | AY19: 97 | BF19: 17 | BG19: 9 | BH19: Yes | BK19: 17
A20: BUENA VISTA CITY PUBLIC SCHOOLS | B20: 103 | H20: 15. | I20: 15. Alternative educational programs | W20: 4000 | Z20: 18 | AA20: 1 | AB20: No | AC20: 1048225 | AD20: 18 | AE20: 2 | AF20: No | AG20: 44652.04 | AH20: 18 | AI20: 3 | AJ20: No | AL20: 18 | AM20: 4 | AN20: No | AO20: 175016.18 | AT20: 18 | AU20: 6 | AV20: No | AW20: 12501.07 | AX20: 18 | AY20: 97 | BF20: 18 | BG20: 9 | BH20: No | BI20: 81089.21 | BK20: 18 | BL20: 10
A21: CAMPBELL COUNTY PUBLIC SCHOOLS | B21: 16 | H21: 16. | I21: 16. Prekindergarten programs | W21: 5000 | Z21: 19 | AA21: 1 | AB21: Yes | AC21: 174742.95 | AD21: 19 | AE21: 2 | AF21: Yes | AH21: 19 | AI21: 3 | AJ21: Yes | AL21: 19 | AM21: 4 | AN21: Yes | AO21: 41615.81 | AT21: 19 | AU21: 6 | AV21: Yes | AW21: 2122.82 | AX21: 19 | AY21: 97 | BF21: 19 | BG21: 9 | BH21: Yes | BK21: 19
A22: CAROLINE COUNTY PUBLIC SCHOOLS | B22: 17 | H22: 17. | I22: 17. Academic intervention programs jointly operated with community-based organizations | W22: 6000 | Z22: 20 | AA22: 1 | AB22: Yes | AC22: 718269.47 | AD22: 20 | AE22: 2 | AF22: Yes | AH22: 20 | AI22: 3 | AJ22: Yes | AL22: 20 | AM22: 4 | AN22: Yes | AO22: 100384.89 | AT22: 20 | AU22: 6 | AV22: Yes | AW22: 1179.35 | AX22: 20 | AY22: 97 | BF22: 20 | BG22: 9 | BH22: Yes | BI22: 37438.24 | BK22: 20
A23: CARROLL COUNTY PUBLIC SCHOOLS | B23: 18 | H23: 18. | I23: 18. CPR training | W23: 8000 | Z23: 21 | AA23: 1 | AB23: No | AC23: 6644383.52 | AD23: 21 | AE23: 2 | AF23: No | AH23: 21 | AI23: 3 | AJ23: No | AL23: 21 | AM23: 4 | AN23: No | AO23: 1115942.77 | AT23: 21 | AU23: 6 | AV23: No | AW23: 380345.9 | AX23: 21 | AY23: 97 | BF23: 21 | BG23: 9 | BH23: No | BK23: 21 | BL23: 5
A24: CHARLES CITY COUNTY PUBLIC SCHOOLS | B24: 19 | H24: 19. | I24: 19. Smaller learning communities | Z24: 22 | AA24: 1 | AB24: No | AC24: 177305.53 | AD24: 22 | AE24: 2 | AF24: No | AH24: 22 | AI24: 3 | AJ24: No | AL24: 22 | AM24: 4 | AN24: No | AO24: 55133.09 | AT24: 22 | AU24: 6 | AV24: No | AW24: 1651.09 | AX24: 22 | AY24: 97 | BF24: 22 | BG24: 9 | BH24: No | BK24: 22
A25: CHARLOTTE COUNTY PUBLIC SCHOOLS | B25: 20 | H25: 20. | I25: 20. Activities that encourage and expand improvements throughout the LEA area that are designed to advance student academic achievement | Z25: 23 | AA25: 1 | AB25: Yes | AC25: 177621.13 | AD25: 23 | AE25: 2 | AF25: Yes | AH25: 23 | AI25: 3 | AJ25: Yes | AL25: 23 | AM25: 4 | AN25: Yes | AO25: 23564.46 | AT25: 23 | AU25: 6 | AV25: Yes | AW25: 707.61 | AX25: 23 | AY25: 97 | BF25: 23 | BG25: 9 | BH25: Yes | BK25: 23
A26: CHARLOTTESVILLE CITY PUBLIC SCHOOLS | B26: 104 | H26: 21. | I26: 21. Parental and community involvement | Z26: 24 | AA26: 1 | AB26: No | AC26: 1460772.15 | AD26: 24 | AE26: 2 | AF26: No | AH26: 24 | AI26: 3 | AJ26: No | AK26: 60972.77 | AL26: 24 | AM26: 4 | AN26: No | AO26: 201224.25 | AT26: 24 | AU26: 6 | AV26: No | AW26: 54485.81 | AX26: 24 | AY26: 97 | BF26: 24 | BG26: 9 | BH26: No | BK26: 24 | BL26: 61
A27: CHESAPEAKE CITY PUBLIC SCHOOLS | B27: 136 | H27: 22. | I27: 22. Activities that expand learning through best-practice models | Z27: 25 | AA27: 1 | AB27: Yes | AC27: 460495.23 | AD27: 25 | AE27: 2 | AF27: Yes | AH27: 25 | AI27: 3 | AJ27: Yes | AL27: 25 | AM27: 4 | AN27: Yes | AO27: 68531.73 | AT27: 25 | AU27: 6 | AV27: Yes | AW27: 3420.11 | AX27: 25 | AY27: 97 | BF27: 25 | BG27: 9 | BH27: Yes | BI27: 24871.14 | BK27: 25
A28: CHESTERFIELD COUNTY PUBLIC SCHOOLS | B28: 21 | H28: 23. | I28: 23. Same-gender schools and classrooms (consistent with applicable law)** | V28: Local Neglected Facility | Z28: 26 | AA28: 1 | AB28: No | AC28: 901422.07 | AD28: 26 | AE28: 2 | AF28: No | AH28: 26 | AI28: 3 | AJ28: No | AL28: 26 | AM28: 4 | AN28: No | AO28: 190725.7 | AT28: 26 | AU28: 6 | AV28: No | AW28: 0 | AX28: 26 | AY28: 97 | BF28: 26 | BG28: 9 | BH28: No | BI28: 42396.28 | BK28: 26
A29: CLARKE COUNTY PUBLIC SCHOOLS | B29: 22 | H29: 24. | I29: 24. Service learning activities | V29: Local School Division | Z29: 27 | AA29: 1 | AB29: Yes | AC29: 787895.89 | AD29: 27 | AE29: 2 | AF29: Yes | AH29: 27 | AI29: 3 | AJ29: Yes | AL29: 27 | AM29: 4 | AN29: Yes | AO29: 150710.04 | AT29: 27 | AU29: 6 | AV29: Yes | AW29: 7901.62 | AX29: 27 | AY29: 97 | BF29: 27 | BG29: 9 | BH29: Yes | BK29: 27
A30: CLIFTON FORGE CITY | B30: 105 | H30: 25. | I30: 25. School safety programs | Z30: 28 | AA30: 1 | AB30: No | AC30: 487642.05 | AD30: 28 | AE30: 2 | AF30: No | AH30: 28 | AI30: 3 | AJ30: No | AL30: 28 | AM30: 4 | AN30: No | AO30: 64231.8 | AT30: 28 | AU30: 6 | AV30: No | AW30: 4127.71 | AX30: 28 | AY30: 97 | BF30: 28 | BG30: 9 | BH30: No | BI30: 29444.67 | BK30: 28
A31: COLONIAL BEACH TOWN PUBLIC SCHOOLS | B31: 202 | H31: 26. | I31: 26. Programs that use research-based cognitive and perceptual development approaches | Z31: 29 | AA31: 1 | AB31: No | AC31: =24575769.41+284520.17 -> 24860289.58 | AD31: 29 | AE31: 2 | AF31: No | AH31: 29 | AI31: 3 | AJ31: No | AL31: 29 | AM31: 4 | AN31: No | AO31: 3103436.61 | AT31: 29 | AU31: 6 | AV31: No | AW31: 4500516.19 | AX31: 29 | AY31: 97 | BF31: 29 | BG31: 9 | BH31: No | BK31: 29
A32: COLONIAL HEIGHTS CITY PUBLIC SCHOOLS | B32: 106 | H32: 27. | I32: 27. Supplemental educational services as defined in Section 1116(e) of Title I, Part A | Z32: 30 | AA32: 1 | AB32: Yes | AC32: 820211.67 | AD32: 30 | AE32: 2 | AF32: Yes | AH32: 30 | AI32: 3 | AJ32: Yes | AL32: 30 | AM32: 4 | AN32: Yes | AO32: 231857.94 | AT32: 30 | AU32: 6 | AV32: Yes | AW32: 58023.85 | AX32: 30 | AY32: 97 | BF32: 30 | BG32: 9 | BH32: Yes | BK32: 30
A33: COVINGTON CITY PUBLIC SCHOOLS | B33: 107 | I33: Program Administration | Z33: 31 | AA33: 1 | AB33: Yes | AC33: 464194.11 | AD33: 31 | AE33: 2 | AF33: Yes | AH33: 31 | AI33: 3 | AJ33: Yes | AL33: 31 | AM33: 4 | AN33: Yes | AO33: 78309.01 | AT33: 31 | AU33: 6 | AV33: Yes | AW33: 6014.67 | AX33: 31 | AY33: 97 | BF33: 31 | BG33: 9 | BH33: Yes | BK33: 31
A34: CRAIG COUNTY PUBLIC SCHOOLS | B34: 23 | I34: Indirect Costs (not to exceed approved rate) | Z34: 32 | AA34: 1 | AB34: Yes | AC34: 356780.34 | AD34: 32 | AE34: 2 | AF34: Yes | AH34: 32 | AI34: 3 | AJ34: Yes | AL34: 32 | AM34: 4 | AN34: Yes | AO34: 91767.55 | AT34: 32 | AU34: 6 | AV34: Yes | AW34: 6132.6 | AX34: 32 | AY34: 97 | BF34: 32 | BG34: 9 | BH34: Yes | BK34: 32 | BL34: 6
A35: CULPEPER COUNTY PUBLIC SCHOOLS | B35: 24 | Z35: 33 | AA35: 1 | AB35: Yes | AC35: 1759637.77 | AD35: 33 | AE35: 2 | AF35: Yes | AH35: 33 | AI35: 3 | AJ35: Yes | AL35: 33 | AM35: 4 | AN35: Yes | AO35: 259741.73 | AT35: 33 | AU35: 6 | AV35: Yes | AW35: 11085.86 | AX35: 33 | AY35: 97 | BF35: 33 | BG35: 9 | BH35: Yes | BK35: 33
A36: CUMBERLAND COUNTY PUBLIC SCHOOLS | B36: 25 | Z36: 34 | AA36: 1 | AB36: No | AC36: 1369997.08 | AD36: 34 | AE36: 2 | AF36: No | AH36: 34 | AI36: 3 | AJ36: No | AK36: 52398.47 | AL36: 34 | AM36: 4 | AN36: No | AO36: 267006.27 | AT36: 34 | AU36: 6 | AV36: No | AW36: 64274.39 | AX36: 34 | AY36: 97 | BF36: 34 | BG36: 9 | BH36: No | BK36: 34
A37: DANVILLE CITY PUBLIC SCHOOLS | B37: 108 | Z37: 35 | AA37: 1 | AB37: No | AC37: 458807.33 | AD37: 35 | AE37: 2 | AF37: No | AH37: 35 | AI37: 3 | AJ37: No | AL37: 35 | AM37: 4 | AN37: No | AO37: 95220.4 | AT37: 35 | AU37: 6 | AV37: No | AW37: 471.74 | AX37: 35 | AY37: 97 | BF37: 35 | BG37: 9 | BH37: No | BK37: 35
A38: DEPARTMENT OF JUVENILE JUSTICE | B38: 917 | Z38: 36 | AA38: 1 | AB38: Yes | AC38: 746961.08 | AD38: 36 | AE38: 2 | AF38: Yes | AH38: 36 | AI38: 3 | AJ38: Yes | AL38: 36 | AM38: 4 | AN38: Yes | AO38: 205487.34 | AT38: 36 | AU38: 6 | AV38: Yes | AW38: 5626.14 | AX38: 36 | AY38: 97 | BF38: 36 | BG38: 9 | BH38: Yes | BK38: 36
A39: DICKENSON COUNTY PUBLIC SCHOOLS | B39: 26 | Z39: 37 | AA39: 1 | AB39: No | AC39: 300854.99 | AD39: 37 | AE39: 2 | AF39: No | AH39: 37 | AI39: 3 | AJ39: No | AK39: 93364.55 | AL39: 37 | AM39: 4 | AN39: No | AO39: 57140.37 | AT39: 37 | AU39: 6 | AV39: No | AW39: 4481.52 | AX39: 37 | AY39: 97 | BF39: 37 | BG39: 9 | BH39: No | BK39: 37 | BL39: 76
A40: DINWIDDIE COUNTY PUBLIC SCHOOLS | B40: 27 | Z40: 38 | AA40: 1 | AB40: No | AC40: 682408.09 | AD40: 38 | AE40: 2 | AF40: No | AH40: 38 | AI40: 3 | AJ40: No | AL40: 38 | AM40: 4 | AN40: No | AO40: 105453.79 | AT40: 38 | AU40: 6 | AV40: No | AW40: 2948.37 | AX40: 38 | AY40: 97 | BF40: 38 | BG40: 9 | BH40: No | BI40: 34261.05 | BK40: 38
A41: EMPORIA CITY PUBLIC SCHOOLS | B41: 138 | Z41: 39 | AA41: 1 | AB41: Yes | AC41: 427791.7 | AD41: 39 | AE41: 2 | AF41: Yes | AH41: 39 | AI41: 3 | AJ41: Yes | AL41: 39 | AM41: 4 | AN41: Yes | AO41: 92085.32 | AT41: 39 | AU41: 6 | AV41: Yes | AW41: 10732.05 | AX41: 39 | AY41: 97 | BF41: 39 | BG41: 9 | BH41: Yes | BK41: 39
A42: ESSEX COUNTY PUBLIC SCHOOLS | B42: 28 | Z42: 40 | AA42: 1 | AB42: Yes | AC42: =467171.47+500744.1 -> 967915.57 | AD42: 40 | AE42: 2 | AF42: Yes | AH42: 40 | AI42: 3 | AJ42: Yes | AL42: 40 | AM42: 4 | AN42: Yes | AO42: 143292.89 | AT42: 40 | AU42: 6 | AV42: Yes | AW42: 11422.52 | AX42: 40 | AY42: 97 | BF42: 40 | BG42: 9 | BH42: Yes | BI42: 45674.66 | BK42: 40
A43: FAIRFAX CITY PUBLIC SCHOOLS | B43: 134 | Z43: 41 | AA43: 1 | AB43: Yes | AC43: 1561797.92 | AD43: 41 | AE43: 2 | AF43: Yes | AH43: 41 | AI43: 3 | AJ43: Yes | AL43: 41 | AM43: 4 | AN43: Yes | AO43: 266692.28 | AT43: 41 | AU43: 6 | AV43: Yes | AW43: 4363.58 | AX43: 41 | AY43: 97 | BF43: 41 | BG43: 9 | BH43: Yes | BI43: 101326.1 | BK43: 41
A44: FAIRFAX COUNTY PUBLIC SCHOOLS | B44: 29 | Z44: 42 | AA44: 1 | AB44: No | AC44: 1093552.85 | AD44: 42 | AE44: 2 | AF44: No | AH44: 42 | AI44: 3 | AJ44: No | AL44: 42 | AM44: 4 | AN44: No | AO44: 281871.45 | AT44: 42 | AU44: 6 | AV44: No | AW44: 18397.81 | AX44: 42 | AY44: 97 | BF44: 42 | BG44: 9 | BH44: No | BK44: 42
A45: FALLS CHURCH CITY PUBLIC SCHOOLS | B45: 109 | Z45: 43 | AA45: 1 | AB45: No | AC45: 10955877.2 | AD45: 43 | AE45: 2 | AF45: No | AH45: 43 | AI45: 3 | AJ45: No | AL45: 43 | AM45: 4 | AN45: No | AO45: 1060488.37 | AT45: 43 | AU45: 6 | AV45: No | AW45: 337729.78 | AX45: 43 | AY45: 97 | BF45: 43 | BG45: 9 | BH45: No | BK45: 43 | BL45: 15
A46: FAUQUIER COUNTY PUBLIC SCHOOLS | B46: 30 | Z46: 44 | AA46: 1 | AB46: No | AC46: 2509635.1 | AD46: 44 | AE46: 2 | AF46: No | AH46: 44 | AI46: 3 | AJ46: No | AL46: 44 | AM46: 4 | AN46: No | AO46: 344135.24 | AT46: 44 | AU46: 6 | AV46: No | AW46: 46820.06 | AX46: 44 | AY46: 97 | BF46: 44 | BG46: 9 | BH46: No | BI46: 136862.07 | BK46: 44
A47: FLOYD COUNTY PUBLIC SCHOOLS | B47: 31 | Z47: 45 | AA47: 1 | AB47: No | AC47: 51327.25 | AD47: 45 | AE47: 2 | AF47: No | AH47: 45 | AI47: 3 | AJ47: No | AL47: 45 | AM47: 4 | AN47: No | AO47: 14288.79 | AT47: 45 | AU47: 6 | AV47: No | AW47: 0 | AX47: 45 | AY47: 97 | BF47: 45 | BG47: 9 | BH47: No | BK47: 45
A48: FLUVANNA COUNTY PUBLIC SCHOOLS | B48: 32 | Z48: 46 | AA48: 1 | AB48: No | AC48: 632832.9 | AD48: 46 | AE48: 2 | AF48: No | AH48: 46 | AI48: 3 | AJ48: No | AL48: 46 | AM48: 4 | AN48: No | AO48: 172646.82 | AT48: 46 | AU48: 6 | AV48: No | AW48: 2830.43 | AX48: 46 | AY48: 97 | BF48: 46 | BG48: 9 | BH48: No | BK48: 46
A49: FRANKLIN CITY PUBLIC SCHOOLS | B49: 135 | Z49: 47 | AA49: 1 | AD49: 47 | AE49: 2 | AH49: 47 | AI49: 3 | AL49: 47 | AM49: 4 | AT49: 47 | AU49: 6 | AX49: 47 | AY49: 97 | BF49: 47 | BG49: 9 | BK49: 47
A50: FRANKLIN COUNTY PUBLIC SCHOOLS | B50: 33 | Z50: 48 | AA50: 1 | AB50: No | AC50: 396725.22 | AD50: 48 | AE50: 2 | AF50: No | AH50: 48 | AI50: 3 | AJ50: No | AL50: 48 | AM50: 4 | AN50: No | AO50: 91432.01 | AT50: 48 | AU50: 6 | AV50: No | AW50: 2830.43 | AX50: 48 | AY50: 97 | BF50: 48 | BG50: 9 | BH50: No | BK50: 48
A51: FREDERICK COUNTY PUBLIC SCHOOLS | B51: 34 | Z51: 49 | AA51: 1 | AB51: Yes | AC51: 202307.92 | AD51: 49 | AE51: 2 | AF51: Yes | AH51: 49 | AI51: 3 | AJ51: Yes | AL51: 49 | AM51: 4 | AN51: Yes | AO51: 49615.09 | AT51: 49 | AU51: 6 | AV51: Yes | AW51: 1533.15 | AX51: 49 | AY51: 97 | BF51: 49 | BG51: 9 | BH51: Yes | BK51: 49
A52: FREDERICKSBURG CITY PUBLIC SCHOOLS | B52: 110 | Z52: 50 | AA52: 1 | AB52: Yes | AC52: 238609.13 | AD52: 50 | AE52: 2 | AF52: Yes | AH52: 50 | AI52: 3 | AJ52: Yes | AL52: 50 | AM52: 4 | AN52: Yes | AO52: 53769.64 | AT52: 50 | AU52: 6 | AV52: Yes | AW52: 1651.09 | AX52: 50 | AY52: 97 | BF52: 50 | BG52: 9 | BH52: Yes | BK52: 50
A53: GALAX CITY PUBLIC SCHOOLS | B53: 111 | Z53: 51 | AA53: 1 | AB53: Yes | AC53: 401525.25 | AD53: 51 | AE53: 2 | AF53: Yes | AH53: 51 | AI53: 3 | AJ53: Yes | AL53: 51 | AM53: 4 | AN53: Yes | AO53: 77011.74 | AT53: 51 | AU53: 6 | AV53: Yes | AW53: 825.54 | AX53: 51 | AY53: 97 | BF53: 51 | BG53: 9 | BH53: Yes | BI53: 23636.68 | BK53: 51
A54: GILES COUNTY PUBLIC SCHOOLS | B54: 35 | Z54: 52 | AA54: 1 | AB54: Yes | AC54: 1654805.16 | AD54: 52 | AE54: 2 | AF54: Yes | AH54: 52 | AI54: 3 | AJ54: Yes | AL54: 52 | AM54: 4 | AN54: Yes | AO54: 285434.21 | AT54: 52 | AU54: 6 | AV54: Yes | AW54: 117.93 | AX54: 52 | AY54: 97 | BF54: 52 | BG54: 9 | BH54: Yes | BI54: 59860.71 | BK54: 52 | BL54: 33
A55: GLOUCESTER COUNTY PUBLIC SCHOOLS | B55: 36 | Z55: 53 | AA55: 1 | AB55: Yes | AC55: 1511509.44 | AD55: 53 | AE55: 2 | AF55: Yes | AH55: 53 | AI55: 3 | AJ55: Yes | AK55: 129567.13 | AL55: 53 | AM55: 4 | AN55: Yes | AO55: 506325.26 | AT55: 53 | AU55: 6 | AV55: Yes | AW55: 686851.48 | AX55: 53 | AY55: 97 | BF55: 53 | BG55: 9 | BH55: Yes | BK55: 53 | BL55: 90
A56: GOOCHLAND COUNTY PUBLIC SCHOOLS | B56: 37 | Z56: 54 | AA56: 1 | AB56: No | AC56: 923368.18 | AD56: 54 | AE56: 2 | AF56: No | AH56: 54 | AI56: 3 | AJ56: No | AL56: 54 | AM56: 4 | AN56: No | AO56: 157619.98 | AT56: 54 | AU56: 6 | AV56: No | AW56: 6132.6 | AX56: 54 | AY56: 97 | BF56: 54 | BG56: 9 | BH56: No | BK56: 54 | BL56: 15
A57: GRAYSON COUNTY PUBLIC SCHOOLS | B57: 38 | Z57: 55 | AA57: 1 | AB57: Yes | AC57: 556513.6 | AD57: 55 | AE57: 2 | AF57: Yes | AH57: 55 | AI57: 3 | AJ57: Yes | AL57: 55 | AM57: 4 | AN57: Yes | AO57: 101958.14 | AT57: 55 | AU57: 6 | AV57: Yes | AW57: 8373.36 | AX57: 55 | AY57: 97 | BF57: 55 | BG57: 9 | BH57: Yes | BI57: 28716.14 | BK57: 55
A58: GREENE COUNTY PUBLIC SCHOOLS | B58: 39 | Z58: 56 | AA58: 1 | AB58: No | AC58: 376670.1 | AD58: 56 | AE58: 2 | AF58: No | AH58: 56 | AI58: 3 | AJ58: No | AL58: 56 | AM58: 4 | AN58: No | AO58: 78564.81 | AT58: 56 | AU58: 6 | AV58: No | AW58: 471.74 | AX58: 56 | AY58: 97 | BF58: 56 | BG58: 9 | BH58: No | BK58: 56
A59: GREENSVILLE COUNTY PUBLIC SCHOOLS | B59: 40 | Z59: 57 | AA59: 1 | AB59: Yes | AC59: 195078.33 | AD59: 57 | AE59: 2 | AF59: Yes | AH59: 57 | AI59: 3 | AJ59: Yes | AL59: 57 | AM59: 4 | AN59: Yes | AO59: 46207.27 | AT59: 57 | AU59: 6 | AV59: Yes | AW59: 589.67 | AX59: 57 | AY59: 97 | BF59: 57 | BG59: 9 | BH59: Yes | BK59: 57
A60: HALIFAX COUNTY PUBLIC SCHOOLS | B60: 41 | Z60: 58 | AA60: 1 | AB60: Yes | AC60: 1399733.98 | AD60: 58 | AE60: 2 | AF60: Yes | AH60: 58 | AI60: 3 | AJ60: Yes | AL60: 58 | AM60: 4 | AN60: Yes | AO60: 223954.11 | AT60: 58 | AU60: 6 | AV60: Yes | AW60: 6840.21 | AX60: 58 | AY60: 97 | BF60: 58 | BG60: 9 | BH60: Yes | BI60: 86168.67 | BK60: 58
A61: HAMPTON CITY PUBLIC SCHOOLS | B61: 112 | Z61: 59 | AA61: 1 | AB61: Yes | AC61: 347964.72 | AD61: 59 | AE61: 2 | AF61: Yes | AH61: 59 | AI61: 3 | AJ61: Yes | AL61: 59 | AM61: 4 | AN61: Yes | AO61: 58049.81 | AT61: 59 | AU61: 6 | AV61: Yes | AW61: 353.8 | AX61: 59 | AY61: 97 | BF61: 59 | BG61: 9 | BH61: Yes | BI61: 21774.89 | BK61: 59
A62: HANOVER COUNTY PUBLIC SCHOOLS | B62: 42 | Z62: 60 | AA62: 1 | AB62: No | AC62: 1823561.3 | AD62: 60 | AE62: 2 | AF62: No | AH62: 60 | AI62: 3 | AJ62: No | AL62: 60 | AM62: 4 | AN62: No | AO62: 344771.08 | AT62: 60 | AU62: 6 | AV62: No | AW62: 31210.81 | AX62: 60 | AY62: 97 | BF62: 60 | BG62: 9 | BH62: No | BK62: 60
A63: HARRISONBURG CITY PUBLIC SCHOOLS | B63: 113 | Z63: 62 | AA63: 1 | AB63: No | AC63: 506833.47 | AD63: 62 | AE63: 2 | AF63: No | AH63: 62 | AI63: 3 | AJ63: No | AL63: 62 | AM63: 4 | AN63: No | AO63: 88680.4 | AT63: 62 | AU63: 6 | AV63: No | AW63: 4363.58 | AX63: 62 | AY63: 97 | BF63: 62 | BG63: 9 | BH63: No | BI63: 36912.08 | BK63: 62
A64: HENRICO COUNTY PUBLIC SCHOOLS | B64: 43 | Z64: 63 | AA64: 1 | AB64: Yes | AC64: 256484.66 | AD64: 63 | AE64: 2 | AF64: Yes | AH64: 63 | AI64: 3 | AJ64: Yes | AL64: 63 | AM64: 4 | AN64: Yes | AO64: 51436.66 | AT64: 63 | AU64: 6 | AV64: Yes | AW64: 2358.69 | AX64: 63 | AY64: 97 | BF64: 63 | BG64: 9 | BH64: Yes | BK64: 63
A65: HENRY COUNTY PUBLIC SCHOOLS | B65: 44 | Z65: 65 | AA65: 1 | AB65: Yes | AC65: 701866.57 | AD65: 65 | AE65: 2 | AF65: Yes | AG65: 146597.21 | AH65: 65 | AI65: 3 | AJ65: Yes | AL65: 65 | AM65: 4 | AN65: Yes | AO65: 143027.96 | AT65: 65 | AU65: 6 | AV65: Yes | AW65: 17808.13 | AX65: 65 | AY65: 97 | BF65: 65 | BG65: 9 | BH65: Yes | BI65: 30092.25 | BK65: 65
A66: HIGHLAND COUNTY PUBLIC SCHOOLS | B66: 45 | Z66: 66 | AA66: 1 | AB66: Yes | AC66: 486702.75 | AD66: 66 | AE66: 2 | AF66: Yes | AH66: 66 | AI66: 3 | AJ66: Yes | AL66: 66 | AM66: 4 | AN66: Yes | AO66: 72859.09 | AT66: 66 | AU66: 6 | AV66: Yes | AW66: 2476.63 | AX66: 66 | AY66: 97 | BF66: 66 | BG66: 9 | BH66: Yes | BI66: 26834.11 | BK66: 66
A67: HOPEWELL CITY PUBLIC SCHOOLS | B67: 114 | Z67: 67 | AA67: 1 | AB67: Yes | AC67: 826638.12 | AD67: 67 | AE67: 2 | AF67: Yes | AG67: 16791.84 | AH67: 67 | AI67: 3 | AJ67: Yes | AL67: 67 | AM67: 4 | AN67: Yes | AO67: 123873.7 | AT67: 67 | AU67: 6 | AV67: Yes | AW67: 9906.51 | AX67: 67 | AY67: 97 | BF67: 67 | BG67: 9 | BH67: Yes | BI67: 41060.65 | BK67: 67
A68: ISLE OF WIGHT COUNTY PUBLIC SCHOOLS | B68: 46 | Z68: 68 | AA68: 1 | AB68: Yes | AC68: 734870.11 | AD68: 68 | AE68: 2 | AF68: Yes | AH68: 68 | AI68: 3 | AJ68: Yes | AL68: 68 | AM68: 4 | AN68: Yes | AO68: 136853.58 | AT68: 68 | AU68: 6 | AV68: Yes | AW68: 15657.33 | AX68: 68 | AY68: 97 | BF68: 68 | BG68: 9 | BH68: Yes | BK68: 68
A69: JAMES CITY COUNTY PUBLIC SCHOOLS | B69: 47 | Z69: 69 | AA69: 1 | AB69: Yes | AC69: 868320.95 | AD69: 69 | AE69: 2 | AF69: Yes | AH69: 69 | AI69: 3 | AJ69: Yes | AL69: 69 | AM69: 4 | AN69: Yes | AO69: 140904.88 | AT69: 69 | AU69: 6 | AV69: Yes | AW69: 2004.89 | AX69: 69 | AY69: 97 | BF69: 69 | BG69: 9 | BH69: Yes | BK69: 69
A70: JAMES MADISON UNIVERSITY | B70: 871 | Z70: 70 | AA70: 1 | AB70: No | AC70: 669189.82 | AD70: 70 | AE70: 2 | AF70: No | AH70: 70 | AI70: 3 | AJ70: No | AL70: 70 | AM70: 4 | AN70: No | AO70: 116294.58 | AT70: 70 | AU70: 6 | AV70: No | AW70: 8609.23 | AX70: 70 | AY70: 97 | BF70: 70 | BG70: 9 | BH70: No | BI70: 49297.06 | BK70: 70
A71: KING AND QUEEN COUNTY PUBLIC SCHOOLS | B71: 49 | Z71: 71 | AA71: 1 | AB71: No | AC71: 2272136.69 | AD71: 71 | AE71: 2 | AF71: No | AH71: 71 | AI71: 3 | AJ71: No | AL71: 71 | AM71: 4 | AN71: No | AO71: 340390.14 | AT71: 71 | AU71: 6 | AV71: No | AW71: 15095.64 | AX71: 71 | AY71: 97 | BF71: 71 | BG71: 9 | BH71: No | BK71: 71
A72: KING GEORGE COUNTY PUBLIC SCHOOLS | B72: 48 | Z72: 72 | AA72: 1 | AB72: No | AC72: 278782.29 | AD72: 72 | AE72: 2 | AF72: No | AH72: 72 | AI72: 3 | AJ72: No | AL72: 72 | AM72: 4 | AN72: No | AO72: 76424.71 | AT72: 72 | AU72: 6 | AV72: No | AW72: 4000.8 | AX72: 72 | AY72: 97 | BF72: 72 | BG72: 9 | BH72: No | BK72: 72
A73: KING WILLIAM COUNTY PUBLIC SCHOOLS | B73: 50 | Z73: 73 | AA73: 1 | AB73: Yes | AC73: 944300.07 | AD73: 73 | AE73: 2 | AF73: Yes | AH73: 73 | AI73: 3 | AJ73: Yes | AL73: 73 | AM73: 4 | AN73: Yes | AO73: 149716.19 | AT73: 73 | AU73: 6 | AV73: Yes | AW73: 1297.28 | AX73: 73 | AY73: 97 | BF73: 73 | BG73: 9 | BH73: Yes | BI73: 41607.04 | BK73: 73
A74: LANCASTER COUNTY PUBLIC SCHOOLS | B74: 51 | Z74: 74 | AA74: 1 | AB74: Yes | AC74: 629583.24 | AD74: 74 | AE74: 2 | AF74: Yes | AH74: 74 | AI74: 3 | AJ74: Yes | AL74: 74 | AM74: 4 | AN74: Yes | AO74: 145758 | AT74: 74 | AU74: 6 | AV74: Yes | AW74: 7901.62 | AX74: 74 | AY74: 97 | BF74: 74 | BG74: 9 | BH74: Yes | BK74: 74
A75: LEE COUNTY PUBLIC SCHOOLS | B75: 52 | Z75: 75 | AA75: 1 | AB75: No | AC75: 10917135.22 | AD75: 75 | AE75: 2 | AF75: No | AH75: 75 | AI75: 3 | AJ75: No | AK75: 80026.76 | AL75: 75 | AM75: 4 | AN75: No | AO75: 1193842.68 | AT75: 75 | AU75: 6 | AV75: No | AW75: 1673669.62 | AX75: 75 | AY75: 97 | BF75: 75 | BG75: 9 | BH75: No | BK75: 75
A76: LEXINGTON CITY PUBLIC SCHOOLS | B76: 137 | Z76: 77 | AA76: 1 | AB76: No | AC76: 1022439.4 | AD76: 77 | AE76: 2 | AF76: No | AH76: 77 | AI76: 3 | AJ76: No | AL76: 77 | AM76: 4 | AN76: No | AO76: 210100.98 | AT76: 77 | AU76: 6 | AV76: No | AW76: 2004.89 | AX76: 77 | AY76: 97 | BF76: 77 | BG76: 9 | BH76: No | BK76: 77
A77: LOUDOUN COUNTY PUBLIC SCHOOLS | B77: 53 | Z77: 78 | AA77: 1 | AB77: Yes | AC77: 171114.89 | AD77: 78 | AE77: 2 | AF77: Yes | AH77: 78 | AI77: 3 | AJ77: Yes | AL77: 78 | AM77: 4 | AN77: Yes | AO77: 35529.61 | AT77: 78 | AU77: 6 | AV77: Yes | AW77: 1297.28 | AX77: 78 | AY77: 97 | BF77: 78 | BG77: 9 | BH77: Yes | BK77: 78
A78: LOUISA COUNTY PUBLIC SCHOOLS | B78: 54 | Z78: 79 | AA78: 1 | AB78: Yes | AC78: 294362.55 | AD78: 79 | AE78: 2 | AF78: Yes | AH78: 79 | AI78: 3 | AJ78: Yes | AL78: 79 | AM78: 4 | AN78: Yes | AO78: 55251.88 | AT78: 79 | AU78: 6 | AV78: Yes | AW78: 8255.43 | AX78: 79 | AY78: 97 | BF78: 79 | BG78: 9 | BH78: Yes | BI78: 22442.71 | BK78: 79
A79: LUNENBURG COUNTY PUBLIC SCHOOLS | B79: 55 | Z79: 80 | AA79: 1 | AB79: No | AC79: 1291822.28 | AD79: 80 | AE79: 2 | AF79: No | AH79: 80 | AI79: 3 | AJ79: No | AL79: 80 | AM79: 4 | AN79: No | AO79: 271412.66 | AT79: 80 | AU79: 6 | AV79: No | AW79: 32265.48 | AX79: 80 | AY79: 97 | BF79: 80 | BG79: 9 | BH79: No | BK79: 80
A80: LYNCHBURG CITY PUBLIC SCHOOLS | B80: 115 | Z80: 81 | AA80: 1 | AB80: Yes | AC80: 533132.23 | AD80: 81 | AE80: 2 | AF80: Yes | AH80: 81 | AI80: 3 | AJ80: Yes | AL80: 81 | AM80: 4 | AN80: Yes | AO80: 105392.96 | AT80: 81 | AU80: 6 | AV80: Yes | AW80: 3184.24 | AX80: 81 | AY80: 97 | BF80: 81 | BG80: 9 | BH80: Yes | BK80: 81
A81: MADISON COUNTY PUBLIC SCHOOLS | B81: 56 | Z81: 82 | AA81: 1 | AB81: No | AC81: 1671214.54 | AD81: 82 | AE81: 2 | AF81: No | AH81: 82 | AI81: 3 | AJ81: No | AL81: 82 | AM81: 4 | AN81: No | AO81: 305475.77 | AT81: 82 | AU81: 6 | AV81: No | AW81: 73935.86 | AX81: 82 | AY81: 97 | BF81: 82 | BG81: 9 | BH81: No | BK81: 82
A82: MANASSAS CITY PUBLIC SCHOOLS | B82: 143 | Z82: 83 | AA82: 1 | AB82: No | AC82: 1239051.87 | AD82: 83 | AE82: 2 | AF82: No | AH82: 83 | AI82: 3 | AJ82: No | AL82: 83 | AM82: 4 | AN82: No | AO82: 250276.73 | AT82: 83 | AU82: 6 | AV82: No | AW82: 471.74 | AX82: 83 | AY82: 97 | BF82: 83 | BG82: 9 | BH82: No | BI82: 77628.7 | BK82: 83
A83: MANASSAS PARK CITY PUBLIC SCHOOLS | B83: 144 | Z83: 84 | AA83: 1 | AB83: No | AC83: 789605.53 | AD83: 84 | AE83: 2 | AF83: No | AH83: 84 | AI83: 3 | AJ83: No | AL83: 84 | AM83: 4 | AN83: No | AO83: 169718.44 | AT83: 84 | AU83: 6 | AV83: No | AW83: 1179.35 | AX83: 84 | AY83: 97 | BF83: 84 | BG83: 9 | BH83: No | BK83: 84
A84: MARTINSVILLE CITY PUBLIC SCHOOLS | B84: 116 | Z84: 85 | AA84: 1 | AB84: Yes | AC84: 1137680.75 | AD84: 85 | AE84: 2 | AF84: Yes | AH84: 85 | AI84: 3 | AJ84: Yes | AL84: 85 | AM84: 4 | AN84: Yes | AO84: 182563.88 | AT84: 85 | AU84: 6 | AV84: Yes | AW84: 34554.86 | AX84: 85 | AY84: 97 | BF84: 85 | BG84: 9 | BH84: Yes | BK84: 85
A85: MATHEWS COUNTY PUBLIC SCHOOLS | B85: 57 | Z85: 86 | AA85: 1 | AB85: No | AC85: 1318650.9 | AD85: 86 | AE85: 2 | AF85: No | AH85: 86 | AI85: 3 | AJ85: No | AL85: 86 | AM85: 4 | AN85: No | AO85: 237420.89 | AT85: 86 | AU85: 6 | AV85: No | AW85: 1415.22 | AX85: 86 | AY85: 97 | BF85: 86 | BG85: 9 | BH85: No | BI85: 89163.73 | BK85: 86
A86: MCVH AUTHORITY | B86: 948 | Z86: 87 | AA86: 1 | AB86: No | AC86: 583799.62 | AD86: 87 | AE86: 2 | AF86: No | AH86: 87 | AI86: 3 | AJ86: No | AL86: 87 | AM86: 4 | AN86: No | AO86: 119981.92 | AT86: 87 | AU86: 6 | AV86: No | AW86: 0 | AX86: 87 | AY86: 97 | BF86: 87 | BG86: 9 | BH86: No | BK86: 87
A87: MECKLENBURG COUNTY PUBLIC SCHOOLS | B87: 58 | Z87: 88 | AA87: 1 | AB87: No | AC87: 2853169.91 | AD87: 88 | AE87: 2 | AF87: No | AH87: 88 | AI87: 3 | AJ87: No | AL87: 88 | AM87: 4 | AN87: No | AO87: 415102.86 | AT87: 88 | AU87: 6 | AV87: No | AW87: 104372.18 | AX87: 88 | AY87: 97 | BF87: 88 | BG87: 9 | BH87: No | BK87: 88
A88: MIDDLESEX COUNTY PUBLIC SCHOOLS | B88: 59 | Z88: 89 | AA88: 1 | AB88: Yes | AC88: 1824548.49 | AD88: 89 | AE88: 2 | AF88: Yes | AH88: 89 | AI88: 3 | AJ88: Yes | AK88: 65468.33 | AL88: 89 | AM88: 4 | AN88: Yes | AO88: 391608 | AT88: 89 | AU88: 6 | AV88: Yes | AW88: 132204.76 | AX88: 89 | AY88: 97 | BF88: 89 | BG88: 9 | BH88: Yes | BK88: 89 | BL88: 5
A89: MONTGOMERY COUNTY PUBLIC SCHOOLS | B89: 60 | Z89: 90 | AA89: 1 | AB89: Yes | AC89: 205041.79 | AD89: 90 | AE89: 2 | AF89: Yes | AH89: 90 | AI89: 3 | AJ89: Yes | AL89: 90 | AM89: 4 | AN89: Yes | AO89: 51364.37 | AT89: 90 | AU89: 6 | AV89: Yes | AW89: 235.87 | AX89: 90 | AY89: 97 | BF89: 90 | BG89: 9 | BH89: Yes | BK89: 90
A90: NELSON COUNTY PUBLIC SCHOOLS | B90: 62 | Z90: 91 | AA90: 1 | AB90: Yes | AC90: 507306.18 | AD90: 91 | AE90: 2 | AF90: Yes | AH90: 91 | AI90: 3 | AJ90: Yes | AL90: 91 | AM90: 4 | AN90: Yes | AO90: 87840.74 | AT90: 91 | AU90: 6 | AV90: Yes | AW90: 1533.15 | AX90: 91 | AY90: 97 | BF90: 91 | BG90: 9 | BH90: Yes | BI90: 21248.73 | BK90: 91
A91: NEW KENT COUNTY PUBLIC SCHOOLS | B91: 63 | Z91: 92 | AA91: 1 | AB91: No | AC91: 1734403.15 | AD91: 92 | AE91: 2 | AF91: No | AH91: 92 | AI91: 3 | AJ91: No | AL91: 92 | AM91: 4 | AN91: No | AO91: 395412.52 | AT91: 92 | AU91: 6 | AV91: No | AW91: 5896.73 | AX91: 92 | AY91: 97 | BF91: 92 | BG91: 9 | BH91: No | BI91: 116908.5 | BK91: 92
A92: NEWPORT NEWS CITY PUBLIC SCHOOLS | B92: 117 | Z92: 93 | AA92: 1 | AB92: Yes | AC92: 941093.19 | AD92: 93 | AE92: 2 | AF92: Yes | AH92: 93 | AI92: 3 | AJ92: Yes | AL92: 93 | AM92: 4 | AN92: Yes | AO92: 166176.8 | AT92: 93 | AU92: 6 | AV92: Yes | AW92: 17499.52 | AX92: 93 | AY92: 97 | BF92: 93 | BG92: 9 | BH92: Yes | BK92: 93
A93: NORFOLK CITY PUBLIC SCHOOLS | B93: 118 | Z93: 94 | AA93: 1 | AB93: Yes | AC93: 1786233.7 | AD93: 94 | AE93: 2 | AF93: Yes | AH93: 94 | AI93: 3 | AJ93: Yes | AL93: 94 | AM93: 4 | AN93: Yes | AO93: 296727.14 | AT93: 94 | AU93: 6 | AV93: Yes | AW93: 7929.23 | AX93: 94 | AY93: 97 | BF93: 94 | BG93: 9 | BH93: Yes | BK93: 94
A94: NORTHAMPTON COUNTY PUBLIC SCHOOLS | B94: 65 | Z94: 95 | AA94: 1 | AB94: Yes | AC94: 677808.34 | AD94: 95 | AE94: 2 | AF94: Yes | AG94: 58279.65 | AH94: 95 | AI94: 3 | AJ94: Yes | AL94: 95 | AM94: 4 | AN94: Yes | AO94: 98032.21 | AT94: 95 | AU94: 6 | AV94: Yes | AW94: 9434.77 | AX94: 95 | AY94: 97 | BF94: 95 | BG94: 9 | BH94: Yes | BI94: 30375.57 | BK94: 95
A95: NORTHUMBERLAND COUNTY PUBLIC SCHOOLS | B95: 66 | Z95: 96 | AA95: 1 | AB95: No | AC95: 2166013.1 | AD95: 96 | AE95: 2 | AF95: No | AH95: 96 | AI95: 3 | AJ95: No | AL95: 96 | AM95: 4 | AN95: No | AO95: 396538.21 | AT95: 96 | AU95: 6 | AV95: No | AW95: 2830.43 | AX95: 96 | AY95: 97 | BF95: 96 | BG95: 9 | BH95: No | BI95: 111060.04 | BK95: 96
A96: NORTON CITY PUBLIC SCHOOLS | B96: 119 | Z96: 97 | AA96: 1 | AB96: Yes | AC96: 1005112.2 | AD96: 97 | AE96: 2 | AF96: Yes | AH96: 97 | AI96: 3 | AJ96: Yes | AL96: 97 | AM96: 4 | AN96: Yes | AO96: 194377.49 | AT96: 97 | AU96: 6 | AV96: Yes | AW96: 1061.41 | AX96: 97 | AY96: 97 | BF96: 97 | BG96: 9 | BH96: Yes | BI96: 80866.6 | BK96: 97 | BL96: 10
A97: NOTTOWAY COUNTY PUBLIC SCHOOLS | B97: 67 | Z97: 98 | AA97: 1 | AB97: Yes | AC97: 698146.98 | AD97: 98 | AE97: 2 | AF97: Yes | AH97: 98 | AI97: 3 | AJ97: Yes | AL97: 98 | AM97: 4 | AN97: Yes | AO97: 245176.31 | AT97: 98 | AU97: 6 | AV97: Yes | AW97: 46105.14 | AX97: 98 | AY97: 97 | BF97: 98 | BG97: 9 | BH97: Yes | BK97: 98
A98: OLD DOMINION UNIVERSITY | B98: 798 | Z98: 101 | AA98: 1 | AB98: No | AC98: 4280605.6 | AD98: 101 | AE98: 2 | AF98: No | AH98: 101 | AI98: 3 | AJ98: No | AL98: 101 | AM98: 4 | AN98: No | AO98: 468249.94 | AT98: 101 | AU98: 6 | AV98: No | AW98: 467470.4 | AX98: 101 | AY98: 97 | BF98: 101 | BG98: 9 | BH98: No | BK98: 101
A99: ORANGE COUNTY PUBLIC SCHOOLS | B99: 68 | Z99: 102 | AA99: 1 | AB99: Yes | AC99: 1346583.52 | AD99: 102 | AE99: 2 | AF99: Yes | AH99: 102 | AI99: 3 | AJ99: Yes | AL99: 102 | AM99: 4 | AN99: Yes | AO99: 143172.31 | AT99: 102 | AU99: 6 | AV99: Yes | AW99: 4009.78 | AX99: 102 | AY99: 97 | BF99: 102 | BG99: 9 | BH99: Yes | BK99: 102
A100: PAGE COUNTY PUBLIC SCHOOLS | B100: 69 | Z100: 103 | AA100: 1 | AB100: No | AC100: 248476.47 | AD100: 103 | AE100: 2 | AF100: No | AH100: 103 | AI100: 3 | AJ100: No | AL100: 103 | AM100: 4 | AN100: No | AO100: 43172.6 | AT100: 103 | AU100: 6 | AV100: No | AW100: 0 | AX100: 103 | AY100: 97 | BF100: 103 | BG100: 9 | BH100: No | BI100: 19569.07 | BK100: 103
A101: PATRICK COUNTY PUBLIC SCHOOLS | B101: 70 | Z101: 104 | AA101: 1 | AB101: Yes | AC101: 1420270.51 | AD101: 104 | AE101: 2 | AF101: Yes | AH101: 104 | AI101: 3 | AJ101: Yes | AK101: 43275.68 | AL101: 104 | AM101: 4 | AN101: Yes | AO101: 255988.07 | AT101: 104 | AU101: 6 | AV101: Yes | AW101: 54601.12 | AX101: 104 | AY101: 97 | BF101: 104 | BG101: 9 | BH101: Yes | BK101: 104
A102: PETERSBURG CITY PUBLIC SCHOOLS | B102: 120 | Z102: 106 | AA102: 1 | AB102: Yes | AC102: 594611.55 | AD102: 106 | AE102: 2 | AF102: Yes | AH102: 106 | AI102: 3 | AJ102: Yes | AL102: 106 | AM102: 4 | AN102: Yes | AO102: 69828.73 | AT102: 106 | AU102: 6 | AV102: Yes | AW102: 9552.71 | AX102: 106 | AY102: 97 | BF102: 106 | BG102: 9 | BH102: Yes | BK102: 106
A103: PITTSYLVANIA COUNTY PUBLIC SCHOOLS | B103: 71 | Z103: 107 | AA103: 1 | AB103: No | AC103: 247415.35 | AD103: 107 | AE103: 2 | AF103: No | AH103: 107 | AI103: 3 | AJ103: No | AL103: 107 | AM103: 4 | AN103: No | AO103: 50021.95 | AT103: 107 | AU103: 6 | AV103: No | AW103: 471.74 | AX103: 107 | AY103: 97 | BF103: 107 | BG103: 9 | BH103: No | BI103: 16938.28 | BK103: 107
A104: POQUOSON CITY PUBLIC SCHOOLS | B104: 142 | Z104: 108 | AA104: 1 | AB104: No | AC104: 3796935.14 | AD104: 108 | AE104: 2 | AF104: No | AH104: 108 | AI104: 3 | AJ104: No | AL104: 108 | AM104: 4 | AN104: No | AO104: 475518.84 | AT104: 108 | AU104: 6 | AV104: No | AW104: 22171.72 | AX104: 108 | AY104: 97 | BF104: 108 | BG104: 9 | BH104: No | BK104: 108
A105: PORTSMOUTH CITY PUBLIC SCHOOLS | B105: 121 | Z105: 109 | AA105: 1 | AB105: No | AC105: 44971.27 | AD105: 109 | AE105: 2 | AF105: No | AH105: 109 | AI105: 3 | AJ105: No | AL105: 109 | AM105: 4 | AN105: No | AO105: 26777.29 | AT105: 109 | AU105: 6 | AV105: No | AW105: 18254.35 | AX105: 109 | AY105: 97 | BF105: 109 | BG105: 9 | BH105: No | BK105: 109
A106: POWHATAN COUNTY PUBLIC SCHOOLS | B106: 72 | Z106: 110 | AA106: 1 | AB106: No | AC106: 1039428.17 | AD106: 110 | AE106: 2 | AF106: No | AH106: 110 | AI106: 3 | AJ106: No | AL106: 110 | AM106: 4 | AN106: No | AO106: 126345.28 | AT106: 110 | AU106: 6 | AV106: No | AW106: 47173.87 | AX106: 110 | AY106: 97 | BF106: 110 | BG106: 9 | BH106: No | BK106: 110
A107: PRINCE EDWARD COUNTY PUBLIC SCHOOLS | B107: 73 | Z107: 111 | AA107: 1 | AB107: No | AC107: 582513.86 | AD107: 111 | AE107: 2 | AF107: No | AH107: 111 | AI107: 3 | AJ107: No | AL107: 111 | AM107: 4 | AN107: No | AO107: 64239.87 | AT107: 111 | AU107: 6 | AV107: No | AW107: 22053.78 | AX107: 111 | AY107: 97 | BF107: 111 | BG107: 9 | BH107: No | BI107: 24344.98 | BK107: 111
A108: PRINCE GEORGE COUNTY PUBLIC SCHOOLS | B108: 74 | Z108: 112 | AA108: 1 | AB108: No | AC108: 6923666.66 | AD108: 112 | AE108: 2 | AF108: No | AH108: 112 | AI108: 3 | AJ108: No | AL108: 112 | AM108: 4 | AN108: No | AO108: 940652.91 | AT108: 112 | AU108: 6 | AV108: No | AW108: 46199.34 | AX108: 112 | AY108: 97 | BF108: 112 | BG108: 9 | BH108: No | BK108: 112 | BL108: 30
A109: PRINCE WILLIAM COUNTY PUBLIC SCHOOLS | B109: 75 | Z109: 113 | AA109: 1 | AB109: No | AC109: 1487116.65 | AD109: 113 | AE109: 2 | AF109: No | AH109: 113 | AI109: 3 | AJ109: No | AL109: 113 | AM109: 4 | AN109: No | AO109: 168091.94 | AT109: 113 | AU109: 6 | AV109: No | AW109: 215098.96 | AX109: 113 | AY109: 97 | BF109: 113 | BG109: 9 | BH109: No | BK109: 113
A110: PULASKI COUNTY PUBLIC SCHOOLS | B110: 77 | Z110: 114 | AA110: 1 | AB110: Yes | AC110: 1750689.32 | AD110: 114 | AE110: 2 | AF110: Yes | AH110: 114 | AI110: 3 | AJ110: Yes | AL110: 114 | AM110: 4 | AN110: Yes | AO110: 208604.76 | AT110: 114 | AU110: 6 | AV110: Yes | AW110: 12147.27 | AX110: 114 | AY110: 97 | BF110: 114 | BG110: 9 | BH110: Yes | BK110: 114
